Workbook

Sheet CARATULA
C8: MODELO DE COSTOS PARA LA DETERMINACION DEL CARGO DE INTERCONEXION TOPE POR ORIGINACION/TERMINACION DE LLAMADAS EN LAS REDES PUBLICAS DE TELEFONIA MOVIL
C9: OPERADOR AMERICA MOVIL PERU S.A.C.
C10: MARZO DE 2017
C15: NOTA 1: ESTE ARCHIVO PROCURA MOSTRAR EL PROCEDIMIENTO DE CÁLCULO.
C16: NOTA 2: LAS CELDAS EN COLOR AMARILLO CORRESPONDEN A INFORMACION CONFIDENCIAL.

Sheet Resultados
A1: Costos Incrementales US MM$
C4: CLARO 2G/3G
D5: Voz | E5: Voz/min
A6: CAPEX ANUALIZADO
A7: Costo Anual por Equipamiento RAN | D7: =+Costos!E15 -> 5.330733612 | E7: =+Costos!F15 -> 0.05805634515
A8: Costo Anual por Infraestructura RAN | D8: =+Costos!E22 -> 0.3015470952 | E8: =+Costos!F22 -> 0.003284111253
A9: Costo Anual por Equipamiento Transporte | D9: =+Costos!E31 -> 0.1493494738 | E9: =+Costos!F31 -> 0.001626546219
A10: Costo Anual por Infraestructura Transporte | D10: =+Costos!E41 -> 3.453239971 | E10: =+Costos!F41 -> 0.03760879951
A11: Costo Anual por Equipamiento CORE | D11: =+Costos!E54 -> 17.1397767 | E11: =+Costos!F54 -> 0.186667139
A12: Costo Anual por Infraestructura CORE | D12: =+Costos!E60 -> 0.5161389053 | E12: =+Costos!F60 -> 0.005621203499
A13: Costo Anual de Espectro | D13: =+Costos!E63 -> 29.19999941 | E13: =+Costos!F63 -> 0.3180134983
A14: Total Anualización | D14: =SUM(D7:D13) -> 56.09078517 | E14: =SUM(E7:E13) -> 0.6108776429
A16: O&M
A17: Costo O&M | D17: =+Costos!E88 -> 16.49686959 | E17: =+Costos!F88 -> 0.179665319
A18: Costo Alquiler de Capacidad Tx | D18: =+Costos!E92 -> 11.50236932 | E18: =+Costos!F92 -> 0.1252708486
A19: COSTO DE OPERACIÓN | D19: =SUM(D17:D18) -> 27.99923891 | E19: =SUM(E17:E18) -> 0.3049361676
A21: SUBTOTAL | D21: =+D14+D19 -> 84.09002407 | E21: =+E14+E19 -> 0.9158138104
A22: Mark-Up | C22: =Costos!C97 -> 0.05
A23: COSTO INCREMENTAL TOTAL DE LARGO PLAZO | D23: =+D21/(1-C22) -> 88.51581481 | E23: =+E21/(1-C22) -> 0.9640145373
A24: OSIPTEL | B24: =+Costos!B99 -> 0.01 | D24: =+D23*$B24 -> 0.8851581481
A25: FITEL | B25: =+Costos!B100 -> 0.005 | D25: =+D23*$B25 -> 0.4425790741
A26: MTC | B26: =+Costos!B101 -> 0.005 | D26: =+D23*$B26 -> 0.4425790741
A27: Canon Radioelectrico (0.2% UIT x Lineas) | B27: =+Costos!B102 -> 0.0022 | C27: =+Costos!C102 -> 3950 | D27: =+Costos!E102 -> 24.963141
A28: Tasas y tributos | D28: =SUM(D24:D27) -> 26.7334573 | E28: =+Costos!F103 -> 0.2911507003
A29: TOTAL (Millones US$) | D29: =+D23+D28 -> 115.2492721
A30: Costo de Terminación por minuto (US$) | E30: =+Costos!Costoxmin -> 1.255165238

Sheet IN
A3: PARAMETROS DE DISEÑO
B6: PARAMETROS DE TRAFICO
C7: Porcentaje del tráfico diario a la hora pico | E7: 0.1
C8: Indice de Bloqueo | E8: 0.02
C9: Días efectivos x mes | E9: 22
C10: Data Overhead en Red de Agregación y Core | E10: 0.45
C11: 3G Soft Handover Overhead (Rsh) | E11: 1.3
B12: PARAMETROS FINANCIEROS
C13: Service Revenues (S/ 000000 ) [JuL15-Jun16] | E13: 3651 | F13: Merrill Lynch
C14: ARPU Promedio x mes (S/ ) [JuL15-Jun16] | E14: 25.2525 | F14: Merrill Lynch
C15: ARPU Voz Promedio x mes (S/ ) [JuL15-Jun16] | E15: =+E14*7.03/(7.03+1.95) -> 19.76893931 | F15: Pyramid adj.
C16: ARPU Datos Promedio x mes (S/ ) [JuL15-Jun16] | E16: =+E14*1.95/(7.03+1.95) -> 5.48356069 | F16: Pyramid adj.
C17: Tipo de Cambio 2Q-2016 | E17: 3.3285
C18: UIT (2016) | E18: 3950
B19: TASAS IMPOSITIVAS
C20: Tasa OSIPTEL | E20: 0.01
C21: TASA FITEL | E21: 0.005
C22: TASA MTC | E22: 0.005
C23: Canon Radioelectrico | E23: 0.0022
A26: AJUSTE DE PRECIOS
C31: Fecha de Corte del Modelo (Jun 2016) | E31: 6 | F31: 2016 | G31: =(F31-F32)*12+E31-E32 -> 30
E32: 12 | F32: 2013
B33: TASA DE AJUSTE DE PRECIOS
C34: Equipamiento de Telecomunicaciones | F34: Var Anual | G34: Var mensual
D35: Variación de Precios (Dec 2009 - Dec 2013) | F35: -0.0272
D36: Variacion de Precios (Dec 2013 - Jun 2016) | E36: -0.04 | F36: =(1+E36)^(12/$G$31)-1 -> -0.01619620566
D37: Variacion anual de Precios (Proyección) | F37: =F36 -> -0.01619620566 | G37: =(1+VarEquiposRAN)^(1/12)-1 -> -0.001359807773
C38: Servicios de Ing. e instalación Eq. Telecomunicaciones
D39: Variacion de Precios (Dec-2013 - Jun 2016) | E39: =+E36 -> -0.04 | F39: =(1+E39)^(12/$G$31)-1 -> -0.01619620566 | G39: =(1+F39)^(1/12)-1 -> -0.001359807773
D40: Variacion anual de Precios (Proyección) | F40: =F39 -> -0.01619620566
C41: Infraestructura (Terrenos)
D42: Variación de Precios (Dec 2009 - Dec 2013) | F42: 0.15
D43: Variacion de Precios (Dec-2013 - Jun 2016) | E43: -0.00184 | F43: =(1+E43)^(12/$G$31)-1 -> -0.0007364066712 | G43: =(1+F43)^(1/12)-1 -> -6.1387945e-05
D44: Variacion anual de Precios (Proyección) | F44: =F43 -> -0.0007364066712
C45: Mano de obra. (Obras Civiles)
D46: Variacion de Precios (Dec-2013 - Jun 2016) | E46: -0.05 | F46: =(1+E46)^(12/$G$31)-1 -> -0.02030826973 | G46: =(1+F46)^(1/12)-1 -> -0.001708315644
D47: Variacion anual de Precios (Proyección) | F47: =F46 -> -0.02030826973
C48: Materiales de construcción
D49: Variacion de Precios (Dec-2013 - Jun 2016) | E49: -0.085 | F49: =(1+E49)^(12/$G$31)-1 -> -0.03490861774 | G49: =(1+F49)^(1/12)-1 -> -0.0029566609
D50: Variacion anual de Precios (Proyección) | F50: =F49 -> -0.03490861774
B52: VIDA UTIL DE LOS COMPONENTES (Años)
D53: BTS, NODO-B | E53: 5
D54: Tx ENLACES | E54: 15
D55: Tx EQUIPOS | E55: 10
D56: Core | E56: 10
D57: IT | E57: 5
D58: Infra. BTS | E58: 15
D59: Infra. Tx | E59: 15
D60: Infra. CORE | E60: 20
D61: Espectro Radioelectrico | E61: 20
A63: COSTO DE EQUIPAMIENTO
A65: Equipos de Red de Acceso y Transporte
B67: Estaciones Base / Nodo-b | F67: Total 2Q 2016
C68: Estaciones Base 2G
D69: BTS TRXs (1-12) | F69: =P.U.!C15 -> 60887.2493
D70: BTS TRXs (13-24) | F70: =P.U.!D15 -> 83284.86496
D71: BTS TRXs (25-36) | F71: =P.U.!E15 -> 118676.6312
D72: BTS TRXs (37-48) | F72: =P.U.!F15 -> 154070.8551
C73: Nodo-b 3G
D74: Nodo B / 1 Sector/ 2 Portadoras / 384 CE Up Link / NAT | F74: =P.U.!C31 -> 55922.10798
D75: Nodo B / 3 Sectores / 6 Portadoras / 512 CE Up Link | F75: =P.U.!D31 -> 78798.75659
D76: Nodo B / 3 Sectores / 6 Portadoras / 768 CE Up Link | F76: =P.U.!E31 -> 88073.23398
D77: Nodo B / 3 Sectores / 6 Portadoras / 1024 CE Up Link | F77: =P.U.!F31 -> 101682.5769
D78: Nodo B / 3 Sectores / 6 Portadoras / 1536 CE Up Link | F78: =P.U.!G31 -> 120231.5317
D79: Nodo B / 3 Sectores / 6 Portadoras / 2048 CE Up Link | F79: =P.U.!H31 -> 138780.4865
D80: Nodo B / 3 Sectores / 6 Portadoras / 3072 CE Up Link | F80: =P.U.!I31 -> 175878.3961
B82: Transporte "Ultima Milla" | F82: Total 2Q 2016
C83: Enlaces de Fibra óptica
D84: Enlace Fibra Optica 1 | F84: =P.U.!H55 -> 12672
D85: Enlace Fibra Optica 2 | F85: =P.U.!H56 -> 8448
C86: Enlaces de Micro-Ondas
D87: Enlace MW 0.3m-0.6m Punto a Punto | F87: =P.U.!H113 -> 36482.304
D88: Enlace MW 1.2m-1.8m Punto a Punto | F88: =P.U.!H126 -> 49647.3216
D89: Enlace MW 2.4m-3.7m Punto a Punto | F89: =P.U.!H139 -> 61961.2032
D90: Enlaces MW TDM | F90: =P.U.!H145 -> 15235.2
C91: Enlaces Satelitales
D92: Adv.VSAT REMOTO | F92: =P.U.!H71 -> 28044.3888
D93: SCPC REMOTO | F93: =P.U.!H85 -> 61530.8256
D94: SCPC CinC REMOTO | F94: =P.U.!H100 -> 88642.6656
B95: Transporte Red de Acceso
C96: Routers Red de acceso | F96: =P.U.!H152 -> 8736
B98: Transporte Red de Agregación y Core
C99: Ingeniería | E99: 0.1
F101: Total 2Q 2016
C102: Routers IPRAN | F102: =P.U.!H153 -> 31200
C103: Routers Agregación (MPLS) | F103: =P.U.!H159 -> 248832
C104: Routers IPCORE | F104: =P.U.!H160 -> 518400
C105: Routers Anillo Metro IP | F105: =P.U.!H161 -> 207360
C106: Nodos Metropolitan (Equipo Basico) | F106: =P.U.!H162 -> 372000
C107: Nodos Metropolitan (Expansión λ 10G) | F107: =P.U.!H163 -> 28992
C108: Nodos Metropolitan (Expansión λ 100G) | F108: =P.U.!H164 -> 208800
C109: Nodos Metropolitan (Expansión STM1) | F109: =P.U.!H165 -> 17376
C110: Nodos Dorsal FO (Equipo Basico) | F110: =P.U.!H166 -> 372000
C111: Nodos Dorsal FO (Expansión λ) | F111: =P.U.!H167 -> 28992
C112: Nodos Dorsal FO (Expansión STM1) | F112: =P.U.!H168 -> 17376
C113: Nodos Dorsal FO (Equipo Basico) | F113: =P.U.!H169 -> 372000
C114: Nodos Dorsal FO (Expansión λ) | F114: =P.U.!H170 -> 28992
C115: Nodos Dorsal FO (Expansión STM1) | F115: =P.U.!H171 -> 17376
C116: Nodos Dorsal MW (Equipo Basico) | F116: =P.U.!H172 -> 343200
C117: Nodos Dorsal MW (Expansión) | F117: =P.U.!H173 -> 42240
A120: Equipos de CORE
B123: CORE | E123: P.U. 2Q 2016 | F123: Total 2Q 2016
C124: BSC
D125: Precio BSC (según capacidad) | E125: =P.U.!H202 -> 2555.473622 | F125: =+E125*F126/E126 -> 1829719.114
D126: Capacidad de TRXs | E126: 1 | F126: =CORE!C7 -> 716
C127: RNC
D128: Precio RNC (según capacidad) | E128: =P.U.!H213 -> 1899.2544 | F128: =+E128*F129/E129 -> 3342687.744
D129: Capacidad en BW (Mbps) | E129: 1 | F129: =CORE!C39 -> 1760
C130: TSCM
D131: Precio TSCM (según capacidad) | E131: =P.U.!H201 -> 55100.13547 | F131: =+E131*F132/E132 -> 444474.4261
D132: Capacidad en TCH | E132: 960 | F132: =CORE!C21 -> 7744
C133: Ater in MGW
D134: Precio TSCM (según capacidad) | E134: =P.U.!H221 -> 37.44 | F134: =+E134*F135/E135 -> 290384.64
D135: Capacidad en TCH | E135: 1 | F135: =CORE!C56 -> 7756
C136: MSS
D137: Precio MSS (según capacidad) | E137: =P.U.!H200 -> 0.8486375709 | F137: =+E137*F138/E138 -> 1620049.123
D138: Capacidad usuarios /BHCA | E138: 1 | F138: =CORE!C72 -> 1909000
C139: MGW
D140: Precio MGW (según capacidad) | E140: =P.U.!H199 -> 134.399534 | F140: =+E140*F141/E141 -> 3264027.084
D141: Capacidad de Trafico Erlangs | E141: 1 | F141: =CORE!C88 -> 24286
C142: HLR
D143: Precio HLR (según capacidad) | E143: =P.U.!H203 -> 1.046237247 | F143: =+E143*F144/E144 -> 3557206.64
D144: Capacidad Usuarios (BHCA) | E144: 1 | F144: =CORE!C107 -> 3400000
C145: STP
D146: Precio STP (según capacidad) | E146: =P.U.!H207 -> 68.77893832 | F146: =+E146*F147/E147 -> 4470630.991
D147: Capacidad TPS | E147: 1 | F147: =CORE!C123 -> 65000
C148: IP Clock
D149: IP CLOCK 1 | F149: =P.U.!H219 -> 19579.26432
D150: IP CLOCK 2 | F150: =P.U.!H220 -> 24975.32928
C151: SBC
D152: SBC 1 | F152: =P.U.!H218 -> 137280
D153: SBC 2 | F153: =+P.U.!H218 -> 137280
B154: IT
D155: Interconnection Billing | F155: =P.U.!H228 -> 1549767.835
D156: Data Ware House | F156: =P.U.!H229 -> 10345212.06
D157: Mediation | F157: =P.U.!H230 -> 762844.2965
A160: COSTO DE INFRAESTRUCTURA
B163: Infraestructura EB | F163: Total 2Q 2016
C164: Sites Indoor c/Antenas < 21 | F164: =P.U.!H41 -> 33600
C165: Sites Indoor 20 > c/antenas < 61 | F165: =+P.U.!H42 -> 134400
C166: Sites Indoor c/Antenas > 60 | F166: =+P.U.!H43 -> 240000
C167: Sites NAT | F167: =+P.U.!H44 -> 12480
C168: Sites Rooftop | F168: =P.U.!H45 -> 73117.03756
C169: Sites Greenfield 30 | F169: =P.U.!H46 -> 123819.0061
C170: Sites Greenfield 42 | F170: =P.U.!H47 -> 145886.6101
C171: Sites Greenfield 72 | F171: =P.U.!H48 -> 234142.1416
B173: Infraestructura Transporte | F173: Total 2Q 2016
C174: ACCESO
D175: Routers red de Acceso | F175: =P.U.!H181 -> 4032
D176: IPRAN | F176: =P.U.!H182 -> 18000
C177: AGREGACION Y CORE
D178: Agregación | F178: =P.U.!H184 -> 110592
D179: Core IP | F179: =P.U.!H185 -> 230400
D180: Anilos Metro IP (x router) | F180: =P.U.!H186 -> 92160
D181: FO Planta (x Km) | F181: =P.U.!H187 -> 44685.12
D182: Metropolitan BB | F182: =P.U.!H188 -> 137250
D183: Dorsal FO | F183: =P.U.!H189 -> 137250
D184: Dorsal FO | F184: =P.U.!H190 -> 137250
D185: Dorsal MW | F185: =P.U.!H191 -> 164700
B187: Infraestructura CORE | F187: Total 2Q 2016
D188: BSC/Transcode | F188: =P.U.!K242 -> 103923.2748
D189: RNC | F189: =P.U.!K241 -> 103923.2748
D190: MSS | F190: =P.U.!K240 -> 186772.7094
D191: MGW | F191: =P.U.!K239 -> 144625.0292
D192: HLR | F192: =P.U.!K243 -> 193284.9901
D193: STP | F193: =P.U.!K247 -> 103923.2748

Sheet P.U.
A2: BTS GSM
B3: Precios US$ 2009 (4Q)
B5: Celdas Portadoras | C5: TRX | D5: TRX | E5: TRX | F5: TRX
B6: BTS Standard | C6: 1-12 | D6: 13-24 | E6: 25-36 | F6: 37-48
B7: BTS outdoor, 3 sectores, incluye gabinetes y transporte hasta el site | C7: 46580.3604 | D7: 67166.82473 | E7: 104026.7403 | F7: 140995.4175
B8: MHA Dual, combinadores, multiacopladores. | C8: 4835.25 | D8: 7465.5 | E8: 7465.5 | F8: 7465.5
B9: Antenas / 3 sectores | C9: 2835 | D9: 5670 | E9: 5670 | F9: 5670
B10: Power System | C10: 11320.197 | D10: 11320.197 | E10: 15206.1 | F10: 19406.1
B11: Software de planificacion, optimizacion, base de datos de mapas | C11: 210 | D11: 210 | E11: 210 | F11: 210
B12: Servicios de Planificación de Radiofrecuencia | C12: 5040 | D12: 5040 | E12: 5460 | F12: 5460
B13: Total | C13: =SUM(C7:C12) -> 70820.8074 | D13: =SUM(D7:D12) -> 96872.52173 | E13: =SUM(E7:E12) -> 138038.3403 | F13: =SUM(F7:F12) -> 179207.0175
B14: Precios a 4Q 2013 | C14: =C13*POWER(1+IN!$F$35,4) -> 63424.21802 | D14: =D13*POWER(1+IN!$F$35,4) -> 86755.06767 | E14: =E13*POWER(1+IN!$F$35,4) -> 123621.4908 | F14: =F13*POWER(1+IN!$F$35,4) -> 160490.474
B15: Precios a 2Q 2016 | C15: =C14*POWER(1+IN!$G$37,IN!$G$31) -> 60887.2493 | D15: =D14*POWER(1+IN!$G$37,IN!$G$31) -> 83284.86496 | E15: =E14*POWER(1+IN!$G$37,IN!$G$31) -> 118676.6312 | F15: =F14*POWER(1+IN!$G$37,IN!$G$31) -> 154070.8551
A17: Nodos B
B18: Precios USD 2013 (4Q)
C20: Nodo B Tipo 1 | D20: Nodo B Tipo 2 | E20: Nodo B Tipo 3 | F20: Nodo B Tipo 4 | G20: Nodo B Tipo 5 | H20: Nodo B Tipo 6 | I20: Nodo B Tipo 7
B21: Detalle | C21: Nodo B / 1 Sector/ 2 Portadoras / 384 CE Up Link / NAT | D21: Nodo B / 3 Sectores / 6 Portadoras / 512 CE Up Link | E21: Nodo B / 3 Sectores / 6 Portadoras / 768 CE Up Link | F21: Nodo B / 3 Sectores / 6 Portadoras / 1024 CE Up Link | G21: Nodo B / 3 Sectores / 6 Portadoras / 1536 CE Up Link | H21: Nodo B / 3 Sectores / 6 Portadoras / 2048 CE Up Link | I21: Nodo B / 3 Sectores / 6 Portadoras / 3072 CE Up Link
B22: Equipamiento Nodo B | C22: 28752.19581 | D22: 47282.03811 | E22: 56942.95206 | F22: 71119.35098 | G22: 90441.17889 | H22: 109763.0068 | I22: 148406.6626
B23: Antena | C23: 4500 | D23: =1200*3 -> 3600 | E23: =1200*3 -> 3600 | F23: =1200*3 -> 3600 | G23: =1200*3 -> 3600 | H23: 3600 | I23: 3600
B24: Power System (Reforzamiento de Rectificador + Banco de Baterias) | C24: 4000 | D24: 4000 | E24: 4000 | F24: 4000 | G24: 4000 | H24: 4000 | I24: 4000
B25: Adecuacion del Site para soportar red 3G, soportes, refuerzo de torres/mastil, aterramiento, cableados coaxiales e incremento por Site Adquisition | C25: 2000 | D25: 4200 | E25: 4200 | F25: 4200 | G25: 4200 | H25: 4200 | I25: 4200
B26: Site Survey para elaboración de Proyecto, proyecto, Instalación, comisionamiento, Integración, Materiales de Instalación locales,traslado de equipos y materiales a Nivel Nacional | C26: 6000 | D26: 10000 | E26: 10000 | F26: 10000 | G26: 10000 | H26: 10000 | I26: 10000
B27: Servicios de Inicial Tunning (Drive Test, Posprocesamiento, Cambio de parametros fisicos y logicos) a Nivel Nacional | C27: 8500 | D27: 8500 | E27: 8500 | F27: 8500 | G27: 8500 | H27: 8500 | I27: 8500
B28: Project Management & Servicios Profesionales | C28: 1000 | D28: 1000 | E28: 1000 | F28: 1000 | G28: 1000 | H28: 1000 | I28: 1000
B29: Servicios Planificación (Site Survey para Radio Network Design, Radio Network Design, Network Dimensioning, Data Fill, elaboración de Data Fill para conectividad) | C29: 3500 | D29: 3500 | E29: 3500 | F29: 3500 | G29: 3500 | H29: 3500 | I29: 3500
B30: Costo Estación 3G | C30: =SUM(C22:C29) -> 58252.19581 | D30: =SUM(D22:D29) -> 82082.03811 | E30: =SUM(E22:E29) -> 91742.95206 | F30: =SUM(F22:F29) -> 105919.351 | G30: =SUM(G22:G29) -> 125241.1789 | H30: 144563.0068 | I30: 183206.6626
B31: Precios 2Q 2016 | C31: =SUM(C22:C24)*(1+IN!$G$37)^IN!$G$31+SUM(C25:C29)*(1+IN!$G$39)^IN!$G$31 -> 55922.10798 | D31: =SUM(D22:D24)*(1+IN!$G$37)^IN!$G$31+SUM(D25:D29)*(1+IN!$G$39)^IN!$G$31 -> 78798.75659 | E31: =SUM(E22:E24)*(1+IN!$G$37)^IN!$G$31+SUM(E25:E29)*(1+IN!$G$39)^IN!$G$31 -> 88073.23398 | F31: =SUM(F22:F24)*(1+IN!$G$37)^IN!$G$31+SUM(F25:F29)*(1+IN!$G$39)^IN!$G$31 -> 101682.5769 | G31: =SUM(G22:G24)*(1+IN!$G$37)^IN!$G$31+SUM(G25:G29)*(1+IN!$G$39)^IN!$G$31 -> 120231.5317 | H31: =SUM(H22:H24)*(1+IN!$G$37)^IN!$G$31+SUM(H25:H29)*(1+IN!$G$39)^IN!$G$31 -> 138780.4865 | I31: =SUM(I22:I24)*(1+IN!$G$37)^IN!$G$31+SUM(I25:I29)*(1+IN!$G$39)^IN!$G$31 -> 175878.3961
A34: Infraestructura Red de Acceso
B35: Precios 2009
B37: Elementos de Red | C37: Site Adquisition | D37: Infraestructura | E37: Telecom Implementation | F37: Total 4Q 2009 | G37: Total 4Q 2013 | H37: Total 2Q 2016
B38: BDA | C38: 0 | D38: 0 | E38: 3354.83871 | F38: =SUM(C38:E38) -> 3354.83871 | G38: =+C38*POWER(1+15%,4)+D38+E38 -> 3354.83871 | H38: =+C38*POWER(1+15%,4)*POWER(1+IN!$G$43,IN!$G$31)+D38*POWER(1+IN!$G$49,IN!$G$31)+E38*POWER(1+IN!$G$46,IN!$G$31) -> 3187.096774
B39: Repetidor Indoor | C39: 0 | D39: 5000 | E39: 4193.548387 | F39: =SUM(C39:E39) -> 9193.548387 | G39: =+C39*POWER(1+15%,4)+D39+E39 -> 9193.548387 | H39: =+C39*POWER(1+15%,4)*POWER(1+IN!$G$43,IN!$G$31)+D39*POWER(1+IN!$G$49,IN!$G$31)+E39*POWER(1+IN!$G$46,IN!$G$31) -> 8558.870968
B40: Repetidor Outdoor | C40: 7180 | D40: 76042.07972 | E40: 5161.290323 | F40: 88383.37004 | G40: 93761.23492 | H40: =+C40*POWER(1+15%,4)*POWER(1+IN!$G$43,IN!$G$31)+D40*POWER(1+IN!$G$49,IN!$G$31)+E40*POWER(1+IN!$G$46,IN!$G$31) -> 87016.48715
B41: Sites Indoor c/Antenas < 21 | G41: 35000 | H41: =+G41*POWER(1+IN!$G$39,IN!$G$31) -> 33600
B42: Sites Indoor 20 > c/antenas < 61 | G42: 140000 | H42: =+G42*POWER(1+IN!$G$39,IN!$G$31) -> 134400
B43: Sites Indoor c/Antenas > 60 | G43: 250000 | H43: =+G43*POWER(1+IN!$G$39,IN!$G$31) -> 240000
B44: Sites NAT/Poste | G44: 13000 | H44: =+G44*POWER(1+IN!$G$39,IN!$G$31) -> 12480
B45: Rooftop | C45: 6121.18 | D45: 61346.54972 | E45: 6630.17 | F45: 74097.89972 | G45: 78682.7018 | H45: =+C45*POWER(1+15%,4)*POWER(1+IN!$G$43,IN!$G$31)+D45*POWER(1+IN!$G$49,IN!$G$31)+E45*POWER(1+IN!$G$46,IN!$G$31) -> 73117.03756
B46: Greenfiled 30 M | C46: 7180 | D46: 112835.8642 | E46: 8462.56 | F46: 128478.4242 | G46: 133856.2891 | H46: =+C46*POWER(1+15%,4)*POWER(1+IN!$G$43,IN!$G$31)+D46*POWER(1+IN!$G$49,IN!$G$31)+E46*POWER(1+IN!$G$46,IN!$G$31) -> 123819.0061
B47: Greenfield 42 M | C47: 7180 | D47: 136953.4642 | E47: 8462.56 | F47: 152596.0242 | G47: 157973.8891 | H47: =+C47*POWER(1+15%,4)*POWER(1+IN!$G$43,IN!$G$31)+D47*POWER(1+IN!$G$49,IN!$G$31)+E47*POWER(1+IN!$G$46,IN!$G$31) -> 145886.6101
B48: Greenfield 72 M | C48: 7180 | D48: 229011.4642 | E48: 12696.73 | F48: 248888.1942 | G48: 254266.0591 | H48: =+C48*POWER(1+15%,4)*POWER(1+IN!$G$43,IN!$G$31)+D48*POWER(1+IN!$G$49,IN!$G$31)+E48*POWER(1+IN!$G$46,IN!$G$31) -> 234142.1416
B49: Delta para Dorsales y Fibra óptica. | C49: 0 | D49: 110000 | E49: 0 | F49: 110000 | G49: 110000 | H49: =+C49*POWER(1+15%,4)*POWER(1+IN!$G$43,IN!$G$31)+D49*POWER(1+IN!$G$49,IN!$G$31)+E49*POWER(1+IN!$G$46,IN!$G$31) -> 100650
A52: ENLACE DE FIBRA OPTICA (Ultima Milla)
B53: Precios USD 2013 (4Q)
C54: UND. | D54: CANT. | E54: P UNIT. Eq. | F54: P.UNIT. Inst. | G54: Total 4Q 2013 | H54: Total 2Q 2016
B55: Enlace Fibra Optica 1 | C55: UND. | D55: 1 | E55: 4400 | F55: 8800 | G55: =+D55*(E55+F55) -> 13200 | H55: =D55*(E55*POWER(1+IN!$G$37,IN!$G$31)+F55*POWER(1+IN!$G$39,IN!$G$31)) -> 12672
B56: Enlace Fibra Optica 2 | C56: UND. | D56: 1 | E56: 0 | F56: 8800 | G56: =+D56*(E56+F56) -> 8800 | H56: =D56*(E56*POWER(1+IN!$G$37,IN!$G$31)+F56*POWER(1+IN!$G$39,IN!$G$31)) -> 8448
A59: Adv.VSAT REMOTO
B60: Precios USD 2013 (4Q)
B62: DESCRIPCION | C62: UND. | D62: CANT. | E62: P UNIT. Eq. | F62: P.UNIT. Inst. | G62: Total 4Q 2013 | H62: Total 2Q 2016
B63: Antena 2.4m, C band Rx/Tx Linear, Cross Pol. Tx Port Feed | C63: UND. | D63: 1 | E63: 3946.8 | G63: =+D63*(E63+F63) -> 3946.8 | H63: =D63*(E63*POWER(1+IN!$G$37,IN!$G$31)+F63*POWER(1+IN!$G$39,IN!$G$31)) -> 3788.928
B64: KIT Feed TX 2.4m, C band Rx/Tx Linear, Cross Pol. | C64: UND. | D64: 1 | E64: 1372.8 | G64: =+D64*(E64+F64) -> 1372.8 | H64: =D64*(E64*POWER(1+IN!$G$37,IN!$G$31)+F64*POWER(1+IN!$G$39,IN!$G$31)) -> 1317.888
B65: DST-C EF Data, BUC 5W | C65: UND. | D65: 1 | E65: 1681.68 | G65: 1681.68 | H65: =D65*(E65*POWER(1+IN!$G$37,IN!$G$31)+F65*POWER(1+IN!$G$39,IN!$G$31)) -> 1614.4128
B66: DST-C EF Data, LNB | C66: UND. | D66: 1 | E66: 617.76 | G66: 617.76 | H66: =D66*(E66*POWER(1+IN!$G$37,IN!$G$31)+F66*POWER(1+IN!$G$39,IN!$G$31)) -> 593.0496
B67: Adv. VSAT, -48VDC, Tx V_FEC 1024K, Rx 45Mbps | C67: UND. | D67: 1 | E67: 8745.165 | G67: 8745.165 | H67: =D67*(E67*POWER(1+IN!$G$37,IN!$G$31)+F67*POWER(1+IN!$G$39,IN!$G$31)) -> 8395.3584
B68: Instalación de Sistema AdvVSAT remoto y local | C68: UND. | D68: 1 | F68: 5000 | G68: 5000 | H68: =D68*(E68*POWER(1+IN!$G$37,IN!$G$31)+F68*POWER(1+IN!$G$39,IN!$G$31)) -> 4800
B69: Servicios de Transporte Almacenes a Sitio | C69: UND. | D69: 1 | F69: 2000 | G69: 2000 | H69: =D69*(E69*POWER(1+IN!$G$37,IN!$G$31)+F69*POWER(1+IN!$G$39,IN!$G$31)) -> 1920
B70: Cargo por HUB AdvVSAT | D70: 1 | E70: 5848.7 | G70: 5848.7 | H70: =D70*(E70*POWER(1+IN!$G$37,IN!$G$31)+F70*POWER(1+IN!$G$39,IN!$G$31)) -> 5614.752
B71: SUBTOTAL | G71: =SUM(G63:G70) -> 29212.905 | H71: =SUM(H63:H70) -> 28044.3888
A74: SCPC REMOTO
B77: DESCRIPCION | C77: UND. | D77: CANT. | E77: P UNIT. Eq. FOB | F77: P.UNIT. Inst. | G77: Total 4Q 2013 | H77: Total 2Q 2016
B78: Antena 2.4m, C band Rx/Tx Linear, Cross Pol. Tx Port Feed "N" | C78: UND. | D78: 1 | E78: 2545.4 | G78: =+D78*(E78+F78) -> 2545.4 | H78: =D78*(E78*POWER(1+IN!$G$37,IN!$G$31)+F78*POWER(1+IN!$G$39,IN!$G$31)) -> 2443.584
B79: KIT Feed, C band Rx/Tx Linear, Cross Pol. | C79: UND. | D79: 1 | E79: 1372.8 | G79: 1372.8 | H79: =D79*(E79*POWER(1+IN!$G$37,IN!$G$31)+F79*POWER(1+IN!$G$39,IN!$G$31)) -> 1317.888
B80: Transceiver + LNA | C80: UND. | D80: 1 | E80: 14996.41 | G80: 14996.41 | H80: =D80*(E80*POWER(1+IN!$G$37,IN!$G$31)+F80*POWER(1+IN!$G$39,IN!$G$31)) -> 14396.5536
B81: Modem | C81: UND. | D81: 2 | E81: 17160 | G81: 34320 | H81: =D81*(E81*POWER(1+IN!$G$37,IN!$G$31)+F81*POWER(1+IN!$G$39,IN!$G$31)) -> 32947.2
B82: Instalación de Sistema SCPC remoto y local | C82: UND. | D82: 1 | F82: 6000 | G82: 6000 | H82: =D82*(E82*POWER(1+IN!$G$37,IN!$G$31)+F82*POWER(1+IN!$G$39,IN!$G$31)) -> 5760
B83: Servicios de Transporte Almacenes a Sitio | C83: UND. | D83: 1 | F83: 2000 | G83: 2000 | H83: =D83*(E83*POWER(1+IN!$G$37,IN!$G$31)+F83*POWER(1+IN!$G$39,IN!$G$31)) -> 1920
B84: Cargo por HUB SCPC | D84: 1 | E84: 2860 | G84: 2860 | H84: =D84*(E84*POWER(1+IN!$G$37,IN!$G$31)+F84*POWER(1+IN!$G$39,IN!$G$31)) -> 2745.6
B85: SUBTOTAL | G85: =SUM(G78:G84) -> 64094.61 | H85: =SUM(H78:H84) -> 61530.8256
A88: SCPC CinC REMOTO
B89: Precios USD 2013 (4Q)
B91: DESCRIPCION | C91: UND. | D91: CANT. | E91: P UNIT. Eq. FOB | F91: P.UNIT. Inst. | G91: Total 4Q 2013 | H91: Total 2Q 2016
B92: Antena 2.4m, C band Rx/Tx Linear, Cross Pol. Tx Port Feed "N" | C92: UND. | D92: 1 | E92: 2545.4 | G92: =+D92*(E92+F92) -> 2545.4 | H92: =D92*(E92*POWER(1+IN!$G$37,IN!$G$31)+F92*POWER(1+IN!$G$39,IN!$G$31)) -> 2443.584
B93: KIT Feed, C band Rx/Tx Linear, Cross Pol. | C93: UND. | D93: 1 | E93: 1372.8 | G93: =+D93*(E93+F93) -> 1372.8 | H93: =D93*(E93*POWER(1+IN!$G$37,IN!$G$31)+F93*POWER(1+IN!$G$39,IN!$G$31)) -> 1317.888
B94: Transceiver + LNA | C94: UND. | D94: 1 | E94: 14996.41 | G94: 14996.41 | H94: =D94*(E94*POWER(1+IN!$G$37,IN!$G$31)+F94*POWER(1+IN!$G$39,IN!$G$31)) -> 14396.5536
B95: Modem with CinC | C95: UND. | D95: 2 | E95: 27713.4 | G95: 55426.8 | H95: =D95*(E95*POWER(1+IN!$G$37,IN!$G$31)+F95*POWER(1+IN!$G$39,IN!$G$31)) -> 53209.728
B96: Ippacket Procesor Board | C96: UND. | D96: 1 | E96: 6134.7 | G96: 6134.7 | H96: =D96*(E96*POWER(1+IN!$G$37,IN!$G$31)+F96*POWER(1+IN!$G$39,IN!$G$31)) -> 5889.312
B97: Instalación de Sistema SCPC remoto y local | C97: UND. | D97: 1 | F97: 7000 | G97: 7000 | H97: =D97*(E97*POWER(1+IN!$G$37,IN!$G$31)+F97*POWER(1+IN!$G$39,IN!$G$31)) -> 6720
B98: Servicios de Transporte Almacenes a Sitio | C98: UND. | D98: 1 | F98: 2000 | G98: 2000 | H98: =D98*(E98*POWER(1+IN!$G$37,IN!$G$31)+F98*POWER(1+IN!$G$39,IN!$G$31)) -> 1920
B99: Cargo por HUB SCPC | D99: 1 | E99: 2860 | G99: 2860 | H99: =D99*(E99*POWER(1+IN!$G$37,IN!$G$31)+F99*POWER(1+IN!$G$39,IN!$G$31)) -> 2745.6
B100: SUBTOTAL | G100: =SUM(G92:G99) -> 92336.11 | H100: =SUM(H92:H99) -> 88642.6656
A103: Enlace MW 0.3m-0.6m Punto a Punto
B104: Precios USD 2013 (4Q)
B106: DESCRIPCION | C106: UND. | D106: CANT. | E106: P UNIT. Eq. | F106: P.UNIT. Inst. | G106: Total 4Q 2013 | H106: Total 2Q 2016
B107: ODU High 23GHz | C107: UND. | D107: 1 | E107: 9026.16 | G107: =+D107*(E107+F107) -> 9026.16 | H107: =D107*(E107*POWER(1+IN!$G$37,IN!$G$31)+F107*POWER(1+IN!$G$39,IN!$G$31)) -> 8665.1136
B108: ODU Low 23GHz | C108: UND. | D108: 1 | E108: 9026.16 | G108: 9026.16 | H108: =D108*(E108*POWER(1+IN!$G$37,IN!$G$31)+F108*POWER(1+IN!$G$39,IN!$G$31)) -> 8665.1136
B109: Antena 0.6m rango 23GHz | C109: UND. | D109: 2 | E109: 1003.86 | G109: 2007.72 | H109: =D109*(E109*POWER(1+IN!$G$37,IN!$G$31)+F109*POWER(1+IN!$G$39,IN!$G$31)) -> 1927.4112
B110: IDU | C110: UND. | D110: 2 | E110: 5471.18 | G110: 10942.36 | H110: =D110*(E110*POWER(1+IN!$G$37,IN!$G$31)+F110*POWER(1+IN!$G$39,IN!$G$31)) -> 10504.6656
B111: Instalación de Sistema Punto a Punto MW | C111: UND. | D111: 1 | F111: 5000 | G111: 5000 | H111: =D111*(E111*POWER(1+IN!$G$37,IN!$G$31)+F111*POWER(1+IN!$G$39,IN!$G$31)) -> 4800
B112: Integración, Conectividad y Gestión | C112: UND. | D112: 1 | F112: 2000 | G112: 2000 | H112: =D112*(E112*POWER(1+IN!$G$37,IN!$G$31)+F112*POWER(1+IN!$G$39,IN!$G$31)) -> 1920
B113: SUBTOTAL | G113: =SUM(G107:G112) -> 38002.4 | H113: =SUM(H107:H112) -> 36482.304
A116: Enlace MW 1.2m-1.8m Punto a Punto
B117: Precios USD 2013 (4Q)
B119: DESCRIPCION | C119: UND. | D119: CANT. | E119: P UNIT. Eq. | F119: P.UNIT. Inst. | G119: Total 4Q 2013 | H119: Total 2Q 2016
B120: ODU High 7GHz | C120: UND. | D120: 1 | E120: 8903.18 | G120: =+D120*(E120+F120) -> 8903.18 | H120: =D120*(E120*POWER(1+IN!$G$37,IN!$G$31)+F120*POWER(1+IN!$G$39,IN!$G$31)) -> 8547.0528
B121: ODU Low 7GHz | C121: UND. | D121: 1 | E121: 8903.18 | G121: 8903.18 | H121: =D121*(E121*POWER(1+IN!$G$37,IN!$G$31)+F121*POWER(1+IN!$G$39,IN!$G$31)) -> 8547.0528
B122: Antena 1.8m rango 7GHz | C122: UND. | D122: 2 | E122: 6483.62 | G122: 12967.24 | H122: =D122*(E122*POWER(1+IN!$G$37,IN!$G$31)+F122*POWER(1+IN!$G$39,IN!$G$31)) -> 12448.5504
B123: IDU | C123: UND. | D123: 2 | E123: 5471.18 | G123: 10942.36 | H123: =D123*(E123*POWER(1+IN!$G$37,IN!$G$31)+F123*POWER(1+IN!$G$39,IN!$G$31)) -> 10504.6656
B124: Instalación de Sistema Punto a Punto MW | C124: UND. | D124: 1 | F124: 7000 | G124: 7000 | H124: =D124*(E124*POWER(1+IN!$G$37,IN!$G$31)+F124*POWER(1+IN!$G$39,IN!$G$31)) -> 6720
B125: Integración, Conectividad y Gestión | C125: UND. | D125: 1 | F125: 3000 | G125: 3000 | H125: =D125*(E125*POWER(1+IN!$G$37,IN!$G$31)+F125*POWER(1+IN!$G$39,IN!$G$31)) -> 2880
B126: SUBTOTAL | G126: =SUM(G120:G125) -> 51715.96 | H126: =SUM(H120:H125) -> 49647.3216
A129: Enlace MW 2.4m-3.7m Punto a Punto
B130: Precios USD 2013 (4Q)
B132: DESCRIPCION | C132: UND. | D132: CANT. | E132: P UNIT. Eq. | F132: P.UNIT. Inst. | G132: Total 4Q 2013 | H132: Total 2Q 2016
B133: ODU High 7GHz | C133: UND. | D133: 1 | E133: 8903.18 | G133: =+D133*(E133+F133) -> 8903.18 | H133: =D133*(E133*POWER(1+IN!$G$37,IN!$G$31)+F133*POWER(1+IN!$G$39,IN!$G$31)) -> 8547.0528
B134: ODU Low 7GHz | C134: UND. | D134: 1 | E134: 8903.18 | G134: 8903.18 | H134: =D134*(E134*POWER(1+IN!$G$37,IN!$G$31)+F134*POWER(1+IN!$G$39,IN!$G$31)) -> 8547.0528
B135: Antena 2.4m rango 7GHz | C135: UND. | D135: 2 | E135: 11397.1 | G135: 22794.2 | H135: =D135*(E135*POWER(1+IN!$G$37,IN!$G$31)+F135*POWER(1+IN!$G$39,IN!$G$31)) -> 21882.432
B136: IDU | C136: UND. | D136: 2 | E136: 5471.18 | G136: 10942.36 | H136: =D136*(E136*POWER(1+IN!$G$37,IN!$G$31)+F136*POWER(1+IN!$G$39,IN!$G$31)) -> 10504.6656
B137: Instalación de Sistema Punto a Punto MW | C137: UND. | D137: 1 | F137: 9000 | G137: 9000 | H137: =D137*(E137*POWER(1+IN!$G$37,IN!$G$31)+F137*POWER(1+IN!$G$39,IN!$G$31)) -> 8640
B138: Integración, Conectividad y Gestión | C138: UND. | D138: 1 | F138: 4000 | G138: 4000 | H138: =D138*(E138*POWER(1+IN!$G$37,IN!$G$31)+F138*POWER(1+IN!$G$39,IN!$G$31)) -> 3840
B139: SUBTOTAL | G139: =SUM(G133:G138) -> 64542.92 | H139: =SUM(H133:H138) -> 61961.2032
A141: Enlaces MW PDH
B142: Precios USD 2013 (4Q)
B144: DESCRIPCION | C144: UND. | D144: CANT. | E144: P UNIT. Eq. | F144: P.UNIT. Inst. | G144: Total 4Q 2013 | H144: Total 2Q 2016
B145: Enlace PDH | C145: UND. | D145: 1 | E145: 12870 | F145: 3000 | G145: =+D145*(E145+F145) -> 15870 | H145: =D145*(E145*POWER(1+IN!$G$37,IN!$G$31)+F145*POWER(1+IN!$G$39,IN!$G$31)) -> 15235.2
A148: TRANSPORTE RED DE ACCESO
B149: Precios USD 2013 (4Q)
B151: DESCRIPCION | C151: UND. | D151: CANT. | E151: P UNIT. Eq. | F151: P.UNIT. Inst. | G151: Total 4Q 2013 | H151: Total 2Q 2016
B152: Routers Red de acceso | C152: UND. | D152: 1 | E152: 7000 | F152: 2100 | G152: =+D152*(E152+F152) -> 9100 | H152: =D152*(E152*POWER(1+IN!$G$37,IN!$G$31)+F152*POWER(1+IN!$G$39,IN!$G$31)) -> 8736
B153: Routers IPRAN | C153: UND. | D153: 1 | E153: 25000 | F153: 7500 | G153: =+D153*(E153+F153) -> 32500 | H153: =D153*(E153*POWER(1+IN!$G$37,IN!$G$31)+F153*POWER(1+IN!$G$39,IN!$G$31)) -> 31200
A155: TRANSPORTE RED DE AGREGACION Y CORE
B156: Precios USD 2013 (4Q)
B158: DESCRIPCION | C158: UND. | D158: CANT. | E158: P UNIT. Eq. | F158: P.UNIT. Inst. | G158: Total 4Q 2013 | H158: Total 2Q 2016
B159: Routers Agregación (MPLS) | C159: UND. | D159: 1 | E159: 192000 | F159: 48000 | G159: =+D159*(E159*(1+IN!$E$99)+F159) -> 259200 | H159: =D159*(E159*(1+IN!$E$99)*POWER(1+IN!$G$37,IN!$G$31)+F159*POWER(1+IN!$G$39,IN!$G$31)) -> 248832
B160: Routers IPCORE | C160: UND. | D160: 1 | E160: 400000 | F160: 100000 | G160: =+D160*(E160*(1+IN!$E$99)+F160) -> 540000 | H160: =D160*(E160*(1+IN!$E$99)*POWER(1+IN!$G$37,IN!$G$31)+F160*POWER(1+IN!$G$39,IN!$G$31)) -> 518400
B161: Routers Anillo Metro IP | C161: UND. | D161: 1 | E161: 160000 | F161: 40000 | G161: =+D161*(E161*(1+IN!$E$99)+F161) -> 216000 | H161: =D161*(E161*(1+IN!$E$99)*POWER(1+IN!$G$37,IN!$G$31)+F161*POWER(1+IN!$G$39,IN!$G$31)) -> 207360
B162: Nodos Metropolitan (Equipo Basico) | C162: UND. | D162: 1 | E162: 325000 | F162: 30000 | G162: =+D162*(E162*(1+IN!$E$99)+F162) -> 387500 | H162: =D162*(E162*(1+IN!$E$99)*POWER(1+IN!$G$37,IN!$G$31)+F162*POWER(1+IN!$G$39,IN!$G$31)) -> 372000
B163: Nodos Metropolitan (Expansión λ 10G) | C163: Per λ 10G | D163: 2 | E163: 11000 | F163: 6000 | G163: =+D163*E163*(1+IN!$E$99)+F163 -> 30200 | H163: =D163*E163*(1+IN!$E$99)*POWER(1+IN!$G$37,IN!$G$31)+F163*POWER(1+IN!$G$39,IN!$G$31) -> 28992
B164: Nodos Metropolitan (Expansión λ 100G)* | C164: Per λ 100G | D164: 2 | E164: 84000 | F164: 24000 | H164: =+D164*E164*(1+IN!$E$99)+F164 -> 208800
B165: Nodos Metropolitan (Expansión STM1) | C165: Per STM1 | D165: 1 | E165: 11000 | F165: 6000 | G165: =+D165*(E165*(1+IN!$E$99)+F165) -> 18100 | H165: =D165*(E165*(1+IN!$E$99)*POWER(1+IN!$G$37,IN!$G$31)+F165*POWER(1+IN!$G$39,IN!$G$31)) -> 17376
B166: Nodos Dorsal FO (Equipo Basico) | C166: UND. | D166: 1 | E166: 325000 | F166: 30000 | G166: =+D166*(E166*(1+IN!$E$99)+F166) -> 387500 | H166: =D166*(E166*(1+IN!$E$99)*POWER(1+IN!$G$37,IN!$G$31)+F166*POWER(1+IN!$G$39,IN!$G$31)) -> 372000
B167: Nodos Dorsal FO (Expansión λ) | C167: Per λ 10G | D167: 2 | E167: 11000 | F167: 6000 | G167: =+D167*E167*(1+IN!$E$99)+F167 -> 30200 | H167: =D167*E167*(1+IN!$E$99)*POWER(1+IN!$G$37,IN!$G$31)+F167*POWER(1+IN!$G$39,IN!$G$31) -> 28992
B168: Nodos Dorsal FO (Expansión STM1) | C168: Per 64 STM1 | D168: 1 | E168: 11000 | F168: 6000 | G168: =+D168*(E168*(1+IN!$E$99)+F168) -> 18100 | H168: =D168*(E168*(1+IN!$E$99)*POWER(1+IN!$G$37,IN!$G$31)+F168*POWER(1+IN!$G$39,IN!$G$31)) -> 17376
B169: Nodos Dorsal FO (Equipo Basico) | C169: UND. | D169: 1 | E169: 325000 | F169: 30000 | G169: =+D169*(E169*(1+IN!$E$99)+F169) -> 387500 | H169: =D169*(E169*(1+IN!$E$99)*POWER(1+IN!$G$37,IN!$G$31)+F169*POWER(1+IN!$G$39,IN!$G$31)) -> 372000
B170: Nodos Dorsal FO (Expansión λ) | C170: Per λ 10G | D170: 2 | E170: 11000 | F170: 6000 | G170: =+D170*E170*(1+IN!$E$99)+F170 -> 30200 | H170: =D170*E170*(1+IN!$E$99)*POWER(1+IN!$G$37,IN!$G$31)+F170*POWER(1+IN!$G$39,IN!$G$31) -> 28992
B171: Nodos Dorsal FO (Expansión STM1) | C171: Per 64 STM1 | D171: 1 | E171: 11000 | F171: 6000 | G171: =+D171*(E171*(1+IN!$E$99)+F171) -> 18100 | H171: =D171*(E171*(1+IN!$E$99)*POWER(1+IN!$G$37,IN!$G$31)+F171*POWER(1+IN!$G$39,IN!$G$31)) -> 17376
B172: Nodos Dorsal MW (Equipo Basico) | C172: UND. | D172: 1 | E172: 325000 | G172: =+D172*(E172*(1+IN!$E$99)+F172) -> 357500 | H172: =D172*(E172*(1+IN!$E$99)*POWER(1+IN!$G$37,IN!$G$31)+F172*POWER(1+IN!$G$39,IN!$G$31)) -> 343200
B173: Nodos Dorsal MW (Expansión) | C173: Per STM1 | D173: 1 | E173: 40000 | G173: =+D173*(E173*(1+IN!$E$99)+F173) -> 44000 | H173: =D173*(E173*(1+IN!$E$99)*POWER(1+IN!$G$37,IN!$G$31)+F173*POWER(1+IN!$G$39,IN!$G$31)) -> 42240
B174: * Precio 2Q-2016
A176: INFRAESTRUCTURA DE TRANSPORTE
B177: Precios USD 2013 (4Q)
B179: DESCRIPCION | C179: UND. | D179: CANT. | E179: P UNIT. Eq. | F179: P.UNIT. Inst. | G179: Total 4Q 2013 | H179: Total 2Q 2016
B180: ACCESO | C180: UND.
B181: Routers red de Acceso | C181: UND. | D181: 1 | E181: 4200 | G181: =+D181*(E181+F181) -> 4200 | H181: =D181*(E181*POWER(1+IN!$G$37,IN!$G$31)+F181*POWER(1+IN!$G$39,IN!$G$31)) -> 4032
B182: IPRAN | C182: UND. | D182: 1 | E182: 18750 | G182: =+D182*(E182+F182) -> 18750 | H182: =D182*(E182*POWER(1+IN!$G$37,IN!$G$31)+F182*POWER(1+IN!$G$39,IN!$G$31)) -> 18000
B183: AGREGACION Y CORE | C183: UND.
B184: Agregación | C184: UND. | D184: 1 | E184: 115200 | G184: =+D184*(E184+F184) -> 115200 | H184: =D184*(E184*POWER(1+IN!$G$37,IN!$G$31)+F184*POWER(1+IN!$G$39,IN!$G$31)) -> 110592
B185: Core IP | C185: UND. | D185: 1 | E185: 240000 | G185: =+D185*(E185+F185) -> 240000 | H185: =D185*(E185*POWER(1+IN!$G$37,IN!$G$31)+F185*POWER(1+IN!$G$39,IN!$G$31)) -> 230400
B186: Anilos Metro IP (x router) | C186: UND. | D186: 1 | E186: 96000 | G186: 96000 | H186: =D186*(E186*POWER(1+IN!$G$37,IN!$G$31)+F186*POWER(1+IN!$G$39,IN!$G$31)) -> 92160
B187: FO Planta (x Km) | C187: UND. | D187: 1 | E187: 46547 | G187: 46547 | H187: =D187*(E187*POWER(1+IN!$G$37,IN!$G$31)+F187*POWER(1+IN!$G$39,IN!$G$31)) -> 44685.12
B188: Metropolitan BB | C188: UND. | D188: 1 | E188: 150000 | G188: 150000 | H188: =D188*(E188*POWER(1+IN!$G$49,IN!$G$31)+F188*POWER(1+IN!$G$46,IN!$G$31)) -> 137250
B189: Dorsal FO | C189: UND. | D189: 1 | E189: 150000 | G189: 150000 | H189: =D189*(E189*POWER(1+IN!$G$49,IN!$G$31)+F189*POWER(1+IN!$G$46,IN!$G$31)) -> 137250
B190: Dorsal FO | C190: UND. | D190: 1 | E190: 150000 | G190: 150000 | H190: =D190*(E190*POWER(1+IN!$G$49,IN!$G$31)+F190*POWER(1+IN!$G$46,IN!$G$31)) -> 137250
B191: Dorsal MW | C191: UND. | D191: 1 | E191: 180000 | G191: 180000 | H191: =D191*(E191*POWER(1+IN!$G$49,IN!$G$31)+F191*POWER(1+IN!$G$46,IN!$G$31)) -> 164700
A194: Elementos de Red
B195: Precios 2009
B197: ELEMENTO DE RED (NE) | C197: Unit | D197: HW/SW | E197: Instalación | F197: Subtotal per unit
G198: Total 4Q 2013 | H198: Total 2Q 2016
B199: MGW/OSR, incluye ODF | C199: per Erlang | D199: 98.95938695 | E199: 51.37553584 | F199: =+D199+E199 -> 150.3349228 | G199: =+D199*POWER(1+IN!$F$35,4)+E199 -> 139.9995146 | H199: =+G199*POWER(1+IN!$G$39,IN!$G$31) -> 134.399534
B200: MSS | C200: per BHCA/User | D200: 0.9250555556 | E200: 0.05555555556 | F200: 0.9806111111 | G200: =+D200*POWER(1+IN!$F$35,4)+E200 -> 0.8839974697 | H200: =+G200*POWER(1+IN!$G$39,IN!$G$31) -> 0.8486375709
B201: Transcoder | C201: per TCH | D201: 52866.38797 | E201: 10051 | F201: 62917.38797 | G201: =+D201*POWER(1+IN!$F$35,4)+E201 -> 57395.97445 | H201: =+G201*POWER(1+IN!$G$39,IN!$G$31) -> 55100.13547
B202: BSC , Incluye DDF | C202: per TRX | D202: 2809.161657 | E202: 146.181425 | F202: 2955.343082 | G202: =+D202*POWER(1+IN!$F$35,4)+E202 -> 2661.95169 | H202: =+G202*POWER(1+IN!$G$39,IN!$G$31) -> 2555.473622
B203: HLR | C203: per BHCA/User | D203: 1.074 | E203: 0.128 | F203: 1.202 | G203: =+D203*POWER(1+IN!$F$35,4)+E203 -> 1.089830466 | H203: =+G203*POWER(1+IN!$G$39,IN!$G$31) -> 1.046237247
B204: IN Prepago | C204: per BHCA/User | D204: 1.68 | E204: 1.692 | F204: 3.372 | G204: =+D204*POWER(1+IN!$F$35,4)+E204 -> 3.196539276 | H204: =+G204*POWER(1+IN!$G$39,IN!$G$31) -> 3.068677705
B205: IN Corporativo | C205: per BHCA | D205: 1.439393939 | E205: 0.3598484848 | F205: 1.799242424 | G205: =+D205*POWER(1+IN!$F$35,4)+E205 -> 1.648910815 | H205: =+G205*POWER(1+IN!$G$39,IN!$G$31) -> 1.582954383
B206: VMS | C206: per User | D206: 0.616 | E206: 0.1 | F206: 0.716 | G206: =+D206*POWER(1+IN!$F$35,4)+E206 -> 0.6516644011 | H206: =+G206*POWER(1+IN!$G$39,IN!$G$31) -> 0.6255978251
B207: STP | C207: per TPS | F207: 80 | G207: =+F207*POWER(1+IN!$F$35,4) -> 71.64472742 | H207: =+G207*POWER(1+IN!$G$39,IN!$G$31) -> 68.77893832
B209: Precio 2013
B211: ELEMENTO DE RED (NE) | C211: Unit | D211: HW/SW | E211: Instalación | F211: Subtotal per unit
H212: Total 2Q 2016
B213: RNC* | C213: per Mbps | D213: 1978.39 | E213: 0 | F213: =+D213+E213 -> 1978.39 | H213: =+F213*POWER(1+IN!$G$37,IN!$G$31) -> 1899.2544
B214: TRANSCODER | C214: TCH | D214: 60.45066409 | E214: 0 | F214: =+D214+E214 -> 60.45066409 | H214: =+F214*POWER(1+IN!$G$37,IN!$G$31) -> 58.03263752
B215: IN Postpago | C215: per User | D215: 0.8856421108 | E215: 431838.8484
B216: IN Postpago | C216: per User | D216: 2.40970522 | E216: 431838.8484
B217: VMS | C217: per User | D217: 0.6604156026 | E217: 151728.6447
B218: SBC | C218: Equipo | D218: 130000 | E218: 0 | F218: =+(D218+E218)*1.1 -> 143000 | H218: =+F218*POWER(1+IN!$G$37,IN!$G$31) -> 137280
B219: IP CLOCK | C219: Equipo | D219: 18540.97 | E219: 0 | F219: =+(D219+E219)*1.1 -> 20395.067 | H219: =+F219*POWER(1+IN!$G$37,IN!$G$31) -> 19579.26432
B220: IP CLOCK | C220: Equipo | D220: 23650.88 | E220: 0 | F220: =+(D220+E220)*1.1 -> 26015.968 | H220: =+F220*POWER(1+IN!$G$37,IN!$G$31) -> 24975.32928
B221: Ater in MGW | C221: TCH | D221: 39 | E221: 0 | F221: =+D221+E221 -> 39 | H221: =+F221*POWER(1+IN!$G$37,IN!$G$31) -> 37.44
B222: IVR | C222: Canales | D222: 350 | E222: 0 | F222: =+D222+E222 -> 350 | H222: =+F222*POWER(1+IN!$G$37,IN!$G$31) -> 336
B223: * Valor suministrado por OSIPTEL
A225: IT
B226: Precios 2009
G227: Total 4Q 2013 | H227: Total 2Q 2016
B228: Interconnection billing | C228: 1802607.452 | G228: =+C228*POWER(1+IN!$F$35,4) -> 1614341.494 | H228: =+G228*POWER(1+IN!$G$39,IN!$G$31) -> 1549767.835
B229: Data Ware House | C229: 12033000 | G229: =+C229*POWER(1+IN!$F$35,4) -> 10776262.56 | H229: =+G229*POWER(1+IN!$G$39,IN!$G$31) -> 10345212.06
B230: Mediation | C230: 887299.88 | G230: =+C230*POWER(1+IN!$F$35,4) -> 794629.4755 | H230: =+G230*POWER(1+IN!$G$39,IN!$G$31) -> 762844.2965
B231: Provisioning | C231: 870926.202 | G231: =+C231*POWER(1+IN!$F$35,4) -> 779965.8793 | H231: =+G231*POWER(1+IN!$G$39,IN!$G$31) -> 748767.2442
B232: BSCS | C232: =4444536 -> 4444536 | G232: =+C232*POWER(1+IN!$F$35,4) -> 3980344.628 | H232: =+G232*POWER(1+IN!$G$39,IN!$G$31) -> 3821130.843
B233: Number portability project costs | C233: 1111111 | G233: =+C233*POWER(1+IN!$F$35,4) -> 995065.5591 | H233: =+G233*POWER(1+IN!$G$39,IN!$G$31) -> 955262.9368
A235: INFRAESTRUCTURA CORE
B236: Precios 2009
D237: Civil Work
B238: ELEMENTO DE RED | C238: Land (m2) | D238: Land | E238: Building | F238: Power Supply DC | G238: Air Conditioning | H238: Power Supply AC | I238: Total | J238: Total 4Q 2013 | K238: Total 2Q 2016
B239: MGW/OSR, incluye ODF | C239: 48 | D239: 26880 | E239: 48000 | F239: 28070.17544 | G239: 11228.07018 | H239: 14970.76023 | I239: 129149.0058 | J239: =D239*POWER(1+15%,(2013-2009))+E239+F239+G239+H239 -> 149282.2938 | K239: =D239*POWER(1+15%,(2013-2009))*POWER(1+IN!$G$43,IN!$G$31)+E239*POWER(1+IN!$G$46,IN!$G$31)+(F239+G239+H239)*POWER(1+IN!$G$37,IN!$G$31) -> 144625.0292
B240: MSS | C240: 80 | D240: 44800 | E240: 80000 | F240: 17543.85965 | G240: 7017.54386 | H240: 9356.725146 | I240: 158718.1287 | J240: =D240*POWER(1+15%,(2013-2009))+E240+F240+G240+H240 -> 192273.6087 | K240: =D240*POWER(1+15%,(2013-2009))*POWER(1+IN!$G$43,IN!$G$31)+E240*POWER(1+IN!$G$46,IN!$G$31)+(F240+G240+H240)*POWER(1+IN!$G$37,IN!$G$31) -> 186772.7094
B241: RNC , Incluye ODFs, OSS | C241: 48 | D241: 26880 | E241: 48000 | F241: 6140.350877 | G241: 2456.140351 | H241: 3274.853801 | I241: 86751.34503 | J241: 106884.633 | K241: =D241*POWER(1+15%,(2013-2009))*POWER(1+IN!$G$43,IN!$G$31)+E241*POWER(1+IN!$G$46,IN!$G$31)+(F241+G241+H241)*POWER(1+IN!$G$37,IN!$G$31) -> 103923.2748
B242: BSC/Transcoder , Incluye DDF | C242: 48 | D242: 26880 | E242: 48000 | F242: 6140.350877 | G242: 2456.140351 | H242: 3274.853801 | I242: 86751.34503 | J242: 106884.633 | K242: =D242*POWER(1+15%,(2013-2009))*POWER(1+IN!$G$43,IN!$G$31)+E242*POWER(1+IN!$G$46,IN!$G$31)+(F242+G242+H242)*POWER(1+IN!$G$37,IN!$G$31) -> 103923.2748
B243: HLR | C243: 80 | D243: 44800 | E243: 80000 | F243: 21052.63158 | G243: 8421.052632 | H243: 11228.07018 | I243: 165501.7544 | J243: 199057.2344 | K243: =D243*POWER(1+15%,(2013-2009))*POWER(1+IN!$G$43,IN!$G$31)+E243*POWER(1+IN!$G$46,IN!$G$31)+(F243+G243+H243)*POWER(1+IN!$G$37,IN!$G$31) -> 193284.9901
B244: IN Prepago | C244: 80 | D244: 44800 | E244: 80000 | F244: 63157.89474 | G244: 25263.15789 | H244: 33684.21053 | I244: 246905.2632 | J244: 280460.7432 | K244: =D244*POWER(1+15%,(2013-2009))*POWER(1+IN!$G$43,IN!$G$31)+E244*POWER(1+IN!$G$46,IN!$G$31)+(F244+G244+H244)*POWER(1+IN!$G$37,IN!$G$31) -> 271432.3585
... 3 more rows

Sheet CAPEX
A1: CAPEX CLARO
B4: Cantidades | D4: Costos
B5: 3G | C5: 2G | D5: 3G | E5: 2G | G5: Total Móvil
A7: Equipamiento Estaciones Base
A8: Nodo B / 1 Sector/ 2 Portadoras / 384 CE Up Link / NAT | B8: =+'3G'!F17 -> 1 | D8: =+B8*IN!F74 -> 55922.10798 | G8: =+D8+E8 -> 55922.10798
A9: Nodo B / 3 Sectores / 6 Portadoras / 512 CE Up Link | B9: =+'3G'!F18 -> 1 | D9: =+B9*IN!F75 -> 78798.75659 | G9: =+D9+E9 -> 78798.75659
A10: Nodo B / 3 Sectores / 6 Portadoras / 768 CE Up Link | B10: =+'3G'!F19 -> 2 | D10: =+B10*IN!F76 -> 176146.468 | G10: 176146.468
A11: Nodo B / 3 Sectores / 6 Portadoras / 1024 CE Up Link | B11: =+'3G'!F20 -> 3 | D11: =+B11*IN!F77 -> 305047.7308 | G11: 305047.7308
A12: Nodo B / 3 Sectores / 6 Portadoras / 2048 CE Up Link | B12: =+'3G'!F21 -> 1 | D12: =+B12*IN!F78 -> 120231.5317 | G12: 120231.5317
A13: Nodo B / 3 Sectores / 6 Portadoras / 3072 CE Up Link | B13: =+'3G'!F22 -> 1 | D13: =+B13*IN!F79 -> 138780.4865 | G13: 138780.4865
A14: Nodo B / 3 Sectores / 6 Portadoras / > 3072 CE Up Link | B14: =+'3G'!F23 -> 1 | D14: =+B14*IN!F80 -> 175878.3961 | G14: 175878.3961
A15: BTS TRXs (1-12) | C15: =+'2G'!I9 -> 4 | E15: =+C15*IN!F69 -> 243548.9972 | G15: 243548.9972
A16: BTS TRXs (13-24) | C16: =+'2G'!I10 -> 0 | E16: =+C16*IN!F70 -> 0 | G16: 0
A17: BTS TRXs (25-36) | C17: =+'2G'!I11 -> 0 | E17: =+C17*IN!F71 -> 0 | G17: 0
A18: BTS TRXs (37-48) | C18: =+'2G'!I12 -> 0 | E18: =+C18*IN!F72 -> 0 | G18: 0
A19: TOTAL EQUIPAMIENTO ESTACIONES BASE | B19: =SUM(B8:B18) -> 10 | C19: =SUM(C8:C18) -> 4 | D19: =SUM(D8:D18) -> 1050805.478 | E19: =SUM(E8:E18) -> 243548.9972 | G19: =SUM(G8:G18) -> 1294354.475
A20: Sites Indoor c/Antenas < 21 | B20: =+'3G'!F26+'3G'!G26/2+'3G'!H26/2+'3G'!I26/3 -> 2 | C20: =+'2G'!I15+'2G'!K15/2+'2G'!L15/2+'2G'!M15/3 -> 0.5 | D20: =+B20*IN!F164 -> 67200 | E20: =+C20*IN!F164 -> 16800 | G20: =+D20+E20 -> 84000
A21: Sites Indoor 20 > c/antenas < 61 | B21: =+'3G'!F27+'3G'!G27/2+'3G'!H27/2+'3G'!I27/3 -> 0 | C21: =+'2G'!I16+'2G'!K16/2+'2G'!L16/2+'2G'!M16/3 -> 0 | D21: =+B21*IN!F165 -> 0 | E21: =+C21*IN!F165 -> 0 | G21: 0
A22: Sites Indoor c/Antenas > 60 | B22: =+'3G'!F28+'3G'!G28/2+'3G'!H28/2+'3G'!I28/3 -> 0 | C22: =+'2G'!I17+'2G'!K17/2+'2G'!L17/2+'2G'!M17/3 -> 0 | D22: =+B22*IN!F166 -> 0 | E22: =+C22*IN!F166 -> 0 | G22: 0
A23: Sites NAT/Postes | B23: =+'3G'!F34+'3G'!G34/2+'3G'!H34/2+'3G'!I34/3 -> 1 | C23: =+'2G'!I18+'2G'!K18/2+'2G'!L18/2+'2G'!M18/3 -> 0.5 | D23: =+B23*IN!F167 -> 12480 | E23: =+C23*IN!F167 -> 6240 | G23: 18720
A24: Sites Rooftop | B24: =+'3G'!F30+'3G'!G30/2+'3G'!H30/2+'3G'!I30/3 -> 2.5 | C24: =+'2G'!I19+'2G'!K19/2+'2G'!L19/2+'2G'!M19/3 -> 0 | D24: =+B24*IN!F168 -> 182792.5939 | E24: =+C24*IN!F168 -> 0 | G24: 182792.5939
A25: Sites Greenfield 30 | B25: =+'3G'!F31+'3G'!G31/2+'3G'!H31/2+'3G'!I31/3 -> 0.8333333333 | C25: =+'2G'!I20+'2G'!K20/2+'2G'!L20/2+'2G'!M20/3 -> 0.5 | D25: =+B25*IN!F169 -> 103182.5051 | E25: =+C25*IN!F169 -> 61909.50307 | G25: 165092.0082
A26: Sites Greenfield 42 | B26: =+'3G'!F32+'3G'!G32/2+'3G'!H32/2+'3G'!I32/3 -> 0 | C26: =+'2G'!I21+'2G'!K21/2+'2G'!L21/2+'2G'!M21/3 -> 0 | D26: =+B26*IN!F170 -> 0 | E26: =+C26*IN!F170 -> 0 | G26: 0
A27: Sites Greenfield 72 | B27: =+'3G'!F33+'3G'!G33/2+'3G'!H33/2+'3G'!I33/3 -> 1 | C27: =+'2G'!I22+'2G'!K22/2+'2G'!L22/2+'2G'!M22/3 -> 0 | D27: =+B27*IN!F171 -> 234142.1416 | E27: =+C27*IN!F171 -> 0 | G27: 234142.1416
A28: TOTAL INFRAESTRUCTURA ESTACIONES BASE | B28: =SUM(B20:C27) -> 8.833333333 | D28: =SUM(D20:D27) -> 599797.2407 | E28: =SUM(E20:E27) -> 84949.50307 | G28: =+SUM(G20:G27) -> 684746.7437
A29: Equipamiento Transporte Ultima Milla
A30: Enlace Fibra Optica 1 | B30: =+Transporte!I18 -> 5 | D30: =+B30*IN!F84 -> 63360 | G30: =+D30+E30 -> 63360
A31: Enlace Fibra Optica 2 | B31: =+Transporte!I19 -> 5 | D31: =+B31*IN!F85 -> 42240 | G31: 42240
A32: Enlace MW 0.3m-0.6m Punto a Punto | B32: =+Transporte!I39 -> 1 | D32: =+B32*IN!F87 -> 36482.304 | G32: 36482.304
A33: Enlace MW 1.2m-1.8m Punto a Punto | B33: =+Transporte!I40 -> 1 | D33: =+B33*IN!F88 -> 49647.3216 | G33: 49647.3216
A34: Enlace MW 2.4m-3.7m Punto a Punto | B34: =+Transporte!I41 -> 1 | D34: =+B34*IN!F89 -> 61961.2032 | G34: 61961.2032
A35: Enlaces MW PDH | C35: =Transporte!I52 -> 4 | E35: =+$C35*IN!F90 -> 60940.8 | G35: 60940.8
A36: Adv.VSAT REMOTO | B36: =Transporte!I28 -> 1 | D36: =+$B36*IN!F92 -> 28044.3888 | E36: =+$C36*IN!F92 -> 0 | G36: 28044.3888
A37: SCPC REMOTO | B37: =Transporte!I30 -> 1 | D37: =+$B37*IN!F93 -> 61530.8256 | E37: =+$C37*IN!F93 -> 0 | G37: 61530.8256
A38: SCPC CinC REMOTO | B38: =Transporte!I29 -> 1 | D38: =+$B38*IN!F94 -> 88642.6656 | E38: =+$C38*IN!F94 -> 0 | G38: 88642.6656
A39: Routers Red de Acceso | B39: =+Transporte!I69 -> 11 | D39: =+B39*IN!F96 -> 96096 | G39: 96096
A40: Routers IPRAN | B40: =+Transporte!I85 -> 10 | D40: =+B40*IN!F102 -> 312000 | G40: 312000
A41: Routers Agregación (MPLS) | B41: =+Transporte!I101 -> 10 | D41: =+B41*IN!F103 -> 2488320 | G41: =+D41*Generadores!$N$52 -> 120356.9118
A42: Routers IPCORE | B42: =+Transporte!I118 -> 10 | D42: =+B42*IN!F104 -> 5184000 | G42: =+D42*Generadores!$N$52 -> 250743.5662
A43: Routers Anillo Metro IP | B43: =+Transporte!I128 -> 3 | D43: =+B43*IN!F105 -> 622080 | G43: =+D43*Generadores!$N$52 -> 30089.22794
A44: Nodos Metropolitan (Equipo Basico) | B44: =Transporte!I139 -> 4 | D44: =+B44*IN!F106 -> 1488000 | G44: =+D44*Generadores!$N$52 -> 71972.69029
A45: Nodos Metropolitan (Expansión λ 10G) | B45: =+Transporte!I140 -> 1 | D45: =+B45*IN!F107 -> 28992 | G45: =+D45*Generadores!$N$52 -> 1402.306611
A46: Nodos Metropolitan (Expansión λ 100G) | B46: =+Transporte!I141 -> 1 | D46: =+B46*IN!F108 -> 208800 | G46: =+D46*Generadores!$N$52 -> 10099.39364
A47: Nodos Metropolitan (Expansión STM1) | B47: =+Transporte!I142 -> 64 | D47: =+B47*IN!F109 -> 1112064 | G47: =+D47*Generadores!$N$52 -> 53789.13834
A48: Nodos Dorsal FO (Equipo Basico) | B48: =Transporte!I153 -> 3 | D48: =+B48*IN!F110 -> 1116000 | G48: =+D48*Generadores!$N$52 -> 53979.51772
A49: Nodos Dorsal FO (Expansión λ) | B49: =Transporte!I154 -> 16 | D49: =+B49*IN!F111 -> 463872 | G49: =+D49*Generadores!$N$52 -> 22436.90577
A50: Nodos Dorsal FO (Expansión STM1) | B50: =Transporte!I155 -> 3 | D50: =+B50*IN!F112 -> 52128 | G50: =+D50*Generadores!$N$52 -> 2521.36586 | I50: Estaciones base 2G | J50: =+E19+E28 -> 328498.5003 | K50: =+J50/$J$57 -> 0.002377080517
A51: Nodos Dorsal FO (Equipo Basico) | B51: =Transporte!I166 -> 3 | D51: =+B51*IN!F113 -> 1116000 | G51: =+D51*Generadores!$N$52 -> 53979.51772 | I51: Estaciones base 3G | J51: =+D19+D28 -> 1650602.718 | K51: 0.01194408973
A52: Nodos Dorsal FO (Expansión λ) | B52: =Transporte!I167 -> 16 | D52: =+B52*IN!F114 -> 463872 | G52: =+D52*Generadores!$N$52 -> 22436.90577 | I52: Transporte Red de Acceso | J52: =+SUM(D30:F40)+SUM(D58,D59) -> 1125297.509 | K52: 0.008142876701
A53: Nodos Dorsal FO (Expansión STM1) | B53: =+Transporte!I168 -> 3 | D53: =+B53*IN!F115 -> 52128 | G53: =+D53*Generadores!$N$52 -> 2521.36586 | I53: Transporte Red de Agreg. y Core | J53: =+(SUM(D41:F55)+SUM(D60:F67))*Generadores!N52 -> 23151647.5 | K53: 0.1675299283
A54: Nodos Dorsal MW (Equipo Basico) | B54: =Transporte!I185 -> 6 | D54: =+B54*IN!F116 -> 2059200 | G54: =+D54*Generadores!$N$52 -> 99600.91656 | I54: BSC/RNC | J54: =+D71+D72+D84+D85 -> 26901267.04 | K54: 0.1946629215
A55: Nodos Dorsal MW (Expansión) | B55: =Transporte!J185 -> 18 | D55: =+B55*IN!F117 -> 760320 | G55: =+D55*Generadores!$N$52 -> 36775.72304 | I55: CORE | J55: =+SUM(D73:F82,D86:F89) -> 72378961.53 | K55: 0.5237485686
A56: TOTAL EQUIPAMIENTO TRANSPORTE | D56: =SUM(D30:D55)+SUM(E30:E55) -> 18116721.51 | G56: =SUM(G30:G55) -> 1733650.962 | I56: IT | J56: =+SUM(D92:F94) -> 12657824.19 | K56: 0.09159453468
A57: Infraestructura Transporte | J57: =SUM(J50:J56) -> 138194099
A58: Routers red de Acceso | B58: =+B39 -> 11 | D58: =+B58*IN!F175 -> 44352 | G58: =+D58+E58 -> 44352
A59: IPRAN | B59: =+B40 -> 10 | D59: =+B59*IN!F176 -> 180000 | G59: 180000
A60: Agregación | B60: =+B41 -> 10 | D60: =+B60*IN!F178 -> 1105920 | G60: =+D60*Generadores!$N$52 -> 53491.96078
A61: Core IP | B61: =+B42 -> 10 | D61: =+B61*IN!F179 -> 2304000 | G61: =+D61*Generadores!$N$52 -> 111441.585
A62: Anilos Metro IP (x router) | B62: =+B43 -> 3 | D62: =+B62*IN!F180 -> 276480 | G62: =+D62*Generadores!$N$52 -> 13372.9902
A63: FO Planta (x Km) | B63: =Transporte!F196 -> 10191 | D63: =+B63*IN!F181 -> 455386057.9 | G63: =+D63*Generadores!$N$52 -> 22026451.42
A64: Metropolitan | B64: =+B44 -> 4 | D64: =+B64*IN!F182 -> 549000 | G64: =+D64*Generadores!$N$52 -> 26554.44017
A65: Dorsal FO | B65: =+B48 -> 3 | D65: =+B65*IN!F183 -> 411750 | G65: =+D65*Generadores!$N$52 -> 19915.83012
A66: Dorsal FO | B66: =+B51 -> 3 | D66: =+B66*IN!F184 -> 411750 | G66: =+D66*Generadores!$N$52 -> 19915.83012
A67: Dorsal MW | B67: =+B54 -> 6 | D67: =+B67*IN!F185 -> 988200 | G67: =+D67*Generadores!$N$52 -> 47797.9923
A68: TOTAL INFRAESTRUCTURA TRANSPORTE | D68: =SUM(D58:D67) -> 461657509.9 | G68: =SUM(G58:G67) -> 22543294.05
A69: TOTAL UTRAN | G69: =+G19+G28+G56+G68 -> 26256046.23
A70: Equipamiento CORE
A71: BSC | B71: =ROUNDUP(CORE!D16/IN!F126,0) -> 5 | D71: =+B71*IN!F125 -> 9148595.568 | G71: =+D71+E71 -> 9148595.568
A72: RNC | B72: =ROUND(CORE!D51/(IN!F129),0) -> 5 | D72: =+B72*IN!F128 -> 16713438.72 | G72: 16713438.72
A73: MSS | B73: =ROUNDUP(CORE!D81/(IN!F138),0) -> 5 | D73: =+B73*IN!F137 -> 8100245.614 | G73: 8100245.614
A74: TSCM | B74: =ROUNDUP(CORE!D32/IN!F132,0) -> 5 | D74: =+B74*IN!F131 -> 2222372.131 | G74: 2222372.131
A75: Ater in MGW | B75: =ROUNDUP(CORE!D66/IN!F135,0) -> 5 | D75: =+B75*IN!F134 -> 1451923.2 | G75: 1451923.2
A76: MGW | B76: =ROUNDUP(CORE!D100/(IN!F141),0) -> 5 | D76: =+B76*IN!F140 -> 16320135.42 | G76: 16320135.42
A77: HLR | B77: =+ROUNDUP(CORE!D117/IN!F144,0) -> 5 | D77: =+B77*IN!F143 -> 17786033.2 | G77: 17786033.2
A78: STP | B78: =ROUNDUP(CORE!D134/IN!F147,0) -> 5 | D78: =+B78*IN!F146 -> 22353154.96 | G78: 22353154.96
A79: SBC | B79: =CORE!D153 -> 2 | D79: =+B79*IN!F152 -> 274560 | G79: 274560
A80: SBC | B80: =CORE!D154 -> 2 | D80: =B80*IN!F153 -> 274560 | G80: 274560
A81: IP Clock | B81: =CORE!D146 -> 4 | D81: =+B81*IN!F149 -> 78317.05728 | G81: 78317.05728
A82: IP Clock | B82: =CORE!D147 -> 15 | D82: =+B82*IN!F150 -> 374629.9392 | G82: 374629.9392
A83: Infraestructura CORE
A84: BSC | B84: =+B71 -> 5 | D84: =IN!F188*CAPEX!B84 -> 519616.3739 | G84: 519616.3739
A85: RNC | B85: =+B72 -> 5 | D85: =IN!F189*CAPEX!B85 -> 519616.3739 | G85: 519616.3739
A86: MSS | B86: =+B73 -> 5 | D86: =IN!F190*CAPEX!B86 -> 933863.5471 | G86: 933863.5471
A87: MGW | B87: =+B76 -> 5 | D87: =IN!F191*CAPEX!B87 -> 723125.1458 | G87: 723125.1458
A88: HLR | B88: =+B77 -> 5 | D88: =IN!F192*CAPEX!B88 -> 966424.9506 | G88: 966424.9506
A89: STP | B89: =+B78 -> 5 | D89: =IN!F193*CAPEX!B89 -> 519616.3739 | G89: 519616.3739
A90: TOTAL CORE | D90: =SUM(D71:D89) -> 99280228.57 | G90: =+SUM(G71:G89) -> 99280228.57
A91: IT
A92: Interconnection Billing | D92: =+IN!F155 -> 1549767.835 | G92: =+D92+E92 -> 1549767.835
A93: Data Ware House | D93: =+IN!F156 -> 10345212.06 | G93: 10345212.06
A94: Mediation | D94: =+IN!F157 -> 762844.2965 | G94: 762844.2965
A95: TOTAL IT | D95: =SUM(D92:D94) -> 12657824.19 | G95: =+SUM(G92:G94) -> 12657824.19
A97: TOTAL CAPEX RED MOVIL | G97: =+G69+G90+G95 -> 138194099

Sheet OPEX
A1: Costos operativos
D4: CLARO 2G/3G
A5: Gastos (Base x año)
A6: Regulación | D6: Porcentaje de las Ventas Brutas
A7: Supervisión
A8: Canon
A9: Generales y administrativos
A11: Tasa de mantenimiento Equipos | C11: 0.15
A12: Tasa de mantenimiento Infraestructura | C12: 0.05
A13: Operación y Mantenimiento
A14: Equipamiento BTS | C14: =+$C$11 -> 0.15 | D14: =+C14*CAPEX!D19 -> 157620.8217
A15: Equipamiento Nodo-b | C15: =+$C$11 -> 0.15 | D15: =C15*CAPEX!E19 -> 36532.34958
A16: Infraestructura BTS | C16: =+$C$12 -> 0.05 | D16: =+C16*CAPEX!E28 -> 4247.475154
A17: Infraestructura Nodo-b | C17: =+$C$12 -> 0.05 | D17: =+C17*CAPEX!D28 -> 29989.86203
A18: Equipamiento Transporte red de Acceso (Exclusivo 2G) | C18: =+$C$11 -> 0.15 | D18: =+C18*SUM(CAPEX!E35:E35) -> 9141.12
A19: Equipamiento Transporte red de Acceso | C19: =+$C$11 -> 0.15 | D19: =C19*SUM(CAPEX!D30:D40)-D18 -> 116859.5863
A20: Infraestructura Transporte red de acceso | C20: =+$C$12 -> 0.05 | D20: =+C20*CAPEX!D58 -> 2217.6
A21: Equipamiento Transporte red de Agregacion y Core | C21: =+$C$11 -> 0.15 | D21: =+C21*SUM(CAPEX!D41:F55) -> 2582366.4
A22: Infraestructura Transporte red de Agregacion y Core | C22: =+$C$12 -> 0.05 | D22: =+C22*SUM(CAPEX!D60:F67) -> 23071657.9
A23: Equipamiento BSC | C23: =+$C$11 -> 0.15 | D23: =+$C23*(CAPEX!D71) -> 1372289.335
A24: Infraestructura BSC | C24: =+$C$12 -> 0.05 | D24: =+$C24*(CAPEX!D84) -> 25980.81869
A25: Equipamiento RNC | C25: =+$C$11 -> 0.15 | D25: =+$C25*(CAPEX!D72) -> 2507015.808
A26: Infraestructura RNC | C26: =+$C$12 -> 0.05 | D26: =+$C26*(CAPEX!D85) -> 25980.81869
A27: Equipamiento MSS | C27: =+$C$11 -> 0.15 | D27: =+C27*(CAPEX!D73) -> 1215036.842
A28: Infraestructura MSS | C28: =+$C$12 -> 0.05 | D28: =+C28*(CAPEX!D86) -> 46693.17736
A29: Equipamiento TSCM | C29: =+$C$11 -> 0.15 | D29: =+C29*CAPEX!D74 -> 333355.8196
A30: Ater in MGW | C30: =+$C$11 -> 0.15 | D30: =+C30*CAPEX!D75 -> 217788.48
A31: Equipamiento MGW | C31: =+$C$11 -> 0.15 | D31: =+C31*(CAPEX!D76) -> 2448020.313
A32: Infraestructura MGW | C32: =+$C$12 -> 0.05 | D32: =+C32*(CAPEX!D87) -> 36156.25729
A33: Equipamiento HLR | C33: =+$C$11 -> 0.15 | D33: =+C33*(CAPEX!D77) -> 2667904.98
A34: Infraestructura HLR | C34: =+$C$12 -> 0.05 | D34: =+C34*(CAPEX!D88) -> 48321.24753
A35: Equipamiento STP | C35: =+$C$11 -> 0.15 | D35: =+$C35*(CAPEX!D78) -> 3352973.243
A36: Infraestructura STP | C36: =+$C$12 -> 0.05 | D36: =+$C36*(CAPEX!D89) -> 25980.81869
A37: SBC | C37: =+$C$11 -> 0.15 | D37: =+C37*CAPEX!D79 -> 41184
A38: IP Clock | C38: 0.15 | D38: =+C38*(CAPEX!D81+CAPEX!D82) -> 67942.04947
A39: Interconnection Billing | C39: 0.15 | D39: =+C39*CAPEX!D92 -> 232465.1752
A40: Data Ware House | C40: 0.15 | D40: =+C40*CAPEX!D93 -> 1551781.809
A41: Mediation | C41: 0.15 | D41: =+C41*CAPEX!D94 -> 114426.6445
A42: OPEX por servicios
A43: Transmisión Red de Acceso | D43: =+'Renta TX'!D20:O20*1000000 -> 12960000
A44: Transmisión Red de Agregación / CORE
A45: Alquiler Grandes Capacidades | D45: =+'Renta TX'!E24 -> 720000
A46: CONCEPTO OPEX | D46: =+'Renta TX'!E35 -> 600000

Sheet Generadores
A1: Cálculo de generadores de costos
D4: 3G | E4: 2G
A5: N° Estaciones Base | D5: =+CAPEX!B19 -> 10 | E5: =+CAPEX!C19 -> 4
A6: Número de RRUs/TRXs Promedio | D6: =+'3G'!F14 -> 3.3 | E6: =+'2G'!I13 -> 1.75
A7: N° de Lineas (OSIPTEL Junio 2016) | D7: 12213750
A8: Total anual de Minutos Facturado (ON NET) | D8: =Trafico!D412 -> 11900000
A9: Total anual de Minutos Facturados (Incoming) | D9: =Trafico!H510 -> 8520000
A10: Total anual de Minutos Facturados(Outgoing) | D10: =Trafico!F412+Trafico!G412+Trafico!H412+Trafico!I412+Trafico!J412+Trafico!C412 -> 71400000
A11: Total anual tráfico facturado de datos en GB (incluye 4G) | D11: =Trafico!E566 -> 96000 | G11: minutos
A12: Total anual SMS Facturado | D12: =+Trafico!H625 -> 14400000
A13: Total anual SMS GB | B13: 0.18 | C13: KB/SMS | D13: =+D12*$B$13*2/(1000*1000) -> 5.184
A14: Total anual MMS Facturado | D14: =Trafico!I720 -> 7200000
A15: Total anual MMS GB | D15: =Trafico!I721 -> 720
A17: Factor OFF NET | D17: =+(D9+D10)/SUM(D8:E10) -> 0.870398606
A19: Generador 1: Porcentaje de Voz en celdas 2G
A20: Tecnología | D20: 3G | E20: 2G
A21: Porcentaje de uso de voz | E21: =L23 -> 0.9212598425 | H21: Voz | J21: Datos
A22: Generador 2: Porcentaje de Voz en celdas 3G | H22: Minutos | I22: GB equiv. | J22: GB | K22: Total | L22: % Voz | M22: % Datos
A23: Tecnología | D23: 3G | G23: 2G | H23: =B42*60*1000 -> 72000000000 | I23: =(H23*13*2*60)/(8*1000*1000) -> 14040000 | J23: =I42 -> 1200000 | K23: =+I23+J23 -> 15240000 | L23: =+I23/K23 -> 0.9212598425 | M23: =+J23/K23 -> 0.07874015748
A24: Porcentaje de uso de voz | D24: =L24 -> 0.9165275459 | G24: 3G | H24: =C42*60*1000 -> 72000000000 | I24: =(H24*12.2*2*60)/(8*1000*1000) -> 13176000 | J24: =J42 -> 1200000 | K24: =+I24+J24 -> 14376000 | L24: =+I24/K24 -> 0.9165275459 | M24: =+J24/K24 -> 0.08347245409
G25: 4G | H25: 0 | I25: =(H25*12.2*2*60)/(8*1024*1024) -> 0 | J25: =K42 -> 1200000 | K25: =+I25+J25 -> 1200000 | L25: =+I25/K25 -> 0 | M25: =+J25/K25 -> 1
A26: Generador 3: Porcentaje de Voz en red de transporte | G26: Total | H26: =SUM(H23:H25) -> 144000000000 | I26: =SUM(I23:I25) -> 27216000 | J26: =SUM(J23:J25) -> 3600000 | K26: =SUM(K23:K25) -> 30816000 | L26: =I26/K26 -> 0.8831775701 | M26: =+J26/K26 -> 0.1168224299
B28: Tráfico Cursado de Voz (BSC/RNC) | I28: Tráfico Cursado de Datos (GB)
A29: MES | B29: 2G (E 000) | C29: 3G (E 000) | D29: 4G | E29: TOTAL | F29: Trafico minutos | G29: Trafico GB (Voz) | H29: % Particip | I29: 2G | J29: 3G | K29: 4G | L29: Trafico GB (Datos) | M29: % Particip | N29: Total GB (Voz + Datos)
A30: Julio | B30: 100000 | C30: 100000 | E30: =B30+C30+D30 -> 200000 | F30: =E30*60*1000 -> 12000000000 | G30: =(B30*13000+C30*12200)*2*3600/(8*1000*1000) -> 2268000 | H30: =G30/N30 -> 0.8831775701 | I30: 100000 | J30: 100000 | K30: 100000 | L30: =I30+J30+K30 -> 300000 | M30: =L30/N30 -> 0.1168224299 | N30: =G30+L30 -> 2568000
A31: Agosto | B31: 100000 | C31: 100000 | E31: =B31+C31+D31 -> 200000 | F31: =E31*60*1000 -> 12000000000 | G31: =(B31*13000+C31*12200)*2*3600/(8*1000*1000) -> 2268000 | H31: =G31/N31 -> 0.8831775701 | I31: 100000 | J31: 100000 | K31: 100000 | L31: 300000 | M31: =L31/N31 -> 0.1168224299 | N31: 2568000
A32: Septiembre | B32: 100000 | C32: 100000 | E32: 200000 | F32: 12000000000 | G32: 2268000 | H32: 0.8831775701 | I32: 100000 | J32: 100000 | K32: 100000 | L32: 300000 | M32: 0.1168224299 | N32: 2568000
A33: Octubre | B33: 100000 | C33: 100000 | E33: 200000 | F33: 12000000000 | G33: 2268000 | H33: 0.8831775701 | I33: 100000 | J33: 100000 | K33: 100000 | L33: 300000 | M33: 0.1168224299 | N33: 2568000
A34: Noviembre | B34: 100000 | C34: 100000 | E34: 200000 | F34: 12000000000 | G34: 2268000 | H34: 0.8831775701 | I34: 100000 | J34: 100000 | K34: 100000 | L34: 300000 | M34: 0.1168224299 | N34: 2568000
A35: Diciembre | B35: 100000 | C35: 100000 | E35: 200000 | F35: 12000000000 | G35: 2268000 | H35: 0.8831775701 | I35: 100000 | J35: 100000 | K35: 100000 | L35: 300000 | M35: 0.1168224299 | N35: 2568000
A36: Enero | B36: 100000 | C36: 100000 | E36: 200000 | F36: 12000000000 | G36: 2268000 | H36: 0.8831775701 | I36: 100000 | J36: 100000 | K36: 100000 | L36: 300000 | M36: 0.1168224299 | N36: 2568000
A37: Febrero | B37: 100000 | C37: 100000 | E37: 200000 | F37: 12000000000 | G37: 2268000 | H37: 0.8831775701 | I37: 100000 | J37: 100000 | K37: 100000 | L37: 300000 | M37: 0.1168224299 | N37: 2568000
A38: Marzo | B38: 100000 | C38: 100000 | E38: 200000 | F38: 12000000000 | G38: 2268000 | H38: 0.8831775701 | I38: 100000 | J38: 100000 | K38: 100000 | L38: 300000 | M38: 0.1168224299 | N38: 2568000
A39: Abril | B39: 100000 | C39: 100000 | E39: 200000 | F39: 12000000000 | G39: 2268000 | H39: 0.8831775701 | I39: 100000 | J39: 100000 | K39: 100000 | L39: 300000 | M39: 0.1168224299 | N39: 2568000
A40: Mayo | B40: 100000 | C40: 100000 | E40: 200000 | F40: 12000000000 | G40: 2268000 | H40: 0.8831775701 | I40: 100000 | J40: 100000 | K40: 100000 | L40: 300000 | M40: 0.1168224299 | N40: 2568000
A41: Junio | B41: 100000 | C41: 100000 | E41: 200000 | F41: 12000000000 | G41: 2268000 | H41: 0.8831775701 | I41: 100000 | J41: 100000 | K41: 100000 | L41: 300000 | M41: 0.1168224299 | N41: 2568000
A42: Total Julio 2015- Jun 2016 | B42: =SUM(B30:B41) -> 1200000 | C42: =SUM(C30:C41) -> 1200000 | D42: =SUM(D30:D41) -> 0 | E42: =B42+C42+D42 -> 2400000 | F42: =E42*60*1000 -> 144000000000 | G42: =(B42*13000+C42*12200)*2*3600/(8*1000*1000) -> 27216000 | H42: =G42/N42 -> 0.8831775701 | I42: =SUM(I30:I41) -> 1200000 | J42: =SUM(J30:J41) -> 1200000 | K42: =SUM(K30:K41) -> 1200000 | L42: 3600000 | M42: =L42/N42 -> 0.1168224299 | N42: 30816000
A45: Generador 4: Porcentaje de red Movil en red de transporte Compartida
B48: Capacidad en Gbps (IUB + overhead) | F48: =+(L41/IN!E9*8*IN!HoraPico/3600*(1+IN!E10)) -> 4.393939394
I49: T. Fija | J49: TV | K49: T. Movil
C50: HFC (datos) | D50: HFC (Voz) | E50: CORPORATIVO (datos) | F50: CORPORATIVO RPV (voz + Datos) | G50: FIJO | H50: MOVIL Datos | I50: TOTAL CLARO | J50: VIDEO | K50: Voz 2G+3G | L50: Total | M50: % Voz Movil/ Total | N50: Movil / Total
B51: 2016-06-01 | C51: 100 | D51: 100 | E51: 100 | F51: 100 | G51: =+SUM(C51:F51) -> 400 | H51: =H52/1.2 -> 3.661616162 | I51: =H51+G51 -> 403.6616162 | J51: 100 | K51: =+K52/2 -> 16.60909091 | L51: =+I51+J51+K51 -> 520.2707071 | M51: =+K51/L51 -> 0.03192394014 | N51: =+(K51+H51)/L51 -> 0.03896184581 | O51: Only DL
C52: =+C51*1.2 -> 120 | D52: =D51*2 -> 200 | E52: =+E51*1.2 -> 120 | F52: =F51*2 -> 200 | G52: =+SUM(C52:F52) -> 640 | H52: =+F48 -> 4.393939394 | I52: =H52+G52 -> 644.3939394 | J52: =+J51 -> 100 | K52: =H52*H42/M42 -> 33.21818182 | L52: =I52+J52+K52 -> 777.6121212 | M52: =+K52/L52 -> 0.04271818933 | N52: =+(K52+H52)/L52 -> 0.04836874347 | O52: DL + UL
A54: Generador 5: Porcentaje de Voz en Facturación
C55: Total | D55: Voz | E55: Datos
A56: INGRESOS (S/ X 1,000,000) | C56: 3651 | D56: =+C56*D57/C57 -> 2858.188196 | E56: =+C56*E57/C57 -> 792.811804
A57: ARPU Mensual (S/ ) | C57: =+IN!E14 -> 25.2525 | D57: =+IN!E15 -> 19.76893931 | E57: =+IN!E16 -> 5.48356069
A58: Generador 5 | D58: =+D57/C57 -> 0.7828507795
C61: Capacidad en Gbps de la Red de Agregación y CORE
C62: 2016-06-01
D63: DL | E63: UL+DL
C64: HFC (datos) | D64: 53.55 | E64: =+D64*1.2 -> 64.26
C65: HFC (Voz) | D65: 0.9 | E65: =D65*2 -> 1.8
C66: CORPORATIVO (datos) | D66: 7.65 | E66: =+D66*1.2 -> 9.18
C67: CORPORATIVO RPV (voz + Datos) | D67: 5 | E67: =D67*2 -> 10
C68: FIJO | D68: =SUM(D64:D67) -> 67.1 | E68: =SUM(E64:E67) -> 85.24
C69: VIDEO | D69: 1.7 | E69: =+D69 -> 1.7
C70: Móvil Datos | D70: 54.26888443 | E70: =+F48 -> 4.393939394
C71: Móvil Voz 2G+3G | D71: =+E71/2 -> 16.60909091 | E71: =+K52 -> 33.21818182
C72: Total | D72: =+D68+D69+D70+D71 -> 139.6779753 | E72: =+E68+E69+E70+E71 -> 124.5521212
C73: Móvil / Total | D73: =+(D71+D70)/D72 -> 0.5074384503 | E73: =+(E71+E70)/E72 -> 0.3019789695

Sheet Costos
A1: Costos Incrementales US MM$
C4: CLARO 2G/3G
D5: V% | E5: Voz | F5: Voz/min
A6: CAPEX ANUALIZADO
A7: Equipamiento RAN
A8: BTS (Estaciones Base 2G) | B8: =B116 -> 0.3018693109 | C8: =B8*CAPEX!E19/1000000 -> 0.07351996796 | D8: =+Generadores!Generador1 -> 0.9212598425 | E8: =+C8*D8 -> 0.0677309941
A9: Nodo-b (Estaciones Base 3G) | B9: =B116 -> 0.3018693109 | C9: =B9*CAPEX!D19/1000000 -> 0.3172059254 | D9: =+Generadores!Generador2 -> 0.9165275459 | E9: =+C9*D9 -> 0.2907279684
A10: Enlaces de Transmisión RAN 2G | B10: =B117 -> 0.1751883103 | C10: =B10*CAPEX!E35/1000000 -> 0.01067611578 | D10: =+D8 -> 0.9212598425 | E10: 0.009835476744
A11: Enlaces de Transmisión RAN | B11: =B117 -> 0.1751883103 | C11: =+B11*SUM(CAPEX!D30:D38)/1000000 -> 0.07566535691 | D11: =+Generadores!Generador3 -> 0.8831775701 | E11: 0.06682594606
A12: Routers de Acceso RAN | B12: =+B118 -> 0.2030786451 | C12: =B12*SUM(CAPEX!D39:D40)/1000000 -> 0.08287558276 | D12: =+Generadores!Generador3 -> 0.8831775701 | E12: 0.07319385581
A13: BSC | B13: =+B119 -> 0.2030786451 | C13: =+B13*CAPEX!D71/1000000 -> 1.857884393 | D13: =D8 -> 0.9212598425 | E13: 1.711594283
A14: RNC | B14: =+B119 -> 0.2030786451 | C14: =+B14*CAPEX!D72/1000000 -> 3.394142491 | D14: =D9 -> 0.9165275459 | E14: 3.110825088
A15: Costo Anual por Equipamiento RAN | E15: =+SUM(E8:E14) -> 5.330733612 | F15: =+E15*$B$105/D107 -> 0.05805634515
A16: Infraestructura RAN
A17: BTS (Estaciones Base 2G) | B17: =+B121 -> 0.1751883103 | C17: =+B17*CAPEX!E28/1000000 -> 0.01488215991 | D17: =+D8 -> 0.9212598425 | E17: =+C17*D17 -> 0.01371033629
A18: Nodo-b (Estaciones Base 3G) | B18: =+B17 -> 0.1751883103 | C18: =+B18*CAPEX!D28/1000000 -> 0.1050774651 | D18: =+D9 -> 0.9165275459 | E18: =+C18*D18 -> 0.09630639125
A19: Transporte Red de Acceso | B19: =+B122 -> 0.1751883103 | C19: =+B19*SUM(CAPEX!D58:D59)/1000000 -> 0.0393038478 | D19: =+D11 -> 0.8831775701 | E19: =+C19*D19 -> 0.03471227679
A20: BSC | B20: =+B123 -> 0.1642169825 | C20: =+B20*CAPEX!D84/1000000 -> 0.08532983296 | D20: =+D8 -> 0.9212598425 | E20: =+C20*D20 -> 0.07861094848
A21: RNC | B21: =+B123 -> 0.1642169825 | C21: =+B21*CAPEX!D85/1000000 -> 0.08532983296 | D21: =+D9 -> 0.9165275459 | E21: =+C21*D21 -> 0.0782071424
A22: Costo Anual por Infraestructura RAN | E22: =SUM(E17:E21) -> 0.3015470952 | F22: =+E22*B105/D107 -> 0.003284111253
A23: Equipamiento Red de Transporte (Agregación/Core)
A24: Agregación | B24: =+B118 -> 0.2030786451 | C24: =B24*CAPEX!D41/1000000 -> 0.5053246543 | D24: =+Generadores!Generador4 -> 0.04271818933 | E24: =+C24*D24 -> 0.02158655425
A25: Core IP | B25: =+B24 -> 0.2030786451 | C25: =B25*CAPEX!D42/1000000 -> 1.052759696 | D25: =+Generadores!Generador4 -> 0.04271818933 | E25: =+C25*D25 -> 0.04497198803
A26: Anillo Metro-IP | B26: 0.2030786451 | C26: =B26*CAPEX!D43/1000000 -> 0.1263311636 | D26: =+Generadores!Generador4 -> 0.04271818933 | E26: 0.005396638563
A27: Metropolitan BackBone | B27: 0.2030786451 | C27: =+B27*SUM(CAPEX!D44:F47)/1000000 -> 0.5763079516 | D27: =+Generadores!Generador4 -> 0.04271818933 | E27: 0.02461883219
A28: Dorsal | B28: 0.2030786451 | C28: =B28*SUM(CAPEX!D48:F50)/1000000 -> 0.3314243489 | D28: =+Generadores!Generador4 -> 0.04271818933 | E28: 0.01415784808
A29: Dorsal | B29: 0.2030786451 | C29: =+B29*SUM(CAPEX!D51:F53)/1000000 -> 0.3314243489 | D29: =+Generadores!Generador4 -> 0.04271818933 | E29: 0.01415784808
A30: Dorsal MW | B30: 0.2030786451 | C30: =+B30*SUM(CAPEX!D54:F55)/1000000 -> 0.5725843015 | D30: =+Generadores!Generador4 -> 0.04271818933 | E30: 0.0244597646
A31: Costo Anual por Equipamiento Red de Transporte | E31: =+SUM(E24:E30) -> 0.1493494738 | F31: =+E31*B105/D107 -> 0.001626546219
A32: Infraestructura Red de Transporte (Agregación/Core)
A33: Agregación | B33: =+B122 -> 0.1751883103 | C33: =B33*CAPEX!D60/1000000 -> 0.1937442562 | D33: =+D24 -> 0.04271818933 | E33: =+C33*D33 -> 0.008276403816
A34: Core IP | B34: =+B33 -> 0.1751883103 | C34: =B34*CAPEX!D61/1000000 -> 0.403633867 | D34: =+D25 -> 0.04271818933 | E34: =+C34*D34 -> 0.01724250795
A35: Anillo Metro-IP | B35: =+B34 -> 0.1751883103 | C35: =B35*CAPEX!D62/1000000 -> 0.04843606404 | D35: 0.04271818933 | E35: 0.002069100954
A36: Metropolitan BackBone | B36: 0.1751883103 | C36: =+B36*CAPEX!D64/1000000 -> 0.09617838237 | D36: 0.04271818933 | E36: 0.004108566347
A37: Dorsal | B37: 0.1751883103 | C37: =B37*CAPEX!D65/1000000 -> 0.07213378678 | D37: 0.04271818933 | E37: 0.00308142476
A38: Dorsal | B38: 0.1751883103 | C38: =+B38*CAPEX!D66/1000000 -> 0.07213378678 | D38: 0.04271818933 | E38: 0.00308142476
A39: Dorsal MW | B39: 0.1751883103 | C39: =+B39*CAPEX!D67/1000000 -> 0.1731210883 | D39: 0.04271818933 | E39: 0.007395419425
A40: Planta de F.O. | B40: 0.1751883103 | C40: =+B40*CAPEX!D63/1000000 -> 79.77831403 | D40: =+Generadores!Generador4 -> 0.04271818933 | E40: =+C40*D40 -> 3.407985123
A41: Costo Anual por Infraestructura Red de Transporte | E41: =SUM(E33:E40) -> 3.453239971 | F41: =+E41*B105/D107 -> 0.03760879951
A42: Equipamiento CORE/IT
A43: MSS | B43: =+B119 -> 0.2030786451 | C43: =+B43*CAPEX!D73/1000000 -> 1.644986905 | D43: 1 | E43: =+C43*D43 -> 1.644986905
A44: TSCM | B44: =+B43 -> 0.2030786451 | C44: =+B44*CAPEX!D74/1000000 -> 0.4513163212 | D44: 1 | E44: =+C44*D44 -> 0.4513163212
A45: Aterm in MGW | B45: =+B44 -> 0.2030786451 | C45: =+B45*CAPEX!D75/1000000 -> 0.2948545963 | D45: 1 | E45: =+C45*D45 -> 0.2948545963
A46: MGW | B46: 0.2030786451 | C46: =+B46*CAPEX!D76/1000000 -> 3.314270989 | D46: 1 | E46: =+C46*D46 -> 3.314270989
A47: HLR | B47: 0.2030786451 | C47: =+B47*CAPEX!D77/1000000 -> 3.611963524 | D47: =+D43 -> 1 | E47: 3.611963524
A48: STP | B48: 0.2030786451 | C48: =+B48*CAPEX!D78/1000000 -> 4.539448423 | D48: =+D43 -> 1 | E48: 4.539448423
A49: SBC | B49: 0.2030786451 | C49: =+B49*CAPEX!D79/1000000 -> 0.05575727281 | D49: =+D44 -> 1 | E49: =+C49*D49 -> 0.05575727281
A50: IP Clock | B50: 0.2030786451 | C50: =+B50*(CAPEX!D81+CAPEX!D82)/1000000 -> 0.09198386236 | D50: =+D9 -> 0.9165275459 | E50: 0.08430574363
A51: Interconnection Billing | B51: =+B120 -> 0.3018693109 | C51: =+B51*CAPEX!D92/1000000 -> 0.4678273483 | D51: 1 | E51: 0.4678273483
A52: Data Ware House | B52: =+B51 -> 0.3018693109 | C52: =+B52*CAPEX!D93/1000000 -> 3.122902036 | D52: =+Generadores!Generador5 -> 0.7828507795 | E52: 2.444766293
A53: Mediation | B53: =+B51 -> 0.3018693109 | C53: =+B53*CAPEX!D94/1000000 -> 0.2302792821 | D53: 1 | E53: 0.2302792821
A54: Costo Anual por Equipamiento CORE/IT | E54: =+SUM(E43:E53) -> 17.1397767 | F54: =+E54*B105/D107 -> 0.186667139
A55: Infraestructura CORE
A56: MSS | B56: =+B123 -> 0.1642169825 | C56: =+B56*CAPEX!D86/1000000 -> 0.1533562538 | D56: =+D43 -> 1 | E56: =+C56*D56 -> 0.1533562538
A57: MGW | B57: =+B56 -> 0.1642169825 | C57: =+B57*CAPEX!D87/1000000 -> 0.1187494294 | D57: =+D46 -> 1 | E57: =+C57*D57 -> 0.1187494294
A58: HLR | B58: =+B57 -> 0.1642169825 | C58: =+B58*CAPEX!D88/1000000 -> 0.1587033892 | D58: =+D47 -> 1 | E58: =+C58*D58 -> 0.1587033892
A59: STP | B59: =+B58 -> 0.1642169825 | C59: =+B59*CAPEX!D89/1000000 -> 0.08532983296 | D59: =+D48 -> 1 | E59: =+C59*D59 -> 0.08532983296
A60: Costo Anual por Infraestructura CORE/IT | E60: =+SUM(E56:E59) -> 0.5161389053 | F60: =+E60*B105/D107 -> 0.005621203499
A61: Espectro Radioelectrico
A62: Espectro 850 +1900 Mhz | B62: =+B124 -> 0.1642169825 | C62: =+Espectro!E47*Costos!B62 -> 33.0624332 | D62: =+Generadores!Generador3 -> 0.8831775701 | E62: =+C62*D62 -> 29.19999941
A63: Costo Anual por Espectro Radioeléctrico | E63: =+SUM(E62:E62) -> 29.19999941 | F63: =+E63*B105/D107 -> 0.3180134983
A64: Total Anualización | E64: =+E15+E22+E31+E41+E54+E60+E63 -> 56.09078517 | F64: =+F15+F22+F31+F41+F54+F60+F63 -> 0.6108776429
A66: O&M
A67: Radio Access Network
A68: BTS (Estaciones Base 2G) | C68: =+(OPEX!D14+OPEX!D16)/1000000 -> 0.1618682968 | D68: =+D8 -> 0.9212598425 | E68: =+C68*D68 -> 0.1491227616
A69: Nodo-b (Estaciones Base 3G) | C69: =+(OPEX!D15+OPEX!D17)/1000000 -> 0.06652221162 | D69: =+D9 -> 0.9165275459 | E69: 0.06096943936
A70: Transporte Acceso (Exclusivo 2G) | C70: =+OPEX!D18/1000000 -> 0.00914112 | D70: =+D10 -> 0.9212598425 | E70: 0.008421346772
A71: Transporte Red de Acceso | C71: =+(OPEX!D19+OPEX!D20)/1000000 -> 0.1190771863 | D71: =+Generadores!L26 -> 0.8831775701 | E71: 0.1051663001
A72: BSC | C72: =+(OPEX!D23+OPEX!D24)/1000000 -> 1.398270154 | D72: =+D68 -> 0.9212598425 | E72: 1.288170142
A73: RNC | C73: =+(OPEX!D25+OPEX!D26)/1000000 -> 2.532996627 | D73: =+D69 -> 0.9165275459 | E73: 2.321561182
A74: Transporte
A75: Transporte Red de Agregación y Core | C75: =+(OPEX!D21+OPEX!D22)/1000000 -> 25.6540243 | D75: =+Generadores!M52 -> 0.04271818933 | E75: 1.095893467
A76: CORE
A77: MSS | C77: =+(OPEX!D27+OPEX!D28)/1000000 -> 1.261730019 | D77: =+D43 -> 1 | E77: 1.261730019
A78: TSCM | C78: =+OPEX!D29/1000000 -> 0.3333558196 | D78: =+D44 -> 1 | E78: 0.3333558196
A79: Aterm in MGW | C79: =+OPEX!D30/1000000 -> 0.21778848 | D79: =+D46 -> 1 | E79: 0.21778848
A80: MGW | C80: =+(OPEX!D31+OPEX!D32)/1000000 -> 2.48417657 | D80: =+D46 -> 1 | E80: 2.48417657
A81: HLR | C81: =+(OPEX!D33+OPEX!D34)/1000000 -> 2.716226227 | D81: =+Generadores!Generador5 -> 0.7828507795 | E81: 2.126399819
A82: STP | C82: =+(OPEX!D35+OPEX!D36)/1000000 -> 3.378954062 | D82: 1 | E82: 3.378954062
A83: SBC | C83: =+OPEX!D37/1000000 -> 0.041184 | D83: =+D78 -> 1 | E83: 0.041184
A84: IP Clock | C84: =+OPEX!D38/1000000 -> 0.06794204947 | D84: =+D50 -> 0.9165275459 | E84: 0.06227075987
A85: Interconnection Billing | C85: =+OPEX!D39/1000000 -> 0.2324651752 | D85: =+D51 -> 1 | E85: 0.2324651752
A86: Data Ware House | C86: =+OPEX!D40/1000000 -> 1.551781809 | D86: =+D52 -> 0.7828507795 | E86: 1.214813599
A87: Mediation | C87: =+OPEX!D41/1000000 -> 0.1144266445 | D87: =+D53 -> 1 | E87: 0.1144266445
A88: Costo O&M | E88: =SUM(E68:E87) -> 16.49686959 | F88: =+E88*B105/D107 -> 0.179665319
A89: Alquiler de Capacidad de Transmisión
A90: Red de Acceso | C90: =+OPEX!D43/1000000 -> 12.96 | D90: =+Generadores!Generador3 -> 0.8831775701 | E90: =+C90*D90 -> 11.44598131
A91: Red de Agregación y Core | C91: =+(OPEX!D45+OPEX!D46)/1000000 -> 1.32 | D91: =+Generadores!Generador4 -> 0.04271818933 | E91: =+C91*D91 -> 0.05638800991
A92: Costo Anual por Alquiler de Capacidad de Transmisión | E92: =+SUM(E90:E91) -> 11.50236932 | F92: =+E92*B105/D107 -> 0.1252708486
A93: COSTO DE OPERACIÓN | E93: =+E88+E92 -> 27.99923891 | F93: =+F88+F92 -> 0.3049361676
A96: SUBTOTAL | E96: =+E64+E93 -> 84.09002407 | F96: =+F64+F93 -> 0.9158138104 | G96: =+E96/SUM(C8:C96) -> 0.4236234026
A97: Mark-Up | C97: 0.05
A98: COSTO INCREMENTAL TOTAL DE LARGO PLAZO | E98: =+E96/(1-C97) -> 88.51581481 | F98: =+F96/(1-$C$97) -> 0.9640145373
A99: OSIPTEL | B99: =+IN!E20 -> 0.01 | E99: =+E98*$B99 -> 0.8851581481 | F99: =+F98*$B99 -> 0.009640145373
A100: FITEL | B100: =+IN!E21 -> 0.005 | E100: =+E98*$B100 -> 0.4425790741 | F100: =+F98*$B100 -> 0.004820072686
A101: MTC | B101: =+IN!E22 -> 0.005 | E101: =+E98*$B101 -> 0.4425790741 | F101: =+F99*$B101 -> 4.820072686e-05
A102: Canon Radioelectrico (0.22% UIT x Lineas) | B102: =+IN!E23 -> 0.0022 | C102: =+IN!E18 -> 3950 | D102: =+Generadores!Generador5 -> 0.7828507795 | E102: =+$B102*C102/$B$114*Generadores!D7/1000000*D102 -> 24.963141 | F102: =+$B102*C102/$B$114*Generadores!D7*F98/(Costos!E98+Costos!F98)/1000000*D102 -> 0.2689414027
A103: Tasas y tributos | E103: =SUM(E99:E102) -> 26.7334573 | F103: =+E103*B105/D107 -> 0.2911507003
A104: TOTAL (Millones US$) | E104: =+E98+E103 -> 115.2492721
A105: Total Anualizado OFF NET | B105: =+Generadores!OFF_NET -> 0.870398606 | E105: =+E104*B105 -> 100.3128058 | F105: =+E105/D107 -> 1.255165238
A107: Total Minutos Facturados OFF NET (millones de minutos) | D107: =+(Generadores!D9+Generadores!D10)/1000000 -> 79.92
A110: Costo de Terminación por minuto (US$) | E110: =+F98+F103 -> 1.255165238
A113: WACC | B113: =+WACC!WACC -> 0.1550204377
A114: TC= | B114: =+IN!E17 -> 3.3285
A115: TASA DE COSTO ANUAL
A116: BTS, NODO-B | B116: =B113/(1-POWER((1+B113),-IN!E53)) -> 0.3018693109
A117: Tx ENLACES | B117: =B113/(1-POWER((1+B113),-IN!E54)) -> 0.1751883103
A118: TX EQUIPOS | B118: =B113/(1-POWER((1+B113),-IN!E55)) -> 0.2030786451
A119: Core | B119: =B113/(1-POWER((1+B113),-IN!E56)) -> 0.2030786451
A120: IT | B120: =B113/(1-POWER((1+B113),-IN!E57)) -> 0.3018693109
A121: Infra. BTS | B121: =B113/(1-POWER((1+B113),-IN!E58)) -> 0.1751883103
A122: INFRA Tx | B122: =B113/(1-POWER((1+B113),-IN!E59)) -> 0.1751883103
A123: Infra CORE | B123: =B113/(1-POWER((1+B113),-IN!E60)) -> 0.1642169825
A124: Espectro Radioelectrico | B124: =B113/(1-POWER((1+B113),-IN!E61)) -> 0.1642169825

Sheet WACC
A1: WACC
B3: METODOLOGÍA BASE | E3: Descripción | F3: Fuente
B4: Tasa libre de riesgo | C4: 0.04907846497 | E4: YTM T-Bond 10 años, promedio geométrico 1928-2016 | F4: Damodaran, según Lineamientos Proinversión 2012
B6: Beta convencional | C6: 0.7585317422 | E6: Beta Telecom (Wireless) | F6: Damodaran, según Lineamientos Proinversión 2012
B8: E/(D+E) | C8: 1 | E8: Peso ponderado de capital propio | F8: EEFF 2015, Claro Perú
B10: D/E | C10: =(1/C8)-1 -> 0 | E10: Deuda/capital propio, mercado | F10: EEFF 2015, Claro Perú
B12: Beta apalancado | C12: =+C6*(1+(1-C24)*C10) -> 0.7585317422 | E12: Fórmula
B14: Prima por riesgo de mercado | C14: 0.04617059202 | E14: Diferencia rendimientos S&P500 y 10y T-Bond , promedio geométrico | F14: Damodaran, según Lineamientos Proinversión 2012
B16: Prima por riesgo país | C16: 0.01802975827 | E16: EMBIG Perú, promedio últimos 5 años | F16: BCRP
B18: re | C18: =+C4+C12*C14+C16 -> 0.1021300828 | E18: Fórmula tasa de costo de capital propio
B20: rd | C20: =C21+C22 -> 0.06710822324 | E20: Fórmula tasa de deuda Modelo CAPM | F20: Lineamientos 2012, Ecuación (2'), p. 17
B21: Tasa libre riesgo | C21: =C4 -> 0.04907846497 | F21: BCRP
B22: Riesgo país | C22: =C16 -> 0.01802975827 | F22: BCRP
B24: Tasa impositiva | C24: 0.3411831089 | E24: Tasa promedio geométrico 2016-2020 | F24: MEF/SUNAT
B26: WACC después impuesto | C26: =+C18*C8+C20*(1-C8)*(1-C24) -> 0.1021300828
B27: WACC antes impuesto | C27: =+C26/(1-C24) -> 0.1550204377
B29: Nota:
B30: Lineamientos 2012: "Lineamientos de Proinversión para la Determinación de la Tasa de Descuento". PROINVERSIÓN, Septiembre 2012
B31: Memorandum No 5-2012-DPI/JEF.

Sheet Espectro
A1: Espectro radioeléctrico
A3: A) Actualización del Histórico Pagado (en USD miles corrientes)
B4: 2000-05-01 | C4: 2005-05-01 | D4: 2007-09-01
A5: Banda A 1900 | B5: 180500 | C5: - | D5: -
A6: Banda C 1900 | B6: - | C6: 21100 | D6: -
A7: Banda B 850 | B7: - | C7: - | D7: 22220 | H7: Indice de Precios al Consumidor de los EEUU, Años 2000-2016 (Base Junio 2016=1.00)
A8: Mhz | B8: 30 | C8: 30 | D8: 25 | E8: =SUM(B8:D8) -> 85 | H8: Mes | I8: 2000 | J8: 2001 | K8: 2002 | L8: 2003 | M8: 2004 | N8: 2005 | O8: 2006 | P8: 2007 | Q8: 2008 | R8: 2009 | S8: 2010 | T8: 2011 | U8: 2012 | V8: 2013 | W8: 2014 | X8: 2015 | Y8: 2016
H9: 1 | I9: 0.7000146263 | J9: 0.7260636053 | K9: 0.7347465983 | L9: 0.7550069153 | M9: 0.770305522 | N9: 0.7922197424 | O9: 0.8240573835 | P9: 0.8411628797 | Q9: 0.8772882653 | R9: 0.8762917885 | S9: 0.8991694077 | T9: 0.9141206947 | U9: 0.9413439451 | V9: 0.9564564877 | W9: 0.9713912357 | X9: 0.9699172994 | Y9: 0.9902683331
A10: Pagado a dólares de Junio 2016 (USD miles) | E10: Total | H10: 2 | I10: 0.7029089573 | J10: 0.7277175087 | K10: 0.7359870259 | L10: 0.7591416739 | M10: 0.7719594254 | N10: 0.7955275493 | O10: 0.8244708593 | P10: 0.8444252042 | Q10: 0.8794093965 | R10: 0.8794838221 | S10: 0.8982804346 | T10: 0.9171556075 | U10: 0.9432955512 | V10: 0.9617407092 | W10: 0.9723670387 | X10: 0.9722955091 | Y10: 0.9904995479
B11: 2000-05-01 | C11: 2005-05-01 | D11: 2007-09-01 | H11: 3 | I11: 0.7070437159 | J11: 0.7281309846 | K11: 0.7380544051 | L11: 0.7603821014 | M11: 0.7736133289 | N11: 0.7984218803 | O11: 0.8257112869 | P11: 0.8488163178 | Q11: 0.8825559477 | R11: 0.8786155228 | S11: 0.8985037115 | T11: 0.9218650975 | U11: 0.9457515978 | V11: 0.9595740957 | W11: 0.97431451 | X11: 0.9743599272 | Y11: 0.9925268065
A12: Banda A 1900 | B12: =B5/I13 -> 254990.0826 | C12: - | D12: - | H12: 4 | I12: 0.70663024 | J12: 0.7293714121 | K12: 0.741362212 | L12: 0.7574877704 | M12: 0.7748537564 | N12: 0.8009027354 | O12: 0.8298460455 | P12: 0.8513633291 | Q12: 0.8845985185 | R12: 0.8795003611 | S12: 0.8987972794 | T12: 0.9264174667 | U12: 0.9476205086 | V12: 0.9580525045 | W12: 0.9763500262 | X12: 0.9752352404 | Y12: 0.9950742984
A13: Banda C 1900 | B13: - | C13: =C6/N13 -> 26358.87958 | D13: - | H13: 5 | I13: 0.7078706676 | J13: 0.7330926949 | K13: 0.7421891637 | L13: 0.7562473429 | M13: 0.7781615633 | N13: 0.8004892596 | O13: 0.8323269006 | P13: 0.8548820086 | Q13: 0.8898331228 | R13: 0.8807945406 | S13: 0.898478903 | T13: 0.9299816286 | U13: 0.9463800811 | V13: 0.9597766988 | W13: 0.9778405361 | X13: 0.9780841374 | Y13: 0.9979149377
A14: Banda B 850 | B14: - | C14: - | D14: =D7/P17 -> 25768.54823 | H14: 6 | I14: 0.7120054261 | J14: 0.7347465983 | K14: 0.7426026396 | L14: 0.7570742946 | M14: 0.7810558943 | N14: 0.8009027354 | O14: 0.8343942799 | P14: 0.856862558 | Q14: 0.8991570034 | R14: 0.8881047937 | S14: 0.8984210164 | T14: 0.9302793312 | U14: 0.9461361303 | V14: 0.9628198811 | W14: 0.9786539168 | X14: 0.9802641629 | Y14: 1
A15: Total | E15: =SUM(B12:D14) -> 307117.5104 | H15: 7 | I15: 0.7140728054 | J15: 0.7335061707 | K15: 0.744256543 | L15: 0.7595551497 | M15: 0.781882846 | N15: 0.8058644457 | O15: 0.8389425143 | P15: 0.8583882839 | Q15: 0.9055782835 | R15: 0.8878401692 | S15: 0.9000418417 | T15: 0.9326072003 | U15: 0.9459459314 | V15: 0.9644407065 | W15: 0.9802848071 | X15: 0.9821510411
H16: 8 | I16: 0.7140728054 | J16: 0.7335061707 | K16: 0.7463239223 | L16: 0.7628629566 | M16: 0.7822963219 | N16: 0.810826156 | O16: 0.842663797 | P16: 0.8586529084 | Q16: 0.9042303522 | R16: 0.8908130606 | S16: 0.9014269859 | T16: 0.9350715164 | U16: 0.9507960032 | V16: 0.9651890978 | W16: 0.9795911626 | X16: 0.9818826667
B17: Mill. USD | C17: IPC EEUU | D17: Mill. USD | E17: MHz | H17: 9 | I17: 0.7177940881 | J17: 0.7364005017 | K17: 0.7475643499 | L17: 0.7653438117 | M17: 0.784777177 | N17: 0.8219900042 | O17: 0.8385290385 | P17: 0.862291496 | Q17: 0.905003552 | R17: 0.8925331202 | S17: 0.9025392359 | T17: 0.9372422646 | U17: 0.9554848194 | V17: 0.966470873 | W17: 0.980540795 | X17: 0.9804623471
A18: Fecha | B18: Corrientes | C18: (Jun-2016=1.00) | D18: Constantes (precios Jun 2016) | H18: 10 | I18: 0.7190345157 | J18: 0.7343331224 | K18: 0.7492182533 | L18: 0.76451686 | M18: 0.7889119356 | N18: 0.8232304317 | O18: 0.8348077557 | P18: 0.8649501457 | Q18: 0.8972219364 | R18: 0.8952124437 | S18: 0.9056113615 | T18: 0.9376019886 | U18: 0.9578250928 | V18: 0.9666321285 | W18: 0.9806233717 | X18: 0.9818042188
A19: 2000-05-01 | B19: =B5/1000 -> 180.5 | C19: =I13 -> 0.7078706676 | D19: =B19/C19 -> 254.9900826 | E19: 30 | H19: 11 | I19: 0.7202749433 | J19: 0.7339196466 | K19: 0.7504586809 | L19: 0.7649303359 | M19: 0.7926332183 | N19: 0.8190956732 | O19: 0.8352212316 | P19: 0.8717476888 | Q19: 0.881336194 | R19: 0.8982101437 | S19: 0.907761436 | T19: 0.9391525231 | U19: 0.9559148343 | V19: 0.9676699529 | W19: 0.9790213832 | X19: 0.9832947287
A20: 2005-05-01 | B20: =C6/1000 -> 21.1 | C20: =N13 -> 0.8004892596 | D20: =B20/C20 -> 26.35887958 | E20: 30 | H20: 12 | I20: 0.7219288467 | J20: 0.7335061707 | K20: 0.7516991084 | L20: 0.7669977152 | M20: 0.7926332183 | N20: 0.8190956732 | O20: 0.839769466 | P20: 0.8742740263 | Q20: 0.8740796927 | R20: 0.8986773714 | S20: 0.9114537754 | T20: 0.9389747285 | U20: 0.9555385713 | V20: 0.9699895525 | W20: 0.9756027069 | X20: 0.982027176
A21: 2007-09-01 | B21: =D7/1000 -> 22.22 | C21: =P17 -> 0.862291496 | D21: =B21/C21 -> 25.76854823 | E21: 25 | H21: Prom. | I21: 0.7119709698 | J21: 0.7320245489 | K21: 0.7437052419 | L21: 0.7607955773 | M21: 0.7810903506 | N21: 0.8073805239 | O21: 0.8333950466 | P21: 0.8573180705 | Q21: 0.8900243554 | R21: 0.8871730948 | S21: 0.9017071158 | T21: 0.9300391706 | U21: 0.9493360889 | V21: 0.9632343907 | W21: 0.9772151242 | X21: 0.9784815379 | Y21: 0.9943806539
A23: Total | D23: =SUM(D19:D21) -> 307.1175104 | E23: 85
H24: Serie Original: IPC Base 1982-84 = 100.00
A25: Precio MHz en M | D25: =D23/E23 -> 3.613147181
D26: USDM | E26: MHz | H26: Consumer Price Index for All Urban Consumers: All Items, Index 1982-84=100, Monthly, Seasonally Adjusted
A27: Precio | D27: =D25*E27 -> 216.7888309 | E27: 60 | H27: Fuente: | J27: Federal Reserve Bank of Saint Louis
I28: https://research.stlouisfed.org/fred2/series/CPIAUCSL#
A31: B) Método de comparables
A32: B.1 Espectro 4G, Julio 2013 | E32: B.2 Aplicación caso Claro | G32: Valoración
C33: En USD | E33: Ancho Banda | F33: Población | G33: 2016
A34: Operador | B34: Banda | C34: p-mhz-pop | E34: MHz | F34: 2013 | G34: USD M
A35: Movistar | B35: 1.7 GHz | C35: 0.1225371658 | E35: 60 | F35: 30000000 | G35: =C35*E35*F35/1000000/V15 -> 228.6992834
A36: Entel/Nextel | B36: 1.7 GHz | C36: 0.08493152073 | E36: 60 | F36: =F35 -> 30000000 | G36: =C36*E36*F36/1000000/V15 -> 158.5133604
A38: Promedio | C38: =AVERAGE(C35:C36) -> 0.1037343433 | G38: =AVERAGE(G35:G36) -> 193.6063219
A41: C) Valor utilizado en el Modelo
E42: USD M
B43: Comparables (base Movistar) | E43: =G35 -> 228.6992834
B44: Comparables (base Entel/Nextel) | E44: =G36 -> 158.5133604
B45: Actualización con inflación | E45: =D27 -> 216.7888309
C47: Promedio simple | E47: =AVERAGE(E43:E45) -> 201.3338249

Sheet Trafico
A1: TRAFICO
A2: TRAFICO FACTURADO
C3: Distribución del tráfico total por red de destino (4/) | L3: Tráfico total (a+b+c+d+e+f)
C4: Tráfico local | I4: Tráfico de larga distancia internacional
A5: Segmentación de usuarios (5/) | B5: Código del plan tarifario (6/) | C5: (a) Local a fijo | D5: (b) Local a móvil ON-NET (9/) | F5: (c) Local a móvil OFF-NET (11/) | I5: (d) LDI originado mediante llamada por llamada del propio operador | J5: (e) LDI originado mediante llamada por llamada de otros operadores | K5: (f) Conexión directa internacional (12/)
D6: Interconexión móvil | E6: Conexión directa local (10/) | F6: Movistar | G6: Viettel | H6: Nextel
A7: Trafico Facturado Prepago | C7: =+C12+C17+C22+C27+C32+C37+C42+C47+C52+C57+C62+C67 -> 3500000 | D7: 3500000 | E7: 0 | F7: 3500000 | G7: 3500000 | H7: 3500000 | I7: 3500000 | J7: 3500000 | K7: 0 | L7: 24500000
A8: 2015-07-01
A9: Comerciales | B9: PLAN 1 | C9: 100000 | D9: 100000 | F9: 100000 | G9: 100000 | H9: 100000 | I9: 100000 | J9: 100000 | L9: =SUM(C9:K9) -> 700000
A10: Residenciales | B10: PLAN 1 | C10: 100000 | D10: 100000 | F10: 100000 | G10: 100000 | H10: 100000 | I10: 100000 | J10: 100000 | L10: 700000
B11: PLAN 2 | C11: 100000 | D11: 100000 | F11: 100000 | G11: 100000 | H11: 100000 | I11: 100000 | J11: 100000 | L11: 700000
C12: =SUM(C9:C11) -> 300000 | D12: 300000 | E12: 0 | F12: 300000 | G12: 300000 | H12: 300000 | I12: 300000 | J12: 300000 | K12: 0 | L12: 2100000
A13: 2015-08-01
A14: Comerciales | B14: PLAN 1 | C14: 100000 | D14: 100000 | F14: 100000 | G14: 100000 | H14: 100000 | I14: 100000 | J14: 100000 | L14: =SUM(C14:K14) -> 700000
A15: Residenciales | B15: PLAN 1 | C15: 100000 | D15: 100000 | F15: 100000 | G15: 100000 | H15: 100000 | I15: 100000 | J15: 100000 | L15: 700000
B16: PLAN 2 | C16: 100000 | D16: 100000 | F16: 100000 | G16: 100000 | H16: 100000 | I16: 100000 | J16: 100000 | L16: 700000
C17: =SUM(C14:C16) -> 300000 | D17: 300000 | E17: 0 | F17: 300000 | G17: 300000 | H17: 300000 | I17: 300000 | J17: 300000 | K17: 0 | L17: 2100000
A18: 2015-09-01
A19: Comerciales | B19: PLAN 1 | C19: 100000 | D19: 100000 | F19: 100000 | G19: 100000 | H19: 100000 | I19: 100000 | J19: 100000 | L19: =+SUM(C19:K19) -> 700000
A20: Residenciales | B20: PLAN 1 | C20: 100000 | D20: 100000 | F20: 100000 | G20: 100000 | H20: 100000 | I20: 100000 | J20: 100000 | L20: 700000
B21: PLAN 2 | C21: 100000 | D21: 100000 | F21: 100000 | G21: 100000 | H21: 100000 | I21: 100000 | J21: 100000 | L21: 700000
C22: =SUM(C19:C21) -> 300000 | D22: 300000 | E22: 0 | F22: 300000 | G22: 300000 | H22: 300000 | I22: 300000 | J22: 300000 | K22: 0 | L22: 2100000
A23: 2015-10-01
A24: Comerciales | B24: PLAN 1 | C24: 100000 | D24: 100000 | F24: 100000 | G24: 100000 | H24: 100000 | I24: 100000 | J24: 100000 | L24: =+SUM(C24:K24) -> 700000
A25: Residenciales | B25: PLAN 1 | C25: 100000 | D25: 100000 | F25: 100000 | G25: 100000 | H25: 100000 | I25: 100000 | J25: 100000 | L25: 700000
B26: PLAN 2 | C26: 100000 | D26: 100000 | F26: 100000 | G26: 100000 | H26: 100000 | I26: 100000 | J26: 100000 | L26: 700000
C27: =SUM(C24:C26) -> 300000 | D27: 300000 | E27: 0 | F27: 300000 | G27: 300000 | H27: 300000 | I27: 300000 | J27: 300000 | K27: 0 | L27: 2100000
A28: 2015-11-01
A29: Comerciales | B29: PLAN 1 | C29: 100000 | D29: 100000 | F29: 100000 | G29: 100000 | H29: 100000 | I29: 100000 | J29: 100000 | L29: =+SUM(C29:K29) -> 700000
A30: Residenciales | B30: PLAN 1 | C30: 100000 | D30: 100000 | F30: 100000 | G30: 100000 | H30: 100000 | I30: 100000 | J30: 100000 | L30: 700000
B31: PLAN 2 | C31: 100000 | D31: 100000 | F31: 100000 | G31: 100000 | H31: 100000 | I31: 100000 | J31: 100000 | L31: 700000
C32: =SUM(C30:C31) -> 200000 | D32: 200000 | E32: 0 | F32: 200000 | G32: 200000 | H32: 200000 | I32: 200000 | J32: 200000 | K32: 0 | L32: 1400000
A33: 2015-12-01
A34: Comerciales | B34: PLAN 1 | C34: 100000 | D34: 100000 | F34: 100000 | G34: 100000 | H34: 100000 | I34: 100000 | J34: 100000 | L34: =+SUM(C34:K34) -> 700000
A35: Residenciales | B35: PLAN 1 | C35: 100000 | D35: 100000 | F35: 100000 | G35: 100000 | H35: 100000 | I35: 100000 | J35: 100000 | L35: 700000
B36: PLAN 2 | C36: 100000 | D36: 100000 | F36: 100000 | G36: 100000 | H36: 100000 | I36: 100000 | J36: 100000 | L36: 700000
C37: =SUM(C34:C36) -> 300000 | D37: 300000 | E37: 0 | F37: 300000 | G37: 300000 | H37: 300000 | I37: 300000 | J37: 300000 | K37: 0 | L37: 2100000
A38: 2016-01-01
A39: Comerciales | B39: PLAN 1 | C39: 100000 | D39: 100000 | F39: 100000 | G39: 100000 | H39: 100000 | I39: 100000 | J39: 100000 | L39: =+SUM(C39:K39) -> 700000
A40: Residencial | B40: PLAN 1 | C40: 100000 | D40: 100000 | F40: 100000 | G40: 100000 | H40: 100000 | I40: 100000 | J40: 100000 | L40: 700000
B41: PLAN 2 | C41: 100000 | D41: 100000 | F41: 100000 | G41: 100000 | H41: 100000 | I41: 100000 | J41: 100000 | L41: 700000
C42: =SUM(C39:C41) -> 300000 | D42: 300000 | E42: 0 | F42: 300000 | G42: 300000 | H42: 300000 | I42: 300000 | J42: 300000 | K42: 0 | L42: 2100000
A43: 2016-02-01
A44: Comercial | B44: PLAN 1 | C44: 100000 | D44: 100000 | F44: 100000 | G44: 100000 | H44: 100000 | I44: 100000 | J44: 100000 | L44: =+SUM(C44:K44) -> 700000
A45: Residencial | B45: PLAN 1 | C45: 100000 | D45: 100000 | F45: 100000 | G45: 100000 | H45: 100000 | I45: 100000 | J45: 100000 | L45: 700000
B46: PLAN 2 | C46: 100000 | D46: 100000 | F46: 100000 | G46: 100000 | H46: 100000 | I46: 100000 | J46: 100000 | L46: 700000
C47: =SUM(C44:C46) -> 300000 | D47: 300000 | E47: 0 | F47: 300000 | G47: 300000 | H47: 300000 | I47: 300000 | J47: 300000 | K47: 0 | L47: 2100000
A48: 2016-03-01
A49: Comericial | B49: PLAN 1 | C49: 100000 | D49: 100000 | F49: 100000 | G49: 100000 | H49: 100000 | I49: 100000 | J49: 100000 | L49: =+SUM(C49:K49) -> 700000
A50: Residencial | B50: PLAN 1 | C50: 100000 | D50: 100000 | F50: 100000 | G50: 100000 | H50: 100000 | I50: 100000 | J50: 100000 | L50: 700000
B51: PLAN 2 | C51: 100000 | D51: 100000 | F51: 100000 | G51: 100000 | H51: 100000 | I51: 100000 | J51: 100000 | L51: 700000
C52: =SUM(C49:C51) -> 300000 | D52: 300000 | E52: 0 | F52: 300000 | G52: 300000 | H52: 300000 | I52: 300000 | J52: 300000 | K52: 0 | L52: 2100000
A53: 2016-04-01
A54: Comerciales | B54: PLAN 1 | C54: 100000 | D54: 100000 | F54: 100000 | G54: 100000 | H54: 100000 | I54: 100000 | J54: 100000 | L54: =+SUM(C54:K54) -> 700000
A55: Residencial | B55: PLAN 1 | C55: 100000 | D55: 100000 | F55: 100000 | G55: 100000 | H55: 100000 | I55: 100000 | J55: 100000 | L55: 700000
B56: PLAN 2 | C56: 100000 | D56: 100000 | F56: 100000 | G56: 100000 | H56: 100000 | I56: 100000 | J56: 100000 | L56: 700000
C57: =SUM(C54:C56) -> 300000 | D57: 300000 | E57: 0 | F57: 300000 | G57: 300000 | H57: 300000 | I57: 300000 | J57: 300000 | K57: 0 | L57: 2100000
A58: 2016-05-01
A59: Comercial | B59: PLAN 1 | C59: 100000 | D59: 100000 | F59: 100000 | G59: 100000 | H59: 100000 | I59: 100000 | J59: 100000 | L59: =+SUM(C59:K59) -> 700000
A60: Residencial | B60: PLAN 1 | C60: 100000 | D60: 100000 | F60: 100000 | G60: 100000 | H60: 100000 | I60: 100000 | J60: 100000 | L60: 700000
B61: PLAN 2 | C61: 100000 | D61: 100000 | F61: 100000 | G61: 100000 | H61: 100000 | I61: 100000 | J61: 100000 | L61: 700000
C62: =SUM(C59:C61) -> 300000 | D62: 300000 | E62: 0 | F62: 300000 | G62: 300000 | H62: 300000 | I62: 300000 | J62: 300000 | K62: 0 | L62: 2100000
A63: 2016-06-01
A64: Comericial | B64: PLAN 1 | C64: 100000 | D64: 100000 | F64: 100000 | G64: 100000 | H64: 100000 | I64: 100000 | J64: 100000 | L64: =+SUM(C64:K64) -> 700000
A65: Residencial | B65: PLAN 1 | C65: 100000 | D65: 100000 | F65: 100000 | G65: 100000 | H65: 100000 | I65: 100000 | J65: 100000 | L65: 700000
B66: PLAN 2 | C66: 100000 | D66: 100000 | F66: 100000 | G66: 100000 | H66: 100000 | I66: 100000 | J66: 100000 | L66: 700000
C67: =SUM(C64:C66) -> 300000 | D67: 300000 | E67: 0 | F67: 300000 | G67: 300000 | H67: 300000 | I67: 300000 | J67: 300000 | K67: 0 | L67: 2100000
A68: Trafico Promocional Prepago | C68: =+C73+C78+C83+C88+C93+C98+C103+C108+C113+C118+C123+C128 -> 3500000 | D68: 3500000 | E68: 0 | F68: 3500000 | G68: 3500000 | H68: 3500000 | I68: 3500000 | J68: 3500000 | K68: 0 | L68: 24500000
A69: 2015-07-01
A70: Comerciales | B70: PLAN 1 | C70: 100000 | D70: 100000 | F70: 100000 | G70: 100000 | H70: 100000 | I70: 100000 | J70: 100000 | L70: =+SUM(C70:K70) -> 700000
A71: Residenciales | B71: PLAN 1 | C71: 100000 | D71: 100000 | F71: 100000 | G71: 100000 | H71: 100000 | I71: 100000 | J71: 100000 | L71: 700000
B72: PLAN 2 | C72: 100000 | D72: 100000 | F72: 100000 | G72: 100000 | H72: 100000 | I72: 100000 | J72: 100000 | L72: 700000
C73: =SUM(C70:C72) -> 300000 | D73: 300000 | E73: 0 | F73: 300000 | G73: 300000 | H73: 300000 | I73: 300000 | J73: 300000 | K73: 0 | L73: 2100000
A74: 2015-08-01
A75: Comerciales | B75: PLAN 1 | C75: 100000 | D75: 100000 | F75: 100000 | G75: 100000 | H75: 100000 | I75: 100000 | J75: 100000 | L75: =+SUM(C75:K75) -> 700000
A76: Residenciales | B76: PLAN 1 | C76: 100000 | D76: 100000 | F76: 100000 | G76: 100000 | H76: 100000 | I76: 100000 | J76: 100000 | L76: 700000
B77: PLAN 2 | C77: 100000 | D77: 100000 | F77: 100000 | G77: 100000 | H77: 100000 | I77: 100000 | J77: 100000 | L77: 700000
C78: =SUM(C75:C77) -> 300000 | D78: 300000 | E78: 0 | F78: 300000 | G78: 300000 | H78: 300000 | I78: 300000 | J78: 300000 | K78: 0 | L78: 2100000
A79: 2015-09-01
A80: Comerciales | B80: PLAN 1 | C80: 100000 | D80: 100000 | F80: 100000 | G80: 100000 | H80: 100000 | I80: 100000 | J80: 100000 | L80: =+SUM(C80:K80) -> 700000
A81: Residenciales | B81: PLAN 1 | C81: 100000 | D81: 100000 | F81: 100000 | G81: 100000 | H81: 100000 | I81: 100000 | J81: 100000 | L81: 700000
B82: PLAN 2 | C82: 100000 | D82: 100000 | F82: 100000 | G82: 100000 | H82: 100000 | I82: 100000 | J82: 100000 | L82: 700000
C83: =SUM(C80:C82) -> 300000 | D83: 300000 | E83: 0 | F83: 300000 | G83: 300000 | H83: 300000 | I83: 300000 | J83: 300000 | K83: 0 | L83: 2100000
A84: 2015-10-01
A85: Comerciales | B85: PLAN 1 | C85: 100000 | D85: 100000 | F85: 100000 | G85: 100000 | H85: 100000 | I85: 100000 | J85: 100000 | L85: =+SUM(C85:K85) -> 700000
A86: Residenciales | B86: PLAN 1 | C86: 100000 | D86: 100000 | F86: 100000 | G86: 100000 | H86: 100000 | I86: 100000 | J86: 100000 | L86: 700000
B87: PLAN 2 | C87: 100000 | D87: 100000 | F87: 100000 | G87: 100000 | H87: 100000 | I87: 100000 | J87: 100000 | L87: 700000
C88: =SUM(C85:C87) -> 300000 | D88: 300000 | E88: 0 | F88: 300000 | G88: 300000 | H88: 300000 | I88: 300000 | J88: 300000 | K88: 0 | L88: 2100000
A89: 2015-11-01
A90: Comerciales | B90: PLAN 1 | C90: 100000 | D90: 100000 | F90: 100000 | G90: 100000 | H90: 100000 | I90: 100000 | J90: 100000 | L90: =+SUM(C90:K90) -> 700000
A91: Residenciales | B91: PLAN 1 | C91: 100000 | D91: 100000 | F91: 100000 | G91: 100000 | H91: 100000 | I91: 100000 | J91: 100000 | L91: 700000
B92: PLAN 2 | C92: 100000 | D92: 100000 | F92: 100000 | G92: 100000 | H92: 100000 | I92: 100000 | J92: 100000 | L92: 700000
C93: =SUM(C91:C92) -> 200000 | D93: 200000 | E93: 0 | F93: 200000 | G93: 200000 | H93: 200000 | I93: 200000 | J93: 200000 | K93: 0 | L93: 1400000
A94: 2015-12-01
A95: Comerciales | B95: PLAN 1 | C95: 100000 | D95: 100000 | F95: 100000 | G95: 100000 | H95: 100000 | I95: 100000 | J95: 100000 | L95: =+SUM(C95:K95) -> 700000
A96: Residenciales | B96: PLAN 1 | C96: 100000 | D96: 100000 | F96: 100000 | G96: 100000 | H96: 100000 | I96: 100000 | J96: 100000 | L96: 700000
B97: PLAN 2 | C97: 100000 | D97: 100000 | F97: 100000 | G97: 100000 | H97: 100000 | I97: 100000 | J97: 100000 | L97: 700000
C98: =SUM(C95:C97) -> 300000 | D98: 300000 | E98: 0 | F98: 300000 | G98: 300000 | H98: 300000 | I98: 300000 | J98: 300000 | K98: 0 | L98: 2100000
A99: 2016-01-01
A100: Comerciales | B100: PLAN 1 | C100: 100000 | D100: 100000 | F100: 100000 | G100: 100000 | H100: 100000 | I100: 100000 | J100: 100000 | L100: =+SUM(C100:K100) -> 700000
A101: Residencial | B101: PLAN 1 | C101: 100000 | D101: 100000 | F101: 100000 | G101: 100000 | H101: 100000 | I101: 100000 | J101: 100000 | L101: 700000
B102: PLAN 2 | C102: 100000 | D102: 100000 | F102: 100000 | G102: 100000 | H102: 100000 | I102: 100000 | J102: 100000 | L102: 700000
C103: =SUM(C100:C102) -> 300000 | D103: 300000 | E103: 0 | F103: 300000 | G103: 300000 | H103: 300000 | I103: 300000 | J103: 300000 | K103: 0 | L103: 2100000
A104: 2016-02-01
A105: Comercial | B105: PLAN 1 | C105: 100000 | D105: 100000 | F105: 100000 | G105: 100000 | H105: 100000 | I105: 100000 | J105: 100000 | L105: =+SUM(C105:K105) -> 700000
A106: Residencial | B106: PLAN 1 | C106: 100000 | D106: 100000 | F106: 100000 | G106: 100000 | H106: 100000 | I106: 100000 | J106: 100000 | L106: 700000
B107: PLAN 2 | C107: 100000 | D107: 100000 | F107: 100000 | G107: 100000 | H107: 100000 | I107: 100000 | J107: 100000 | L107: 700000
C108: =SUM(C105:C107) -> 300000 | D108: 300000 | E108: 0 | F108: 300000 | G108: 300000 | H108: 300000 | I108: 300000 | J108: 300000 | K108: 0 | L108: 2100000
A109: 2016-03-01
A110: Comericial | B110: PLAN 1 | C110: 100000 | D110: 100000 | F110: 100000 | G110: 100000 | H110: 100000 | I110: 100000 | J110: 100000 | L110: =+SUM(C110:K110) -> 700000
A111: Residencial | B111: PLAN 1 | C111: 100000 | D111: 100000 | F111: 100000 | G111: 100000 | H111: 100000 | I111: 100000 | J111: 100000 | L111: 700000
B112: PLAN 2 | C112: 100000 | D112: 100000 | F112: 100000 | G112: 100000 | H112: 100000 | I112: 100000 | J112: 100000 | L112: 700000
C113: =SUM(C110:C112) -> 300000 | D113: 300000 | E113: 0 | F113: 300000 | G113: 300000 | H113: 300000 | I113: 300000 | J113: 300000 | K113: 0 | L113: 2100000
A114: 2016-04-01
A115: Comerciales | B115: PLAN 1 | C115: 100000 | D115: 100000 | F115: 100000 | G115: 100000 | H115: 100000 | I115: 100000 | J115: 100000 | L115: =+SUM(C115:K115) -> 700000
A116: Residencial | B116: PLAN 1 | C116: 100000 | D116: 100000 | F116: 100000 | G116: 100000 | H116: 100000 | I116: 100000 | J116: 100000 | L116: 700000
B117: PLAN 2 | C117: 100000 | D117: 100000 | F117: 100000 | G117: 100000 | H117: 100000 | I117: 100000 | J117: 100000 | L117: 700000
C118: =SUM(C115:C117) -> 300000 | D118: 300000 | E118: 0 | F118: 300000 | G118: 300000 | H118: 300000 | I118: 300000 | J118: 300000 | K118: 0 | L118: 2100000
A119: 2016-05-01
A120: Comercial | B120: PLAN 1 | C120: 100000 | D120: 100000 | F120: 100000 | G120: 100000 | H120: 100000 | I120: 100000 | J120: 100000 | L120: =+SUM(C120:K120) -> 700000
A121: Residencial | B121: PLAN 1 | C121: 100000 | D121: 100000 | F121: 100000 | G121: 100000 | H121: 100000 | I121: 100000 | J121: 100000 | L121: 700000
B122: PLAN 2 | C122: 100000 | D122: 100000 | F122: 100000 | G122: 100000 | H122: 100000 | I122: 100000 | J122: 100000 | L122: 700000
C123: =SUM(C120:C122) -> 300000 | D123: 300000 | E123: 0 | F123: 300000 | G123: 300000 | H123: 300000 | I123: 300000 | J123: 300000 | K123: 0 | L123: 2100000
A124: 2016-06-01
A125: Comericial | B125: PLAN 1 | C125: 100000 | D125: 100000 | F125: 100000 | G125: 100000 | H125: 100000 | I125: 100000 | J125: 100000 | L125: =+SUM(C125:K125) -> 700000
A126: Residencial | B126: PLAN 1 | C126: 100000 | D126: 100000 | F126: 100000 | G126: 100000 | H126: 100000 | I126: 100000 | J126: 100000 | L126: 700000
B127: PLAN 2 | C127: 100000 | D127: 100000 | F127: 100000 | G127: 100000 | H127: 100000 | I127: 100000 | J127: 100000 | L127: 700000
C128: =SUM(C125:C127) -> 300000 | D128: 300000 | E128: 0 | F128: 300000 | G128: 300000 | H128: 300000 | I128: 300000 | J128: 300000 | K128: 0 | L128: 2100000
A129: Trafico Facturado Control | C129: =+C138+C143+C148+C153+C158+C163+C168+C173+C178+C183+C188+C193 -> 3600000 | D129: 3600000 | E129: 0 | F129: 3600000 | G129: 3600000 | H129: 3600000 | I129: 3600000 | J129: 3600000 | K129: 0 | L129: 25200000
C130: Distribución del tráfico total por red de destino (4/) | K130: Tráfico incluido y adicional
C131: Tráfico local | H131: Tráfico de larga distancia internacional
A132: Segmentación de usuarios (5/) | B132: Código del plan tarifario (6/) | C132: (a) Local a fijo | D132: (b) Local a móvil ON-NET (9/) | F132: (c) Local a móvil OFF-NET (11/) | H132: (d) LDI originado mediante llamada por llamada del propio operador | I132: (e) LDI originado mediante llamada por llamada de otros operadores | J132: (f) Conexión directa internacional (12/) | K132: A.Tráfico total incluído (13/) | L132: B.Tráfico total adicional (14/)
D133: Interconexión móvil | E133: Conexión directa local (10/) | F133: Movistar | G133: Nextel
A134: 2015-07-01
A135: Comerciales | B135: PLAN 1 | C135: 100000 | D135: 100000 | F135: 100000 | G135: 100000 | H135: 100000 | I135: 100000 | J135: 100000 | L135: =SUM(C135:K135) -> 700000
A136: Residenciales | B136: PLAN 1 | C136: 100000 | D136: 100000 | F136: 100000 | G136: 100000 | H136: 100000 | I136: 100000 | J136: 100000 | L136: =SUM(C136:K136) -> 700000
B137: PLAN 2 | C137: 100000 | D137: 100000 | F137: 100000 | G137: 100000 | H137: 100000 | I137: 100000 | J137: 100000 | L137: =SUM(C137:K137) -> 700000
C138: =SUM(C135:C137) -> 300000 | D138: 300000 | E138: 0 | F138: 300000 | G138: 300000 | H138: 300000 | I138: 300000 | J138: 300000 | K138: 0 | L138: 2100000
A139: 2015-08-01
A140: Comerciales | B140: PLAN 1 | C140: 100000 | D140: 100000 | F140: 100000 | G140: 100000 | H140: 100000 | I140: 100000 | J140: 100000 | L140: =SUM(C140:K140) -> 700000
A141: Residenciales | B141: PLAN 1 | C141: 100000 | D141: 100000 | F141: 100000 | G141: 100000 | H141: 100000 | I141: 100000 | J141: 100000 | L141: =SUM(C141:K141) -> 700000
B142: PLAN 2 | C142: 100000 | D142: 100000 | F142: 100000 | G142: 100000 | H142: 100000 | I142: 100000 | J142: 100000 | L142: =SUM(C142:K142) -> 700000
C143: =SUM(C140:C142) -> 300000 | D143: 300000 | E143: 0 | F143: 300000 | G143: 300000 | H143: 300000 | I143: 300000 | J143: 300000 | K143: 0 | L143: 2100000
A144: 2015-09-01
A145: Comerciales | B145: PLAN 1 | C145: 100000 | D145: 100000 | F145: 100000 | G145: 100000 | H145: 100000 | I145: 100000 | J145: 100000 | L145: =SUM(C145:K145) -> 700000
A146: Residenciales | B146: PLAN 1 | C146: 100000 | D146: 100000 | F146: 100000 | G146: 100000 | H146: 100000 | I146: 100000 | J146: 100000 | L146: =SUM(C146:K146) -> 700000
B147: PLAN 2 | C147: 100000 | D147: 100000 | F147: 100000 | G147: 100000 | H147: 100000 | I147: 100000 | J147: 100000 | L147: =SUM(C147:K147) -> 700000
C148: =SUM(C145:C147) -> 300000 | D148: 300000 | E148: 0 | F148: 300000 | G148: 300000 | H148: 300000 | I148: 300000 | J148: 300000 | K148: 0 | L148: 2100000
A149: 2015-10-01
A150: Comerciales | B150: PLAN 1 | C150: 100000 | D150: 100000 | F150: 100000 | G150: 100000 | H150: 100000 | I150: 100000 | J150: 100000 | L150: =SUM(C150:K150) -> 700000
A151: Residenciales | B151: PLAN 1 | C151: 100000 | D151: 100000 | F151: 100000 | G151: 100000 | H151: 100000 | I151: 100000 | J151: 100000 | L151: =SUM(C151:K151) -> 700000
B152: PLAN 2 | C152: 100000 | D152: 100000 | F152: 100000 | G152: 100000 | H152: 100000 | I152: 100000 | J152: 100000 | L152: =SUM(C152:K152) -> 700000
C153: =SUM(C150:C152) -> 300000 | D153: 300000 | E153: 0 | F153: 300000 | G153: 300000 | H153: 300000 | I153: 300000 | J153: 300000 | K153: 0 | L153: 2100000
A154: 2015-11-01
A155: Comerciales | B155: PLAN 1 | C155: 100000 | D155: 100000 | F155: 100000 | G155: 100000 | H155: 100000 | I155: 100000 | J155: 100000 | L155: =SUM(C155:K155) -> 700000
A156: Residenciales | B156: PLAN 1 | C156: 100000 | D156: 100000 | F156: 100000 | G156: 100000 | H156: 100000 | I156: 100000 | J156: 100000 | L156: =SUM(C156:K156) -> 700000
B157: PLAN 2 | C157: 100000 | D157: 100000 | F157: 100000 | G157: 100000 | H157: 100000 | I157: 100000 | J157: 100000 | L157: =SUM(C157:K157) -> 700000
C158: =SUM(C155:C157) -> 300000 | D158: 300000 | E158: 0 | F158: 300000 | G158: 300000 | H158: 300000 | I158: 300000 | J158: 300000 | K158: 0 | L158: 2100000
A159: 2015-12-01
A160: Comerciales | B160: PLAN 1 | C160: 100000 | D160: 100000 | F160: 100000 | G160: 100000 | H160: 100000 | I160: 100000 | J160: 100000 | L160: =SUM(C160:K160) -> 700000
A161: Residenciales | B161: PLAN 1 | C161: 100000 | D161: 100000 | F161: 100000 | G161: 100000 | H161: 100000 | I161: 100000 | J161: 100000 | L161: =SUM(C161:K161) -> 700000
B162: PLAN 2 | C162: 100000 | D162: 100000 | F162: 100000 | G162: 100000 | H162: 100000 | I162: 100000 | J162: 100000 | L162: =SUM(C162:K162) -> 700000
C163: =SUM(C160:C162) -> 300000 | D163: 300000 | E163: 0 | F163: 300000 | G163: 300000 | H163: 300000 | I163: 300000 | J163: 300000 | K163: 0 | L163: 2100000
A164: 2016-01-01
B165: PLAN 1 | C165: 100000 | D165: 100000 | F165: 100000 | G165: 100000 | H165: 100000 | I165: 100000 | J165: 100000 | L165: =SUM(C165:K165) -> 700000
B166: PLAN 1 | C166: 100000 | D166: 100000 | F166: 100000 | G166: 100000 | H166: 100000 | I166: 100000 | J166: 100000 | L166: =SUM(C166:K166) -> 700000
B167: PLAN 2 | C167: 100000 | D167: 100000 | F167: 100000 | G167: 100000 | H167: 100000 | I167: 100000 | J167: 100000 | L167: =SUM(C167:K167) -> 700000
C168: =SUM(C165:C167) -> 300000 | D168: 300000 | E168: 0 | F168: 300000 | G168: 300000 | H168: 300000 | I168: 300000 | J168: 300000 | K168: 0 | L168: 2100000
A169: 2016-02-01
A170: Comercial | B170: PLAN 1 | C170: 100000 | D170: 100000 | F170: 100000 | G170: 100000 | H170: 100000 | I170: 100000 | J170: 100000 | L170: =SUM(C170:K170) -> 700000
A171: Residencial | B171: PLAN 1 | C171: 100000 | D171: 100000 | F171: 100000 | G171: 100000 | H171: 100000 | I171: 100000 | J171: 100000 | L171: =SUM(C171:K171) -> 700000
B172: PLAN 2 | C172: 100000 | D172: 100000 | F172: 100000 | G172: 100000 | H172: 100000 | I172: 100000 | J172: 100000 | L172: =SUM(C172:K172) -> 700000
C173: =SUM(C170:C172) -> 300000 | D173: 300000 | E173: 0 | F173: 300000 | G173: 300000 | H173: 300000 | I173: 300000 | J173: 300000 | K173: 0 | L173: 2100000
A174: 2016-03-01
A175: Comercial | B175: PLAN 1 | C175: 100000 | D175: 100000 | F175: 100000 | G175: 100000 | H175: 100000 | I175: 100000 | J175: 100000 | L175: =SUM(C175:K175) -> 700000
A176: Residencial | B176: PLAN 1 | C176: 100000 | D176: 100000 | F176: 100000 | G176: 100000 | H176: 100000 | I176: 100000 | J176: 100000 | L176: =SUM(C176:K176) -> 700000
B177: PLAN 2 | C177: 100000 | D177: 100000 | F177: 100000 | G177: 100000 | H177: 100000 | I177: 100000 | J177: 100000 | L177: =SUM(C177:K177) -> 700000
C178: =SUM(C175:C177) -> 300000 | D178: 300000 | E178: 0 | F178: 300000 | G178: 300000 | H178: 300000 | I178: 300000 | J178: 300000 | K178: 0 | L178: 2100000
A179: 2016-04-01
A180: Comercial | B180: PLAN 1 | C180: 100000 | D180: 100000 | F180: 100000 | G180: 100000 | H180: 100000 | I180: 100000 | J180: 100000 | L180: =SUM(C180:K180) -> 700000
A181: Residencial | B181: PLAN 1 | C181: 100000 | D181: 100000 | F181: 100000 | G181: 100000 | H181: 100000 | I181: 100000 | J181: 100000 | L181: =SUM(C181:K181) -> 700000
B182: PLAN 2 | C182: 100000 | D182: 100000 | F182: 100000 | G182: 100000 | H182: 100000 | I182: 100000 | J182: 100000 | L182: =SUM(C182:K182) -> 700000
C183: =SUM(C180:C182) -> 300000 | D183: 300000 | E183: 0 | F183: 300000 | G183: 300000 | H183: 300000 | I183: 300000 | J183: 300000 | K183: 0 | L183: 2100000
A184: 2016-05-01
A185: Comercial | B185: PLAN 1 | C185: 100000 | D185: 100000 | F185: 100000 | G185: 100000 | H185: 100000 | I185: 100000 | J185: 100000 | L185: =SUM(C185:K185) -> 700000
A186: Residencial | B186: PLAN 1 | C186: 100000 | D186: 100000 | F186: 100000 | G186: 100000 | H186: 100000 | I186: 100000 | J186: 100000 | L186: =SUM(C186:K186) -> 700000
B187: PLAN 2 | C187: 100000 | D187: 100000 | F187: 100000 | G187: 100000 | H187: 100000 | I187: 100000 | J187: 100000 | L187: =SUM(C187:K187) -> 700000
C188: =SUM(C185:C187) -> 300000 | D188: 300000 | E188: 0 | F188: 300000 | G188: 300000 | H188: 300000 | I188: 300000 | J188: 300000 | K188: 0 | L188: 2100000
A189: 2016-06-01
A190: Comercial | B190: PLAN 1 | C190: 100000 | D190: 100000 | F190: 100000 | G190: 100000 | H190: 100000 | I190: 100000 | J190: 100000 | L190: =SUM(C190:K190) -> 700000
A191: Residencial | B191: PLAN 1 | C191: 100000 | D191: 100000 | F191: 100000 | G191: 100000 | H191: 100000 | I191: 100000 | J191: 100000 | L191: =SUM(C191:K191) -> 700000
B192: PLAN 2 | C192: 100000 | D192: 100000 | F192: 100000 | G192: 100000 | H192: 100000 | I192: 100000 | J192: 100000 | L192: =SUM(C192:K192) -> 700000
C193: =SUM(C190:C192) -> 300000 | D193: 300000 | E193: 0 | F193: 300000 | G193: 300000 | H193: 300000 | I193: 300000 | J193: 300000 | K193: 0 | L193: 2100000
A194: Trafico Promocional Control | C194: =+C203+C208+C213+C218+C223+C227+C231+C236+C241+C246+C251+C256 -> 3400000 | D194: 3400000 | E194: 0 | F194: 3400000 | G194: 3400000 | H194: 3400000 | I194: 3400000 | J194: 3400000 | K194: 0 | L194: 23800000
C195: Distribución del tráfico total por red de destino (4/) | K195: Tráfico incluido y adicional
C196: Tráfico local | H196: Tráfico de larga distancia internacional
A197: Segmentación de usuarios (5/) | B197: Código del plan tarifario (6/) | C197: (a) Local a fijo | D197: (b) Local a móvil ON-NET (9/) | F197: (c) Local a móvil OFF-NET (11/) | H197: (d) LDI originado mediante llamada por llamada del propio operador | I197: (e) LDI originado mediante llamada por llamada de otros operadores | J197: (f) Conexión directa internacional (12/) | K197: A.Tráfico total incluído (13/) | L197: B.Tráfico total adicional (14/)
D198: Interconexión móvil | E198: Conexión directa local (10/) | F198: Movistar | G198: Nextel
A199: 2015-07-01
A200: Comerciales | B200: PLAN 1 | C200: 100000 | D200: 100000 | F200: 100000 | G200: 100000 | H200: 100000 | I200: 100000 | J200: 100000 | L200: =SUM(C200:K200) -> 700000
... 494 more rows

Sheet 2G
A1: CODIGO | B1: NOMBRE | C1: DEPARTAMENTO | D1: PROVINCIA | E1: DISTRITO | F1: LONGITUD | G1: LATITUD | H1: TIPO CW | I1: ALTURA TORRE | J1: TRX | K1: CANT. ANT INDOOR | L1: COUBICADO 2G/3G | M1: COUBICADO 2G/4G
A2: CODIGO 1 | B2: NOMBRE 1 | C2: DEPARTAMENTO 1 | D2: PROVINCIA 1 | E2: DISTRITO 1 | F2: -1 | G2: -1 | H2: Rooftop | I2: 10 | J2: 1 | K2: NO APLICA | L2: =+SUMIF('3G'!$A$2:$A$11,A2,'3G'!$AC$2:$AC$11) -> 1 | M2: =SUMIF('4G'!$B$2:$B$4,A2,'4G'!$M$2:$M$4) -> 3 | N2: 1
A3: CODIGO 2 | B3: NOMBRE 2 | C3: DEPARTAMENTO 2 | D3: PROVINCIA 2 | E3: DISTRITO 2 | F3: -1 | G3: -1 | H3: Indoor | I3: 20 | J3: 2 | K3: 10 | L3: =+SUMIF('3G'!$A$2:$A$11,A3,'3G'!$AC$2:$AC$11) -> 1 | M3: =SUMIF('4G'!$B$2:$B$4,A3,'4G'!$M$2:$M$4) -> 0 | N3: 1
A4: CODIGO 3 | B4: NOMBRE 3 | C4: DEPARTAMENTO 3 | D4: PROVINCIA 3 | E4: DISTRITO 3 | F4: -1 | G4: -1 | H4: Greenfield | I4: 30 | J4: 3 | K4: NO APLICA | L4: =+SUMIF('3G'!$A$2:$A$11,A4,'3G'!$AC$2:$AC$11) -> 1 | M4: =SUMIF('4G'!$B$2:$B$4,A4,'4G'!$M$2:$M$4) -> 0 | N4: 1
A5: CODIGO 4 | B5: NOMBRE 4 | C5: DEPARTAMENTO 4 | D5: PROVINCIA 4 | E5: DISTRITO 4 | F5: -1 | G5: -1 | H5: Poste | I5: 40 | J5: 1 | K5: NO APLICA | L5: =+SUMIF('3G'!$A$2:$A$11,A5,'3G'!$AC$2:$AC$11) -> 1 | M5: =SUMIF('4G'!$B$2:$B$4,A5,'4G'!$M$2:$M$4) -> 0 | N5: 1
L6: =SUM(L2:L5) -> 4 | M6: =SUM(M2:M5) -> 3
F8: Total TRXs | I8: =SUM(J2:J5) -> 7
F9: Estaciones con TRX (1-12) | I9: =COUNTIF(J2:J5,"<13")-COUNTIF(J2:J5,0) -> 4
F10: Estaciones con TRX (13-24) | I10: =COUNTIF(J2:J5,"<25")-I9 -> 0
F11: Estaciones con TRX (25-36) | I11: =COUNTIF(J2:J5,"<37")-I10-I9 -> 0
F12: Estaciones con TRX (37-48) | I12: =COUNT(J2:J5)-I11-I10-I9 -> 0
F13: Numero promedio TRX por EB | I13: =+I8/SUM(I9:I12) -> 1.75
F14: Número de Sites | I14: =SUM(I15:M22) -> 3 | K14: Coubicados 2G/3G | L14: Coubicados 2G/4G | M14: Coubicados 2G/3G/4G
F15: Sites Indoor c/Antenas < 21 | I15: =COUNTIFS(H2:H5,"Indoor",K2:K5,"<21",L2:L5,0,M2:M5,0) -> 0 | K15: =COUNTIFS(H2:H5,"Indoor",K2:K5,"<21",L2:L5,1,M2:M5,0) -> 1 | L15: =COUNTIFS(H2:H5,"Indoor",K2:K5,"<21",L2:L5,0,M2:M5,1) -> 0 | M15: =COUNTIFS(H2:H5,"Indoor",K2:K5,"<21",L2:L5,1,M2:M5,1) -> 0
F16: Sites Indoor 20 > c/antenas < 61 | I16: =COUNTIFS(H2:H5,"Indoor",K2:K5,"<61",L2:L5,0,M2:M5,0)-I15 -> 0 | K16: =COUNTIFS(H2:H5,"Indoor",K2:K5,"<61",L2:L5,1,M2:M5,0)-K15 -> 0 | L16: =COUNTIFS(H2:H5,"Indoor",K2:K5,"<61",L2:L5,0,M2:M5,1)-L15 -> 0 | M16: =COUNTIFS(H2:H5,"Indoor",K2:K5,"<61",L2:L5,1,M2:M5,1)-M15 -> 0
F17: Sites Indoor c/Antenas > 60 | I17: =COUNTIFS(H2:H5,"Indoor",L2:L5,0,M2:M5,0)-I16-I15 -> 0 | K17: =COUNTIFS(H2:H5,"Indoor",L2:L5,1,M2:M5,0)-K16-K15 -> 0 | L17: =COUNTIFS(H2:H5,"Indoor",L2:L5,0,M2:M5,1)-L16-L15 -> 0 | M17: =COUNTIFS(H2:H5,"Indoor",L2:L5,1,M2:M5,1)-M16-M15 -> 0
F18: Sites Poste | I18: =COUNTIFS(H2:H5,"POSTE",L2:L5,0,M2:M5,0) -> 0 | K18: =COUNTIFS(H2:H5,"POSTE",L2:L5,1,M2:M5,0) -> 1 | L18: =COUNTIFS(H2:H5,"POSTE",L2:L5,0,M2:M5,1) -> 0 | M18: =COUNTIFS(H2:H5,"POSTE",L2:L5,1,M2:M5,1) -> 0
F19: Sites Rooftop | I19: =COUNTIFS(H2:H5,"Rooftop",L2:L5,0,M2:M5,0) -> 0 | K19: =COUNTIFS(H2:H5,"Rooftop",L2:L5,1,M2:M5,0) -> 0 | L19: =COUNTIFS(H2:H5,"Rooftop",L2:L5,0,M2:M5,1) -> 0 | M19: =COUNTIFS(H2:H5,"Rooftop",L2:L5,1,M2:M5,1) -> 0
F20: Sites Greenfield 30 | I20: =COUNTIFS(H2:H5,"Greenfield",I2:I5,"<31",L2:L5,0,M2:M5,0) -> 0 | K20: =COUNTIFS(H2:H5,"Greenfield",I2:I5,"<31",L2:L5,1,M2:M5,0) -> 1 | L20: =COUNTIFS(H2:H5,"Greenfield",I2:I5,"<31",L2:L5,0,M2:M5,1) -> 0 | M20: =COUNTIFS(H2:H5,"Greenfield",I2:I5,"<31",L2:L5,1,M2:M5,1) -> 0
F21: Sites Greenfield 42 | I21: =COUNTIFS(H2:H5,"Greenfield",I2:I5,"<43",L2:L5,0,M2:M5,0)-I20 -> 0 | K21: =COUNTIFS(H2:H5,"Greenfield",I2:I5,"<43",L2:L5,1,M2:M5,0)-K20 -> 0 | L21: =COUNTIFS(H2:H5,"Greenfield",I2:I5,"<43",L2:L5,0,M2:M5,1)-L20 -> 0 | M21: =COUNTIFS(H2:H5,"Greenfield",I2:I5,"<43",L2:L5,1,M2:M5,1)-M20 -> 0
F22: Sites Greenfield 72 | I22: =COUNTIFS(H2:H5,"Greenfield",L2:L5,0,M2:M5,0)-I21-I20 -> 0 | K22: =COUNTIFS(H2:H5,"Greenfield",L2:L5,1,M2:M5,0)-K21-K20 -> 0 | L22: =COUNTIFS(H2:H5,"Greenfield",L2:L5,0,M2:M5,1)-L21-L20 -> 0 | M22: =COUNTIFS(H2:H5,"Greenfield",L2:L5,1,M2:M5,1)-M21-M20 -> 0

Sheet 3G
A1: CODIGO | B1: NOMBRE | C1: DEPARTAMENTO | D1: PROVINCIA | E1: DISTRITO | F1: LONGITUD | G1: LATITUD | H1: TIPO CW | I1: ALTURA TORRE | J1: CE UL CAPACIDAD | K1: 2G/4G | L1: 3G/4G | M1: NUMERO DE RRU | N1: CANT. ANT INDOOR | O1: Driver | P1: %util | Q1: UTIL_CE_DL | R1: UTIL_CE_UL | S1: CE DL CAPACIDAD | T1: CE_DL/RRU | U1: CE_UL/RRU | V1: No SECTORES | W1: No carrier | X1: Postes
A2: CODIGO 1 | B2: NOMBRE 1 | C2: DEPARTAMENTO 1 | D2: PROVINCIA 1 | E2: DISTRITO 1 | F2: -1 | G2: -1 | H2: Rooftop | I2: 10 | J2: 512 | K2: =+SUMIF('2G'!$A$2:$A$5,A2,'2G'!$N$2:$N$5) -> 1 | L2: =SUMIF('4G'!$B$2:$B$4,A2,'4G'!$M$2:$M$4) -> 3 | M2: 3 | N2: NO APLICA | O2: Nodo B Tipo 1 | P2: =Q2/S2 -> 0.1510416667 | Q2: 116 | R2: 228 | S2: 768 | T2: =+P2*S2/M2 -> 38.66666667 | U2: =+P2*J2/M2 -> 25.77777778 | V2: 2 | W2: 6 | X2: =+IF(OR(H2="POSTE",H2="NAT"),IF(M2>=2,ROUND(M2/V2,0),1),0) -> 0 | AC2: 1
A3: CODIGO 2 | B3: NOMBRE 2 | C3: DEPARTAMENTO 2 | D3: PROVINCIA 2 | E3: DISTRITO 2 | F3: -1 | G3: -1 | H3: Greenfield | I3: 20 | J3: 1024 | K3: =+SUMIF('2G'!$A$2:$A$5,A3,'2G'!$N$2:$N$5) -> 1 | L3: 1 | M3: 3 | N3: NO APLICA | O3: Nodo B Tipo 2 | P3: 0.2158203125 | Q3: 221 | R3: 442.5 | S3: 1024 | T3: 73.66666667 | U3: 73.66666667 | V3: 2 | W3: 6 | X3: =+IF(OR(H3="POSTE",H3="NAT"),IF(M3>=2,ROUND(M3/V3,0),1),0) -> 0 | AC3: 1
A4: CODIGO 3 | B4: NOMBRE 3 | C4: DEPARTAMENTO 3 | D4: PROVINCIA 3 | E4: DISTRITO 3 | F4: -1 | G4: -1 | H4: Greenfield | I4: 30 | J4: =+J2+J3 -> 1536 | K4: =+SUMIF('2G'!$A$2:$A$5,A4,'2G'!$N$2:$N$5) -> 1 | L4: =SUMIF('4G'!$B$2:$B$4,A4,'4G'!$M$2:$M$4) -> 0 | M4: 4 | N4: NO APLICA | O4: Nodo B Tipo 3 | P4: 0.0796875 | Q4: 102 | R4: 236 | S4: 1280 | T4: 25.5 | U4: 30.6 | V4: 2 | W4: 8 | X4: 0 | Z4: Grupo | AA4: condicion | AC4: 1
A5: CODIGO 4 | B5: NOMBRE 4 | C5: DEPARTAMENTO 4 | D5: PROVINCIA 4 | E5: DISTRITO 4 | F5: -1 | G5: -1 | H5: Rooftop | I5: 40 | J5: =+J4+J2 -> 2048 | K5: =+SUMIF('2G'!$A$2:$A$5,A5,'2G'!$N$2:$N$5) -> 1 | L5: =SUMIF('4G'!$B$2:$B$4,A5,'4G'!$M$2:$M$4) -> 0 | M5: 3 | N5: NO APLICA | O5: Nodo B Tipo 4 | P5: 0.1627604167 | Q5: 125 | R5: 353 | S5: 768 | T5: 41.66666667 | U5: 111.1111111 | V5: 3 | W5: 9 | X5: 0 | Z5: Nodo B Tipo 1 | AA5: 0<=A<=384 | AC5: 1
A6: CODIGO 5 | B6: NOMBRE 5 | C6: DEPARTAMENTO 5 | D6: PROVINCIA 5 | E6: DISTRITO 5 | F6: -1 | G6: -1 | H6: Rooftop | I6: 50 | J6: =+J5+J2 -> 2560 | K6: =+SUMIF('2G'!$A$2:$A$5,A6,'2G'!$N$2:$N$5) -> 0 | L6: =SUMIF('4G'!$B$2:$B$4,A6,'4G'!$M$2:$M$4) -> 0 | M6: 3 | N6: NO APLICA | O6: Nodo B Tipo 5 | P6: 0.09505208333 | Q6: 73 | R6: 185.5 | S6: 768 | T6: 24.33333333 | U6: 81.11111111 | V6: 2 | W6: 6 | X6: 0 | Z6: Nodo B Tipo 2 | AA6: 384<B<=512 | AC6: 1
A7: CODIGO 6 | B7: NOMBRE 6 | C7: DEPARTAMENTO 6 | D7: PROVINCIA 6 | E7: DISTRITO 6 | F7: -1 | G7: -1 | H7: Greenfield | I7: 60 | J7: =+J6+J2 -> 3072 | K7: =+SUMIF('2G'!$A$2:$A$5,A7,'2G'!$N$2:$N$5) -> 0 | L7: =SUMIF('4G'!$B$2:$B$4,A7,'4G'!$M$2:$M$4) -> 0 | M7: 3 | N7: NO APLICA | O7: Nodo B Tipo 6 | P7: 0.03515625 | Q7: 36 | R7: 117.5 | S7: 1024 | T7: 12 | U7: 36 | V7: 2 | W7: 6 | X7: 0 | Z7: Nodo B Tipo 3 | AA7: 512<C<=768 | AC7: 1
A8: CODIGO 7 | B8: NOMBRE 7 | C8: DEPARTAMENTO 7 | D8: PROVINCIA 7 | E8: DISTRITO 7 | F8: -1 | G8: -1 | H8: Rooftop | I8: 70 | J8: =+J7+J2 -> 3584 | K8: =+SUMIF('2G'!$A$2:$A$5,A8,'2G'!$N$2:$N$5) -> 0 | L8: =SUMIF('4G'!$B$2:$B$4,A8,'4G'!$M$2:$M$4) -> 0 | M8: 4 | N8: NO APLICA | O8: Nodo B Tipo 7 | P8: 0.05078125 | Q8: 78 | R8: 218 | S8: 1536 | T8: 19.5 | U8: 45.5 | V8: 2 | W8: 4 | X8: 0 | Z8: Nodo B Tipo 4 | AA8: 768<D<=1024 | AC8: 1
A9: CODIGO 8 | B9: NOMBRE 8 | C9: DEPARTAMENTO 8 | D9: PROVINCIA 8 | E9: DISTRITO 8 | F9: -1 | G9: -1 | H9: Indoor | I9: 0 | J9: 768 | K9: =+SUMIF('2G'!$A$2:$A$5,A9,'2G'!$N$2:$N$5) -> 0 | L9: =SUMIF('4G'!$B$2:$B$4,A9,'4G'!$M$2:$M$4) -> 0 | M9: 4 | N9: 8 | O9: Nodo B Tipo 3 | P9: 0.2044270833 | Q9: 157 | R9: 347 | S9: 768 | T9: 39.25 | U9: 39.25 | V9: 2 | W9: 4 | X9: 0 | Z9: Nodo B Tipo 5 | AA9: 1024<E<=2048 | AC9: 1
A10: CODIGO 9 | B10: NOMBRE 9 | C10: DEPARTAMENTO 9 | D10: PROVINCIA 9 | E10: DISTRITO 9 | F10: -1 | G10: -1 | H10: Indoor | I10: 0 | J10: 896 | K10: =+SUMIF('2G'!$A$2:$A$5,A10,'2G'!$N$2:$N$5) -> 0 | L10: =SUMIF('4G'!$B$2:$B$4,A10,'4G'!$M$2:$M$4) -> 0 | M10: 4 | N10: 8 | O10: Nodo B Tipo 4 | P10: 0.05829326923 | Q10: 97 | R10: 209 | S10: 1664 | T10: 24.25 | U10: 13.05769231 | V10: 3 | W10: 5 | X10: 0 | Z10: Nodo B Tipo 6 | AA10: 2048<F<=3072 | AC10: 1
A11: CODIGO 10 | B11: NOMBRE 10 | C11: DEPARTAMENTO 10 | D11: PROVINCIA 10 | E11: DISTRITO 10 | F11: -1 | G11: -1 | H11: NAT | I11: 7 | J11: 1024 | K11: =+SUMIF('2G'!$A$2:$A$5,A11,'2G'!$N$2:$N$5) -> 0 | L11: =SUMIF('4G'!$B$2:$B$4,A11,'4G'!$M$2:$M$4) -> 0 | M11: 2 | N11: NO APLICA | O11: Nodo B Tipo 4 | P11: 0.041015625 | Q11: 21 | R11: 92.5 | S11: 512 | T11: 10.5 | U11: 21 | V11: 2 | W11: 6 | X11: 1 | Z11: Nodo B Tipo 7 | AA11: 3072<F | AC11: 1
K12: =SUM(K2:K11) -> 4 | L12: =SUM(L2:L11) -> 4 | X12: =SUM(X2:X11) -> 1
C13: Total RRUs | F13: =SUM(M2:M11) -> 33
C14: RRUs Promedio/Nodo-b | F14: =AVERAGE(M2:M11) -> 3.3
C15: Capacidad de CE UL Promedio/RRU | F15: =AVERAGE(T2:T35) -> 30.93333333
C16: Numero de EB No Compartidos | F16: =SUM(F17:F23) -> 10
C17: Nodo B / 1 Sector/ 2 Portadoras / 384 CE Up Link / NAT | F17: =COUNTIF(O2:O11,"Nodo B Tipo 1") -> 1
C18: Nodo B / 3 Sectores / 6 Portadoras / 512 CE Up Link | F18: =COUNTIF(O2:O11,"Nodo B Tipo 2") -> 1
C19: Nodo B / 3 Sectores / 6 Portadoras / 768 CE Up Link | F19: =COUNTIF(O2:O11,"Nodo B Tipo 3") -> 2
C20: Nodo B / 3 Sectores / 6 Portadoras / 1024 CE Up Link | F20: =COUNTIF(O2:O11,"Nodo B Tipo 4") -> 3
C21: Nodo B / 3 Sectores / 6 Portadoras / 2048 CE Up Link | F21: =COUNTIF(O2:O11,"Nodo B Tipo 5") -> 1
C22: Nodo B / 3 Sectores / 6 Portadoras / 3072 CE Up Link | F22: =COUNTIF(O3:O13,"Nodo B Tipo 6") -> 1
C23: Nodo B / 3 Sectores / 6 Portadoras / > 3072 CE Up Link | F23: =COUNTIF(O3:O13,"Nodo B Tipo 7") -> 1
C25: Total sites | E25: =+SUM(F30:I33,F26:I29) -> 9 | G25: Coubicados 2G/3G | H25: Coubicados 3G/4G | I25: Coubicados 2G/3G/4G
C26: Sites Indoor c/Antenas < 21 | F26: =COUNTIFS(H2:H11,"Indoor",K2:K11,0,L2:L11,0,N2:N11,"<21") -> 2 | G26: =COUNTIFS(H2:H11,"Indoor",K2:K11,1,L2:L11,0,N2:N11,"<21") -> 0 | H26: =COUNTIFS(H2:H11,"Indoor",K2:K11,0,L2:L11,1,N2:N11,"<21") -> 0 | I26: =COUNTIFS(H2:H11,"Indoor",K2:K11,1,L2:L11,1,N2:N11,"<21") -> 0
C27: Sites Indoor 20 > c/antenas < 61 | F27: =COUNTIFS(H2:H11,"Indoor",K2:K11,0,L2:L11,0,N2:N11,"<61")-F26 -> 0 | G27: =COUNTIFS(H2:H11,"Indoor",K2:K11,1,L2:L11,0,N2:N11,"<61")-G26 -> 0 | H27: =COUNTIFS(H2:H11,"Indoor",K2:K11,0,L2:L11,1,N2:N11,"<61")-H26 -> 0 | I27: =COUNTIFS(H2:H11,"Indoor",K2:K11,1,L2:L11,1,N2:N11,"<61")-I26 -> 0
C28: Sites Indoor c/Antenas > 60 | F28: =COUNTIFS(H2:H11,"Indoor",K2:K11,0,L2:L11,0)-F27-F26 -> 0 | G28: =COUNTIFS(H2:H11,"Indoor",K2:K11,1,L2:L11,0)-G27-G26 -> 0 | H28: =COUNTIFS(H2:H11,"Indoor",K2:K11,0,L2:L11,1)-H27+H26 -> 0 | I28: =COUNTIFS(H2:H11,"Indoor",K2:K11,1,L2:L11,1)-I27-I26 -> 0
C29: Sites NAT | F29: =COUNTIFS(H2:H11,"NAT",K2:K11,0,L2:L11,0) -> 1 | G29: =COUNTIFS(H2:H11,"NAT",K2:K11,1,L2:L11,0) -> 0 | H29: =COUNTIFS(H2:H11,"NAT",K2:K11,0,L2:L11,1) -> 0 | I29: =COUNTIFS(H2:H11,"NAT",K2:K11,1,L2:L11,1) -> 0
C30: Sites Rooftop | F30: =COUNTIFS(H2:H11,"Rooftop",K2:K11,0,L2:L11,0) -> 2 | G30: =COUNTIFS(H2:H11,"Rooftop",K2:K11,1,L2:L11,0) -> 1 | H30: =COUNTIFS(H2:H11,"Rooftop",K2:K11,0,L2:L11,1) -> 0 | I30: =COUNTIFS(H2:H11,"Rooftop",K2:K11,1,L2:L11,1) -> 0
C31: Sites Greenfield 30 | F31: =COUNTIFS(H2:H11,"Greenfield",I2:I11,"<31",K2:K11,0,L2:L11,0) -> 0 | G31: =COUNTIFS(H2:H11,"Greenfield",I2:I11,"<31",K2:K11,1,L2:L11,0) -> 1 | H31: =COUNTIFS(H2:H11,"Greenfield",I2:I11,"<31",K2:K11,0,L2:L11,1) -> 0 | I31: =COUNTIFS(H2:H11,"Greenfield",I2:I11,"<31",K2:K11,1,L2:L11,1) -> 1
C32: Sites Greenfield 42 | F32: =COUNTIFS(H2:H11,"Greenfield",I2:I11,"<43",K2:K11,0,L2:L11,0)-F31 -> 0 | G32: =COUNTIFS(H2:H11,"Greenfield",I2:I11,"<43",K2:K11,1,L2:L11,0)-G31 -> 0 | H32: =COUNTIFS(H2:H11,"Greenfield",I2:I11,"<43",K2:K11,0,L2:L11,1)-H31 -> 0 | I32: =COUNTIFS(H2:H11,"Greenfield",I2:I11,"<43",K2:K11,1,L2:L11,1)-I31 -> 0
C33: Sites Greenfield 72 | F33: =COUNTIFS(H2:H11,"Greenfield",K2:K11,0,L2:L11,0)-F32-F31 -> 1 | G33: =COUNTIFS(H2:H11,"Greenfield",K2:K11,1,L2:L11,0)-G32-G31 -> 0 | H33: =COUNTIFS(H2:H11,"Greenfield",K2:K11,0,L2:L11,1)-H32-H31 -> 0 | I33: =COUNTIFS(H2:H11,"Greenfield",K2:K11,1,L2:L11,1)-I32-I31 -> 0
E34: Postes | F34: =SUMIFS(X2:X11,H2:H11,"NAT",K2:K11,0,L2:L11,0) -> 1 | G34: =SUMIFS(X2:X11,H2:H11,"NAT",K2:K11,1,L2:L11,0) -> 0 | H34: =SUMIFS(X2:X11,H2:H11,"NAT",K2:K11,0,L2:L11,1) -> 0 | I34: =SUMIFS(X2:X11,H2:H11,"NAT",K2:K11,1,L2:L11,1) -> 0

Sheet 4G
A1: CodigoSite | B1: Codigo 2G | C1: Departamento | D1: Provincia | E1: Distrito | F1: Longitud | G1: Latitud | H1: Tipo | I1: RRU | J1: Recursos | K1: 2G-4G | L1: 3G-4G
A2: CODIGO 1 | B2: CODIGO 1 | C2: DEPARTAMENTO 1 | D2: PROVINCIA 1 | E2: DISTRITO 1 | F2: -1 | G2: -1 | H2: OUTDOOR | I2: 3 | K2: =+SUMIF('2G'!$A$2:$A$5,B2,'2G'!$N$2:$N$5) -> 1 | L2: =+SUMIF('3G'!$A$2:$A$11,B2,'3G'!$AC$2:$AC$11) -> 1 | M2: 1
A3: CODIGO 1 | B3: CODIGO 1 | C3: DEPARTAMENTO 2 | D3: PROVINCIA 2 | E3: DISTRITO 2 | F3: -1 | G3: -1 | H3: INDOOR | I3: 1 | K3: =+SUMIF('2G'!$A$2:$A$5,B3,'2G'!$N$2:$N$5) -> 1 | L3: =+SUMIF('3G'!$A$2:$A$11,B3,'3G'!$AC$2:$AC$11) -> 1 | M3: 1
A4: CODIGO 1 | B4: CODIGO 1 | C4: DEPARTAMENTO 3 | D4: PROVINCIA 3 | E4: DISTRITO 3 | F4: -1 | G4: -1 | H4: POSTE | I4: 3 | K4: =+SUMIF('2G'!$A$2:$A$5,B4,'2G'!$N$2:$N$5) -> 1 | L4: =+SUMIF('3G'!$A$2:$A$11,B4,'3G'!$AC$2:$AC$11) -> 1 | M4: 1
K5: =SUM(K2:K4) -> 3 | L5: =SUM(L2:L4) -> 3

Sheet Transporte
A1: RED DE TRANSPORTE (CAPEX)
E3: RED DE ACCESO FO
D4: ID | E4: SITE | F4: CODIGO | G4: Tipo1 | H4: Tipo
D5: 1 | E5: SITIO 1 | F5: CODIGO 1 | G5: OUTDOOR | H5: 1
D6: 2 | E6: SITIO 2 | F6: CODIGO 2 | G6: INDOOR | H6: 2
D7: 3 | E7: SITIO 3 | F7: CODIGO 3 | H7: 1
D8: 4 | E8: SITIO 4 | F8: CODIGO 4 | G8: OUTDOOR | H8: 2
D9: 5 | E9: SITIO 5 | F9: CODIGO 5 | G9: INDOOR | H9: 1
D10: 6 | E10: SITIO 6 | F10: CODIGO 6 | H10: 2
D11: 7 | E11: SITIO 7 | F11: CODIGO 7 | G11: OUTDOOR | H11: 1
D12: 8 | E12: SITIO 8 | F12: CODIGO 8 | G12: INDOOR | H12: 2
D13: 9 | E13: SITIO 9 | F13: CODIGO 9 | H13: 1
D14: 10 | E14: SITIO 10 | F14: CODIGO 10 | G14: OUTDOOR | H14: 2
I16: Total
F17: Enlaces FO | I17: =COUNT(D5:D14) -> 10
F18: Tipo 1 | I18: =+COUNTIF($H$5:$H$14,1) -> 5
F19: Tipo 2 | I19: =+COUNTIF($H$5:$H$14,2) -> 5
E22: RED DE ACCESO SATELITAL EUTELSAT
B24: SEDE | E24: ID Antena Tx | F24: Departamento | G24: Transponder | H24: Tipo Enlace | I24: Diametro Antena Tx | J24: ID Antena Rx | K24: BW (Kbps)
B25: SEDE 1 | E25: ID ANTENA 1 | F25: [VACIO] | G25: [VACIO] | H25: VSAT | I25: 2.4 m | J25: HUB-7.3 | K25: 384
B26: SEDE 2 | E26: ID ANTENA 2 | F26: [VACIO] | G26: [VACIO] | H26: CinC | I26: 2.4 m | J26: HUB-7.3 | K26: 2048
B27: SEDE 3 | E27: ID ANTENA 3 | F27: [VACIO] | G27: [VACIO] | H27: SCPC | I27: 2.4 m | J27: HUB-7.3 | K27: 768
G28: Enlaces AdVSAT | I28: =COUNTIF(H25:H27,"VSAT") -> 1
G29: Enlaces SCPC-CinC | I29: =COUNTIF(H25:H27,"CinC") -> 1
G30: Enlaces SCPC | I30: =COUNTIF(H25:H27,"SCPC") -> 1
E32: RED DE ACCESO MW IP
B34: ID | D34: SITE A | E34: ID2 | F34: SITE B | G34: Long A | H34: Lat A | I34: Long B | J34: Lat B | K34: TIPO DE EQUIPO | L34: Ø (m) | M34: FREC. (Ghz)
B35: ID A 1 | C35: [VACIO] | D35: SITE A 1 | E35: ID B 1 | F35: SITE B 1 | G35: [VACIO] | H35: [VACIO] | I35: [VACIO] | J35: [VACIO] | K35: RTN | L35: 0.6 | M35: 7
B36: ID A 2 | C36: [VACIO] | D36: SITE A 2 | E36: ID B 2 | F36: SITE B 2 | G36: [VACIO] | H36: [VACIO] | I36: [VACIO] | J36: [VACIO] | K36: MPR | L36: 1.2 | M36: 18
B37: ID A 3 | C37: [VACIO] | D37: SITE A 3 | E37: ID B 3 | F37: SITE B 3 | G37: [VACIO] | H37: [VACIO] | I37: [VACIO] | J37: [VACIO] | K37: RTN | L37: 2.4 | M37: 23
G39: Enlace MW 0.3m-0.6m Punto a Punto | I39: =COUNTIF(L35:L37,"<1") -> 1
G40: Enlace MW 1.2m-1.8m Punto a Punto | I40: =COUNTIF(L35:L37,">0")-I39-I41 -> 1
G41: Enlace MW 2.4m-3.7m Punto a Punto | I41: =COUNTIF(L35:L37,">2") -> 1
E44: RED DE ACCESO MW PDH
B46: ID | D46: SITE A | E46: ID2 | F46: SITE B | G46: Long A | H46: Lat A | I46: Long B | J46: Lat B | K46: TIPO DE EQUIPO | L46: Ø (m) | M46: FREC. (Ghz)
B47: ID A 1 | C47: [VACIO] | D47: SITE A 1 | E47: ID B 1 | F47: SITE B 1 | G47: [VACIO] | H47: [VACIO] | I47: [VACIO] | J47: [VACIO] | K47: FIU19 | L47: 0.6 | M47: 7
B48: ID A 2 | C48: [VACIO] | D48: SITE A 2 | E48: ID B 2 | F48: SITE B 2 | G48: [VACIO] | H48: [VACIO] | I48: [VACIO] | J48: [VACIO] | K48: FIU19 | L48: 1.2 | M48: 18
B49: ID A 3 | C49: [VACIO] | D49: SITE A 3 | E49: ID B 3 | F49: SITE B 3 | G49: [VACIO] | H49: [VACIO] | I49: [VACIO] | J49: [VACIO] | K49: AWY | L49: 1.8 | M49: 23
B50: ID A 4 | C50: [VACIO] | D50: SITE A 4 | E50: ID B 4 | F50: SITE B 4 | G50: [VACIO] | H50: [VACIO] | I50: [VACIO] | J50: [VACIO] | K50: AWY | L50: 2.4 | M50: 18
G52: Enlace MW PDH Punto a Punto | I52: =COUNTIF(L47:L50,">0") -> 4
E54: ROUTERS DE ACCESO
B56: CODIGO | C56: X | D56: TIPO | E56: ROUTER | F56: GSM | G56: UMTS | H56: LTE | I56: 2G | J56: 3G
B57: CODIGO 1 | C57: [VACIO] | D57: FO | E57: NOMBRE 1 | F57: 0 | G57: 0 | H57: 0 | I57: 0.33 | J57: 0.33
B58: CODIGO 2 | C58: [VACIO] | D58: FO | E58: NOMBRE 2 | F58: 0 | G58: 0 | H58: 1 | I58: 0.33 | J58: 0.33
B59: CODIGO 3 | C59: [VACIO] | D59: FO | E59: NOMBRE 3 | F59: 0 | G59: 1 | H59: 0 | I59: 0 | J59: 1
B60: CODIGO 4 | C60: [VACIO] | D60: FO | E60: NOMBRE 4 | F60: 0 | G60: 1 | H60: 1 | I60: 0 | J60: 1
B61: CODIGO 5 | C61: [VACIO] | D61: FO | E61: NOMBRE 5 | F61: 1 | G61: 0 | H61: 0 | I61: 1 | J61: 0
B62: CODIGO 6 | C62: [VACIO] | D62: FO | E62: NOMBRE 6 | F62: 1 | G62: 0 | H62: 1 | I62: 0.5 | J62: 0
B63: CODIGO 7 | C63: [VACIO] | D63: FO | E63: NOMBRE 7 | F63: 1 | G63: 1 | H63: 0 | I63: 0.5 | J63: 0.5
B64: CODIGO 8 | C64: [VACIO] | D64: FO | E64: NOMBRE 8 | F64: 1 | G64: 1 | H64: 1 | I64: 0.33 | J64: 0.33
B65: CODIGO 9 | C65: [VACIO] | D65: FO | E65: NOMBRE 9 | F65: 2 | G65: 1 | H65: 1 | I65: 0.5 | J65: 0.25
B66: CODIGO 10 | C66: [VACIO] | D66: FO | E66: NOMBRE 10 | F66: 2 | G66: 2 | H66: 1 | I66: 0.4 | J66: 0.4
B67: CODIGO 11 | C67: [VACIO] | D67: FO | E67: NOMBRE 11 | F67: 2 | G67: 2 | H67: 2 | I67: 0.33 | J67: 0.33
I68: TOTAL
G69: Numero de Routers | I69: =COUNTIF(H57:H67,">-1") -> 11
E71: IP RAN
B73: ITEM | D73: CODIGO | E73: DEPARTAMENTO | F73: TIPO | G73: ROUTER | H73: SITE
B74: 1 | C74: [VACIO] | D74: [VACIO] | E74: DEPARTAMENTO 1 | F74: IPRAN | G74: ROUTER 1 | H74: SITE 1
B75: 2 | C75: [VACIO] | D75: [VACIO] | E75: DEPARTAMENTO 2 | F75: IPRAN | G75: ROUTER 2 | H75: SITE 2
B76: 3 | C76: [VACIO] | D76: [VACIO] | E76: DEPARTAMENTO 3 | F76: IPRAN | G76: ROUTER 3 | H76: SITE 3
B77: 4 | C77: [VACIO] | D77: [VACIO] | E77: DEPARTAMENTO 4 | F77: IPRAN | G77: ROUTER 4 | H77: SITE 4
B78: 5 | C78: [VACIO] | D78: [VACIO] | E78: DEPARTAMENTO 5 | F78: IPRAN | G78: ROUTER 5 | H78: SITE 5
B79: 6 | C79: [VACIO] | D79: [VACIO] | E79: DEPARTAMENTO 6 | F79: IPRAN | G79: ROUTER 6 | H79: SITE 6
B80: 7 | C80: [VACIO] | D80: [VACIO] | E80: DEPARTAMENTO 7 | F80: IPRAN | G80: ROUTER 7 | H80: SITE 7
B81: 8 | C81: [VACIO] | D81: [VACIO] | E81: DEPARTAMENTO 8 | F81: IPRAN | G81: ROUTER 8 | H81: SITE 8
B82: 9 | C82: [VACIO] | D82: [VACIO] | E82: DEPARTAMENTO 9 | F82: IPRAN | G82: ROUTER 9 | H82: SITE 9
B83: 10 | C83: [VACIO] | D83: [VACIO] | E83: DEPARTAMENTO 10 | F83: IPRAN | G83: ROUTER 10 | H83: SITE 10
G85: Numero de Routers | I85: =COUNT(B74:B83) -> 10
E87: AGREGACION
B89: ITEM | D89: CODIGO | E89: DEPARTAMENTO | F89: TIPO | G89: ROUTER | H89: SITE
B90: 1 | C90: [VACIO] | D90: [VACIO] | E90: DEPARTAMENTO 1 | F90: Agregación | G90: ROUTER 1 | H90: SITE 1
B91: 2 | C91: [VACIO] | D91: [VACIO] | E91: DEPARTAMENTO 2 | F91: Agregación | G91: ROUTER 2 | H91: SITE 2
B92: 3 | C92: [VACIO] | D92: [VACIO] | E92: DEPARTAMENTO 3 | F92: Agregación | G92: ROUTER 3 | H92: SITE 3
B93: 4 | C93: [VACIO] | D93: [VACIO] | E93: DEPARTAMENTO 4 | F93: Agregación | G93: ROUTER 4 | H93: SITE 4
B94: 5 | C94: [VACIO] | D94: [VACIO] | E94: DEPARTAMENTO 5 | F94: Agregación | G94: ROUTER 5 | H94: SITE 5
B95: 6 | C95: [VACIO] | D95: [VACIO] | E95: DEPARTAMENTO 6 | F95: Agregación | G95: ROUTER 6 | H95: SITE 6
B96: 7 | C96: [VACIO] | D96: [VACIO] | E96: DEPARTAMENTO 7 | F96: Agregación | G96: ROUTER 7 | H96: SITE 7
B97: 8 | C97: [VACIO] | D97: [VACIO] | E97: DEPARTAMENTO 8 | F97: Agregación | G97: ROUTER 8 | H97: SITE 8
B98: 9 | C98: [VACIO] | D98: [VACIO] | E98: DEPARTAMENTO 9 | F98: Agregación | G98: ROUTER 9 | H98: SITE 9
B99: 10 | C99: [VACIO] | D99: [VACIO] | E99: DEPARTAMENTO 10 | F99: Agregación | G99: ROUTER 10 | H99: SITE 10
G101: Numero de Routers | I101: =COUNT(B90:B99) -> 10
E104: CORE IP
B106: ITEM | D106: CODIGO | E106: DEPARTAMENTO | F106: TIPO | G106: ROUTER | H106: SITE
B107: 1 | C107: [VACIO] | D107: [VACIO] | E107: DEPARTAMENTO 1 | F107: Core IP - P | G107: ROUTER 1 | H107: SITE 1
B108: 2 | C108: [VACIO] | D108: [VACIO] | E108: DEPARTAMENTO 2 | F108: Core IP - P | G108: ROUTER 2 | H108: SITE 2
B109: 3 | C109: [VACIO] | D109: [VACIO] | E109: DEPARTAMENTO 3 | F109: Core IP - P | G109: ROUTER 3 | H109: SITE 3
B110: 4 | C110: [VACIO] | D110: [VACIO] | E110: DEPARTAMENTO 4 | F110: Core IP - P | G110: ROUTER 4 | H110: SITE 4
B111: 5 | C111: [VACIO] | D111: [VACIO] | E111: DEPARTAMENTO 5 | F111: Core IP - P | G111: ROUTER 5 | H111: SITE 5
B112: 6 | C112: [VACIO] | D112: [VACIO] | E112: DEPARTAMENTO 6 | F112: Core IP - P | G112: ROUTER 6 | H112: SITE 6
B113: 7 | C113: [VACIO] | D113: [VACIO] | E113: DEPARTAMENTO 7 | F113: Core IP - P | G113: ROUTER 7 | H113: SITE 7
B114: 8 | C114: [VACIO] | D114: [VACIO] | E114: DEPARTAMENTO 8 | F114: Core IP - P | G114: ROUTER 8 | H114: SITE 8
B115: 9 | C115: [VACIO] | D115: [VACIO] | E115: DEPARTAMENTO 9 | F115: Core IP - P | G115: ROUTER 9 | H115: SITE 9
B116: 10 | C116: [VACIO] | D116: [VACIO] | E116: DEPARTAMENTO 10 | F116: Core IP - P | G116: ROUTER 10 | H116: SITE 10
G118: Numero de Routers | I118: =COUNT(B107:B116) -> 10
E121: ANILLO METRO IP
B123: ITEM | D123: CODIGO | E123: DEPARTAMENTO | F123: TIPO | G123: ROUTER | H123: SITE
B124: 1 | C124: [VACIO] | D124: [VACIO] | E124: DEPARTAMENTO 1 | F124: Anillos Metro Lima ZONA 1 | G124: ROUTER 1 | H124: SITE 1
B125: 2 | C125: [VACIO] | D125: [VACIO] | E125: DEPARTAMENTO 2 | F125: Anillos Metro Lima ZONA 2 | G125: ROUTER 2 | H125: SITE 2
B126: 3 | C126: [VACIO] | D126: [VACIO] | E126: DEPARTAMENTO 3 | F126: Anillos Metro Lima ZONA 3 | G126: ROUTER 3 | H126: SITE 3
G128: Numero de Routers | I128: =COUNT(B124:B126) -> 3
E131: METROPOLITAN BACKBONE
E133: Capacidad en "λ 10G" | F133: Capacidad en "λ 100G" | G133: Capacidad en "STM-1"
D134: Enlace | E134: ocupada | F134: ocupada | G134: ocupada
B135: 2 | D135: ORIGEN - DESTINO - 1 | E135: 1 | F135: - | G135: -
B136: 1 | D136: ORIGEN - DESTINO - 2 | E136: - | F136: 1 | G136: -
B137: 1 | D137: ORIGEN - DESTINO - 2 | E137: - | F137: - | G137: 64
G139: Numero de Equipos | I139: =+SUM(B135:B137) -> 4
G140: Extension de capacidad "λ 10G" | I140: =+SUM(E135:E137) -> 1
G141: Extension de capacidad "λ 100G" | I141: =+SUM(F135:F137) -> 1
G142: Extension de capacidad "STM1" | I142: =+SUM(G135:G137) -> 64
E145: DORSAL FO
F147: Capacidad en "λ" | G147: Capacidad en "STM-1"
E148: Enlace | F148: ocupada | G148: ocupada
E149: ORIGEN - DESTINO - 1 | F149: 1 | G149: 64
E150: ORIGEN - DESTINO - 2 | F150: 10 | G150: 128
E151: ORIGEN - DESTINO - 3 | F151: 5 | G151: -
G153: Numero de Equipos | I153: =COUNT(F149:F151) -> 3
G154: Extension de capacidad "λ" | I154: =SUM(F149:F151) -> 16
G155: Extension de capacidad "STM1" | I155: =SUM(G149:G151)/64 -> 3
E158: DORSAL FO
F160: Capacidad en "λ" | G160: Capacidad en "STM-1"
E161: Enlace | F161: ocupada | G161: ocupada
E162: ORIGEN - DESTINO - 1 | F162: 1 | G162: 64
E163: ORIGEN - DESTINO - 2 | F163: 10 | G163: 128
E164: ORIGEN - DESTINO - 3 | F164: 5 | G164: -
G166: Numero de Equipos | I166: =COUNT(F162:F164) -> 3
G167: Extension de capacidad "λ" | I167: =SUM(F162:F164) -> 16
G168: Extension de capacidad "STM1" | I168: =SUM(G162:G164)/64 -> 3
E171: DORSAL MW
A174: Item | B174: IDA | D174: IDB | E174: Site A | F174: Site B | G174: Coordenada A | H174: Coordenada B | I174: Equipo Básico | J174: Capacidad Actual STM-1
A175: Red Mw 01
A176: 01 | B176: COD ORIGEN 1 | D176: COD DESTINO 1 | E176: SITE A 1 | F176: SITE B 1 | G176: LONGITUD, LATITUD | H176: LONGITUD, LATITUD | I176: 1 | J176: 1
A177: 02 | B177: COD ORIGEN 2 | D177: COD DESTINO 2 | E177: SITE A 2 | F177: SITE B 2 | G177: LONGITUD, LATITUD | H177: LONGITUD, LATITUD | I177: 1 | J177: 1
A178: Red Mw 02
A179: 01 | B179: COD ORIGEN 1 | D179: COD DESTINO 1 | E179: SITE A 1 | F179: SITE B 1 | G179: LONGITUD, LATITUD | H179: LONGITUD, LATITUD | I179: 1 | J179: 2
A180: 02 | B180: COD ORIGEN 2 | D180: COD DESTINO 2 | E180: SITE A 2 | F180: SITE B 2 | G180: LONGITUD, LATITUD | H180: LONGITUD, LATITUD | I180: 1 | J180: 2
A181: Red Mw n
A182: 01 | B182: COD ORIGEN 1 | D182: COD DESTINO 1 | E182: SITE A 1 | F182: SITE B 1 | G182: LONGITUD, LATITUD | H182: LONGITUD, LATITUD | I182: 1 | J182: 6
A183: 02 | B183: COD ORIGEN 2 | D183: COD DESTINO 2 | E183: SITE A 2 | F183: SITE B 2 | G183: LONGITUD, LATITUD | H183: LONGITUD, LATITUD | I183: 1 | J183: 6
E185: TOTAL | I185: =SUM(I175:I184) -> 6 | J185: =SUM(J175:J184) -> 18
E189: PLANTA F.O.
E191: INDICADORES | F191: Km Acumulado
E192: FO Propia Nacional | F192: 6108
E193: FO Propia Urbana (Anillos ) | F193: 1704
E194: FO tendida en Lima y Callao | F194: 2379
E196: TOTAL | F196: =+F192+F193+F194 -> 10191

Sheet Renta TX
A1: RED DE TRANSPORTE (OPEX)
B3: Red de Transporte:
C5: Red de acceso
C7: Capacidad satelital entre julio 2015 y julio 2016
C8: Fecha/Capacidad | D8: 2015-07-01 | E8: 2015-08-01 | F8: 2015-09-01 | G8: 2015-10-01 | H8: 2015-11-01 | I8: 2015-12-01 | J8: 2016-01-01 | K8: 2016-02-01 | L8: 2016-03-01 | M8: 2016-04-01 | N8: 2016-05-01 | O8: 2016-06-01
C9: SATELITE 1 (MHz) | D9: 360 | E9: 360 | F9: 360 | G9: 360 | H9: 360 | I9: 360 | J9: 360 | K9: 360 | L9: 360 | M9: 360 | N9: 360 | O9: 360
C10: SATELITE n (MHz) | D10: 720 | E10: 720 | F10: 720 | G10: 720 | H10: 720 | I10: 720 | J10: 720 | K10: 720 | L10: 720 | M10: 720 | N10: 720 | O10: 720
C12: OPEX MM USD satelital entre julio 2015 y julio 2016
C13: Fecha/Capacidad | D13: 2015-07-01 | E13: 2015-08-01 | F13: 2015-09-01 | G13: 2015-10-01 | H13: 2015-11-01 | I13: 2015-12-01 | J13: 2016-01-01 | K13: 2016-02-01 | L13: 2016-03-01 | M13: 2016-04-01 | N13: 2016-05-01 | O13: 2016-06-01
C14: SATELITE 1 (MHz) | D14: =1000*D9/1000000 -> 0.36 | E14: =1000*E9/1000000 -> 0.36 | F14: 0.36 | G14: 0.36 | H14: 0.36 | I14: 0.36 | J14: 0.36 | K14: 0.36 | L14: 0.36 | M14: 0.36 | N14: 0.36 | O14: 0.36
C15: SATELITE n (MHz) | D15: =1000*D10/1000000 -> 0.72 | E15: 0.72 | F15: 0.72 | G15: 0.72 | H15: 0.72 | I15: 0.72 | J15: 0.72 | K15: 0.72 | L15: 0.72 | M15: 0.72 | N15: 0.72 | O15: 0.72
C17: TOTAL OPEX USD
C18: COSTO MENSUAL x MHZ USD | D18: 2015-07-01 | E18: 2015-08-01 | F18: 2015-09-01 | G18: 2015-10-01 | H18: 2015-11-01 | I18: 2015-12-01 | J18: 2016-01-01 | K18: 2016-02-01 | L18: 2016-03-01 | M18: 2016-04-01 | N18: 2016-05-01 | O18: 2016-06-01
C19: SUB TOTAL | D19: =SUM(D14:D15) -> 1.08 | E19: 1.08 | F19: 1.08 | G19: 1.08 | H19: 1.08 | I19: 1.08 | J19: 1.08 | K19: 1.08 | L19: 1.08 | M19: 1.08 | N19: 1.08 | O19: 1.08
C20: TOTAL OPEX USD (x1000000) | D20: =SUM(D19:O19) -> 12.96
C22: Red de Agregacion/Core
C24: Grandes Capacidades US$ (000000) | E24: =SUM(F33:Q33) -> 720000
B26: item | C26: Origen | D26: Destino | E26: Capacidad (Gb) | F26: 2015-07-01 | G26: 2015-08-01 | H26: 2015-09-01 | I26: 2015-10-01 | J26: 2015-11-01 | K26: 2015-12-01 | L26: 2016-01-01 | M26: 2016-02-01 | N26: 2016-03-01 | O26: 2016-04-01 | P26: 2016-05-01 | Q26: 2016-06-01
B27: 1 | C27: ORIGEN 1 | D27: DESTINO 1 | E27: 1 | F27: 10000 | G27: 10000 | H27: 10000 | I27: 10000 | J27: 10000 | K27: 10000 | L27: 10000 | M27: 10000 | N27: 10000 | O27: 10000 | P27: 10000 | Q27: 10000
F28: 10000 | G28: 10000 | H28: 10000 | I28: 10000 | J28: 10000 | K28: 10000 | L28: 10000 | M28: 10000 | N28: 10000 | O28: 10000 | P28: 10000 | Q28: 10000
B29: 2 | C29: ORIGEN 2 | D29: DESTINO 2 | E29: 5 | F29: 10000 | G29: 10000 | H29: 10000 | I29: 10000 | J29: 10000 | K29: 10000 | L29: 10000 | M29: 10000 | N29: 10000 | O29: 10000 | P29: 10000 | Q29: 10000
B30: 3 | C30: ORIGEN 3 | D30: DESTINO 3 | E30: 10 | F30: 10000 | G30: 10000 | H30: 10000 | I30: 10000 | J30: 10000 | K30: 10000 | L30: 10000 | M30: 10000 | N30: 10000 | O30: 10000 | P30: 10000 | Q30: 10000
B31: 4 | C31: ORIGEN 4 | D31: DESTINO 4 | E31: 1 | F31: 10000 | G31: 10000 | H31: 10000 | I31: 10000 | J31: 10000 | K31: 10000 | L31: 10000 | M31: 10000 | N31: 10000 | O31: 10000 | P31: 10000 | Q31: 10000
B32: 5 | C32: ORIGEN 5 | D32: DESTINO 5 | E32: 5 | F32: 10000 | G32: 10000 | H32: 10000 | I32: 10000 | J32: 10000 | K32: 10000 | L32: 10000 | M32: 10000 | N32: 10000 | O32: 10000 | P32: 10000 | Q32: 10000
F33: =SUM(F27:F32) -> 60000 | G33: 60000 | H33: 60000 | I33: 60000 | J33: 60000 | K33: 60000 | L33: 60000 | M33: 60000 | N33: 60000 | O33: 60000 | P33: 60000 | Q33: 60000
B35: ALQUILERES Nacionales US$ | E35: =SUM(F42:Q42) -> 600000
F36: 2015-07-01 | G36: 2015-08-01 | H36: 2015-09-01 | I36: 2015-10-01 | J36: 2015-11-01 | K36: 2015-12-01 | L36: 2016-01-01 | M36: 2016-02-01 | N36: 2016-03-01 | O36: 2016-04-01 | P36: 2016-05-01 | Q36: 2016-06-01
B37: 1 | C37: ORIGEN 1 | D37: DESTINO 1 | E37: 1 | F37: 10000 | G37: 10000 | H37: 10000 | I37: 10000 | J37: 10000 | K37: 10000 | L37: 10000 | M37: 10000 | N37: 10000 | O37: 10000 | P37: 10000 | Q37: 10000
B38: 2 | C38: ORIGEN 2 | D38: DESTINO 2 | F38: 10000 | G38: 10000 | H38: 10000 | I38: 10000 | J38: 10000 | K38: 10000 | L38: 10000 | M38: 10000 | N38: 10000 | O38: 10000 | P38: 10000 | Q38: 10000
B39: 3 | C39: ORIGEN 3 | D39: DESTINO 3 | E39: 10 | F39: 10000 | G39: 10000 | H39: 10000 | I39: 10000 | J39: 10000 | K39: 10000 | L39: 10000 | M39: 10000 | N39: 10000 | O39: 10000 | P39: 10000 | Q39: 10000
B40: 4 | C40: ORIGEN 4 | D40: DESTINO 4 | E40: FO | F40: 10000 | G40: 10000 | H40: 10000 | I40: 10000 | J40: 10000 | K40: 10000 | L40: 10000 | M40: 10000 | N40: 10000 | O40: 10000 | P40: 10000 | Q40: 10000
B41: 5 | C41: ORIGEN 5 | D41: DESTINO 5 | E41: 10 | F41: 10000 | G41: 10000 | H41: 10000 | I41: 10000 | J41: 10000 | K41: 10000 | L41: 10000 | M41: 10000 | N41: 10000 | O41: 10000 | P41: 10000 | Q41: 10000
F42: =SUM(F37:F41) -> 50000 | G42: 50000 | H42: 50000 | I42: 50000 | J42: 50000 | K42: 50000 | L42: 50000 | M42: 50000 | N42: 50000 | O42: 50000 | P42: 50000 | Q42: 50000

Sheet CORE
A1: CORE
A3: DIMENSIONAMIENTO PARAMETROS DEL CORE
A5: DIMENSIONAMIENTO BSC
B6: Numero de BSCs | C6: =COUNT(D10:D14) -> 5
B7: No TRX (prom.) /BSC | C7: =+D16/C6 -> 716
A8: Inventario BSC
C9: BSC | D9: Capacidad | E9: Unidad
B10: DEPARTAMENTO 1 | C10: CODIGO 1 | D10: 330 | E10: TRX
B11: DEPARTAMENTO 2 | C11: CODIGO 2 | D11: 660 | E11: TRX
B12: DEPARTAMENTO 3 | C12: CODIGO 3 | D12: 1600 | E12: TRX
B13: DEPARTAMENTO 4 | C13: CODIGO 4 | D13: 330 | E13: TRX
B14: DEPARTAMENTO 5 | C14: CODIGO 5 | D14: 660 | E14: TRX
B15: LORETO | C15: BSC LORETO
C16: TOTAL | D16: =SUM(D10:D15) -> 3580
A19: DIMENSIONAMIENTO TSCM
B20: Número de TSCM | C20: =COUNT(D27:D31) -> 5
B21: No TCH (prom.) / TSCM | C21: =D32/C20 -> 7744
A24: Inventario TSCM
B26: Ubicación | C26: Transcoder | D26: Capacidad | E26: Unidad
B27: DEPARTAMENTO 1 | C27: CODIGO 1 | D27: 5280 | E27: TCH
B28: DEPARTAMENTO 2 | C28: CODIGO 2 | D28: 8800 | E28: TCH
B29: DEPARTAMENTO 3 | C29: CODIGO 3 | D29: 10560 | E29: TCH
B30: DEPARTAMENTO 4 | C30: CODIGO 4 | D30: 5280 | E30: TCH
B31: DEPARTAMENTO 5 | C31: CODIGO 5 | D31: 8800 | E31: TCH
C32: TOTAL | D32: =SUM(D27:D31) -> 38720
A36: DIMENSIONAMIENTO RNC
B38: Número de RNCs | C38: =COUNT(D46:D50) -> 5
B39: No Mbps (prom.) / RNC | C39: =D51/C38 -> 1760
A43: Inventario RNC
C45: RNC | D45: Capacidad | E45: Unidad
B46: DEPARTAMENTO 1 | C46: CODIGO 1 | D46: 500 | E46: Mbps
B47: DEPARTAMENTO 2 | C47: CODIGO 2 | D47: 1000 | E47: Mbps
B48: DEPARTAMENTO 3 | C48: CODIGO 3 | D48: 1500 | E48: Mbps
B49: DEPARTAMENTO 4 | C49: CODIGO 4 | D49: 1800 | E49: Mbps
B50: DEPARTAMENTO 5 | C50: CODIGO 5 | D50: 4000 | E50: Mbps
C51: TOTAL | D51: =SUM(D46:D50) -> 8800 | E51: Mbps
A53: DIMENSIONAMIENTO Ater in MGW
B55: Número de Ater in MGWs | C55: =COUNT(D61:D65) -> 5
B56: No TCH (prom.) / Ater in MGW | C56: =D66/C55 -> 7756
A58: Inventario Ater in MGW
B60: Ubicación | C60: Ater in MGW | D60: Capacidad | E60: Unidad
B61: DEPARTAMENTO 1 | C61: CODIGO 1 | D61: 960 | E61: TCH
B62: DEPARTAMENTO 2 | C62: CODIGO 2 | D62: 2400 | E62: TCH
B63: DEPARTAMENTO 3 | C63: CODIGO 3 | D63: 3360 | E63: TCH
B64: DEPARTAMENTO 4 | C64: CODIGO 4 | D64: 10260 | E64: TCH
B65: DEPARTAMENTO 5 | C65: CODIGO 5 | D65: 21800 | E65: TCH
C66: TOTAL | D66: =SUM(D61:D65) -> 38780 | E66: TCH
A69: DIMENSIONAMIENTO MSS
B71: Número de MSSs | C71: =COUNT(D76:D80) -> 5
B72: No de usuarios (prom.) / MSS | C72: =D81/C71 -> 1909000
A74: Inventario MSS
C75: Equipo | D75: Capacidad | E75: Unidad
B76: DEPARTAMENTO 1 | C76: CODIGO 1 | D76: 1500000 | E76: User
B77: DEPARTAMENTO 2 | C77: CODIGO 2 | D77: 1600000 | E77: User
B78: DEPARTAMENTO 3 | C78: CODIGO 3 | D78: 1745000 | E78: User
B79: DEPARTAMENTO 4 | C79: CODIGO 4 | D79: 1900000 | E79: User
B80: DEPARTAMENTO 5 | C80: CODIGO 5 | D80: 2800000 | E80: User
C81: TOTAL | D81: =SUM(D76:D80) -> 9545000
A85: DIMENSIONAMIENTO MGW
B87: Número de MGWs | C87: =COUNT(D95:D99) -> 5
B88: No Erlangs (prom.) / MGW | C88: =D100/C87 -> 24286
A92: Inventario MGW
C94: Equipo | D94: Capacidad | E94: Unidad
B95: DEPARTAMENTO 1 | C95: CODIGO 1 | D95: 2048 | E95: Erlang
B96: DEPARTAMENTO 2 | C96: CODIGO 2 | D96: 7784 | E96: Erlang
B97: DEPARTAMENTO 3 | C97: CODIGO 3 | D97: 22016 | E97: Erlang
B98: DEPARTAMENTO 4 | C98: CODIGO 4 | D98: 39051 | E98: Erlang
B99: DEPARTAMENTO 5 | C99: CODIGO 5 | D99: 50531 | E99: Erlang
C100: TOTAL | D100: =SUM(D95:D99) -> 121430
A104: DIMENSIONAMIENTO HLR
B106: Número de HLRs | C106: =COUNT(D112:D116) -> 5
B107: No usuarios (prom.) / HLR | C107: =D117/C106 -> 3400000
A109: Inventario HLR
B111: Ubicación | C111: HLR | D111: Capacidad | E111: Unidad
B112: DEPARTAMENTO 1 | C112: CODIGO 1 | D112: 2500000 | E112: User
B113: DEPARTAMENTO 2 | C113: CODIGO 2 | D113: 3000000 | E113: User
B114: DEPARTAMENTO 3 | C114: CODIGO 3 | D114: 4000000 | E114: User
B115: DEPARTAMENTO 4 | C115: CODIGO 4 | D115: 5000000 | E115: User
B116: DEPARTAMENTO 5 | C116: CODIGO 5 | D116: 2500000 | E116: User
C117: TOTAL | D117: =SUM(D112:D116) -> 17000000
A120: DIMENSIONAMIENTO STP
B122: Número de HLRs | C122: =COUNT(D129:D133) -> 5
B123: No usuarios (prom.) / HLR | C123: =D134/C122 -> 65000
A126: Inventario STP
B128: Ubicación | C128: STP | D128: Capacidad | E128: Unidad
B129: DEPARTAMENTO 1 | C129: CODIGO 1 | D129: 45000 | E129: TPS
B130: DEPARTAMENTO 2 | C130: CODIGO 2 | D130: 45000 | E130: TPS
B131: DEPARTAMENTO 3 | C131: CODIGO 3 | D131: 95000 | E131: TPS
B132: DEPARTAMENTO 4 | C132: CODIGO 4 | D132: 95000 | E132: TPS
B133: DEPARTAMENTO 5 | C133: CODIGO 5 | D133: 45000 | E133: TPS
C134: TOTAL | D134: =SUM(D129:D133) -> 325000
A137: DIMENSIONAMIENTO IP CLOCK
A139: Inventario IP Clock
B141: Ubicación | C141: IPCLOCK | D141: Capacidad | E141: Unidad
B142: DEPARTAMENTO 1 | C142: CODIGO A - 1 | D142: 1 | E142: Equipos
B143: DEPARTAMENTO 2 | C143: CODIGO A - 2 | D143: 3 | E143: Equipos
B144: DEPARTAMENTO 4 | C144: CODIGO B - 1 | D144: 5 | E144: Equipos
B145: DEPARTAMENTO 5 | C145: CODIGO B - 2 | D145: 10 | E145: Equipos
C146: TOTAL A | D146: =SUM(D142:D143) -> 4
C147: TOTAL B | D147: =SUM(D144:D145) -> 15
A149: DIMENSIONAMIENTO SBC (Session Border Controller)
A151: Inventario SBC
B152: Ubicación | C152: SBC | D152: Capacidad | E152: Unidad
B153: DEPARTAMENTO 1 | C153: CODIGO A | D153: 2 | E153: Equipos
B154: DEPARTAMENTO 2 | C154: CODIGO B | D154: 2 | E154: Equipos
